﻿PAPER_DOCUMENT_NUMBER,PAYMENT_AMOUNT,PAYMENT_DATE,PAYMENT_STATUS,VOID_DATE,PAYEE_NAME,PAYEE_ADDRESS1,SOURCE,INVOICE_NUM,AMOUNT_PAID,PAYMENT_METHOD_CODE,LINE_NUMBER,LINE_SOURCE,INVOICE_DATE,INVOICE_LINE_NUMBER,DISTRIBUTION_LINE_NUMBER,DISTRIBUTION_AMT,CODE_COMB_ID,ACCT_DESC,CATEGORY
9021692,"$3,867.05 ",12/30/2022,ISSUED,,Village Bank and Trust,234 W Northwest Hwy,Manual Invoice Entry,BE122922,"$3,867.05 ",WIRE,1,MANUAL LINE ENTRY,12/29/2022,1,1,"$3,867.05 ",11-10101-0000-202109-000-000000000-000000,Flexible Spending Withheld,Payroll Deductions
9021691,$600.00 ,12/30/2022,ISSUED,,United Credit Union,4444 S Pulaski,Manual Invoice Entry,UC123022,$600.00 ,WIRE,1,MANUAL LINE ENTRY,12/29/2022,1,1,$550.00 ,11-22108-0000-202102-000-000000000-000000,Credit Union Withheld,Payroll Deductions
9021691,$600.00 ,12/30/2022,ISSUED,,United Credit Union,4444 S Pulaski,Manual Invoice Entry,UC123022,$600.00 ,WIRE,2,MANUAL LINE ENTRY,12/29/2022,2,1,$50.00 ,11-10101-0000-202102-000-000000000-000000,Credit Union Withheld,Payroll Deductions
9021690,"$89,969.89 ",12/30/2022,ISSUED,,Principal Financial Group,1210002848,Manual Invoice Entry,WE123022,"$89,969.89 ",WIRE,1,MANUAL LINE ENTRY,12/29/2022,1,1,"$89,969.89 ",11-22109-0000-202107-000-000000000-000000,Pension Withheld,401k/Pension EE/ER Contribution
9021689,"$15,222.32 ",12/30/2022,ISSUED,,Principal Financial Group,1210002848,Manual Invoice Entry,NO123022,"$15,222.32 ",WIRE,1,MANUAL LINE ENTRY,12/29/2022,1,1,"$15,222.32 ",11-22103-0000-202107-000-000000000-000000,Pension Withheld,401k/Pension EE/ER Contribution
9021688,"$24,083.70 ",12/30/2022,ISSUED,,Principal Financial Group,Butterfield Centre,Manual Invoice Entry,SW123022,"$24,083.70 ",WIRE,1,MANUAL LINE ENTRY,12/29/2022,1,1,"$24,083.70 ",11-22108-0000-202107-000-000000000-000000,Pension Withheld,401k/Pension EE/ER Contribution
9021687,"$71,220.58 ",12/30/2022,ISSUED,,Principal Financial Group,Butterfield Centre,Manual Invoice Entry,SO123022,"$71,220.58 ",WIRE,1,MANUAL LINE ENTRY,12/29/2022,1,1,"$71,220.58 ",11-22107-0000-202107-000-000000000-000000,Pension Withheld,401k/Pension EE/ER Contribution
9021686,"$79,936.57 ",12/30/2022,ISSUED,,Principal Financial Group,Butterfield Centre,Manual Invoice Entry,NW123022,"$79,936.57 ",WIRE,1,MANUAL LINE ENTRY,12/29/2022,1,1,"$79,936.57 ",11-22104-0000-202107-000-000000000-000000,Pension Withheld,401k/Pension EE/ER Contribution
9021685,"$17,239.55 ",12/30/2022,ISSUED,,Principal Financial Group,Butterfield Centre,Manual Invoice Entry,NS123022,"$17,239.55 ",WIRE,1,MANUAL LINE ENTRY,12/29/2022,1,1,"$17,239.55 ",11-22105-0000-202107-000-000000000-000000,Pension Withheld,401k/Pension EE/ER Contribution
9021684,"$16,576.95 ",12/30/2022,ISSUED,,Principal Financial Group,Butterfield Centre,Manual Invoice Entry,HE123022,"$16,576.95 ",WIRE,1,MANUAL LINE ENTRY,12/29/2022,1,1,"$16,576.95 ",11-22102-0000-202107-000-000000000-000000,Pension Withheld,401k/Pension EE/ER Contribution
9021683,"$44,678.05 ",12/30/2022,ISSUED,,Northside L Federal C U - West Town,1419 W Roosevelt Rd,Manual Invoice Entry,NL123022,"$44,678.05 ",WIRE,1,MANUAL LINE ENTRY,12/29/2022,1,1,$890.00 ,11-10101-0000-202102-000-000000000-000000,Credit Union Withheld,Payroll Deductions
9021683,"$44,678.05 ",12/30/2022,ISSUED,,Northside L Federal C U - West Town,1419 W Roosevelt Rd,Manual Invoice Entry,NL123022,"$44,678.05 ",WIRE,4,MANUAL LINE ENTRY,12/29/2022,4,1,"$2,651.00 ",11-22104-0000-202102-000-000000000-000000,Credit Union Withheld,Payroll Deductions
9021683,"$44,678.05 ",12/30/2022,ISSUED,,Northside L Federal C U - West Town,1419 W Roosevelt Rd,Manual Invoice Entry,NL123022,"$44,678.05 ",WIRE,2,MANUAL LINE ENTRY,12/29/2022,2,1,"$11,972.76 ",11-22107-0000-202102-000-000000000-000000,Credit Union Withheld,Payroll Deductions
9021683,"$44,678.05 ",12/30/2022,ISSUED,,Northside L Federal C U - West Town,1419 W Roosevelt Rd,Manual Invoice Entry,NL123022,"$44,678.05 ",WIRE,6,MANUAL LINE ENTRY,12/29/2022,6,1,"$27,677.29 ",11-22109-0000-202102-000-000000000-000000,Credit Union Withheld,Payroll Deductions
9021683,"$44,678.05 ",12/30/2022,ISSUED,,Northside L Federal C U - West Town,1419 W Roosevelt Rd,Manual Invoice Entry,NL123022,"$44,678.05 ",WIRE,3,MANUAL LINE ENTRY,12/29/2022,3,1,$62.00 ,11-22105-0000-202102-000-000000000-000000,Credit Union Withheld,Payroll Deductions
9021683,"$44,678.05 ",12/30/2022,ISSUED,,Northside L Federal C U - West Town,1419 W Roosevelt Rd,Manual Invoice Entry,NL123022,"$44,678.05 ",WIRE,5,MANUAL LINE ENTRY,12/29/2022,5,1,"$1,425.00 ",11-22108-0000-202102-000-000000000-000000,Credit Union Withheld,Payroll Deductions
9021682,"$1,730.00 ",12/30/2022,ISSUED,,Amalgamated Transit Union,Division 900,Manual Invoice Entry,AT123022,"$1,730.00 ",WIRE,1,MANUAL LINE ENTRY,12/29/2022,1,1,"$1,730.00 ",11-22103-0000-202111-000-000000000-000000,Union Dues Withheld,Payroll Deductions
9021681,"$1,371.00 ",12/30/2022,ISSUED,,Abri Credit Union,1350 W Renwick Rd,Manual Invoice Entry,PT123022,"$1,371.00 ",WIRE,1,MANUAL LINE ENTRY,12/29/2022,1,1,$846.00 ,11-10101-0000-202102-000-000000000-000000,Credit Union Withheld,Payroll Deductions
9021681,"$1,371.00 ",12/30/2022,ISSUED,,Abri Credit Union,1350 W Renwick Rd,Manual Invoice Entry,PT123022,"$1,371.00 ",WIRE,2,MANUAL LINE ENTRY,12/29/2022,2,1,$525.00 ,11-22102-0000-202102-000-000000000-000000,Credit Union Withheld,Payroll Deductions
9021680,"$2,851.41 ",12/30/2022,ISSUED,,Fidelity Security Life Insurance Eye,FSL EyeMed Premiums  9633314,Manual Invoice Entry,9.63331E+13,"$2,851.41 ",WIRE,1,MANUAL LINE ENTRY,12/27/2022,1,1,"$2,851.41 ",11-10101-0000-205501-000-000000000-000000,Health Insurance Reserve - Current,Health Insurance
9021679,"$1,256,411.26 ",12/30/2022,ISSUED,,MV Transportation,*,Manual Invoice Entry,NOV'2022/121637,"$1,256,411.26 ",EFT,3,MANUAL LINE ENTRY,12/15/2022,3,14,"$5,165.60 ",51-58603-0000-508101-500-000000000-000000,Purchased Transportation,Purchased Transportation
9021679,"$1,256,411.26 ",12/30/2022,ISSUED,,MV Transportation,*,Manual Invoice Entry,NOV'2022/121637,"$1,256,411.26 ",EFT,3,MANUAL LINE ENTRY,12/15/2022,3,9,"($26,323.00)",51-58603-0000-401101-100-000000000-000000,Passenger Fares,Purchased Transportation
9021679,"$1,256,411.26 ",12/30/2022,ISSUED,,MV Transportation,*,Manual Invoice Entry,NOV'2022/121637,"$1,256,411.26 ",EFT,3,MANUAL LINE ENTRY,12/15/2022,3,8,"($25,231.75)",51-58603-0000-401101-100-000000000-000000,Passenger Fares,Purchased Transportation
9021679,"$1,256,411.26 ",12/30/2022,ISSUED,,MV Transportation,*,Manual Invoice Entry,NOV'2022/121637,"$1,256,411.26 ",EFT,3,MANUAL LINE ENTRY,12/15/2022,3,6,"($7,338.50)",51-58603-0000-401101-100-000000000-000000,Passenger Fares,Purchased Transportation
9021679,"$1,256,411.26 ",12/30/2022,ISSUED,,MV Transportation,*,Manual Invoice Entry,NOV'2022/121637,"$1,256,411.26 ",EFT,3,MANUAL LINE ENTRY,12/15/2022,3,1,"$1,359,335.78 ",51-58603-0000-508101-500-000000000-000000,Purchased Transportation,Purchased Transportation
9021679,"$1,256,411.26 ",12/30/2022,ISSUED,,MV Transportation,*,Manual Invoice Entry,NOV'2022/121637,"$1,256,411.26 ",EFT,2,MANUAL LINE ENTRY,12/15/2022,2,1,"($1,256,411.26)",51-58603-0000-508101-500-000000000-000000,Purchased Transportation,Purchased Transportation
9021679,"$1,256,411.26 ",12/30/2022,ISSUED,,MV Transportation,*,Manual Invoice Entry,NOV'2022/121637,"$1,256,411.26 ",EFT,1,HEADER MATCH,12/15/2022,1,1,"$1,256,411.26 ",51-58603-0000-508101-500-000000000-000000,Purchased Transportation,Purchased Transportation
9021679,"$1,256,411.26 ",12/30/2022,ISSUED,,MV Transportation,*,Manual Invoice Entry,NOV'2022/121637,"$1,256,411.26 ",EFT,3,MANUAL LINE ENTRY,12/15/2022,3,10,"($99,401.08)",51-58603-0000-508101-500-000000000-000000,Purchased Transportation,Purchased Transportation
9021679,"$1,256,411.26 ",12/30/2022,ISSUED,,MV Transportation,*,Manual Invoice Entry,NOV'2022/121637,"$1,256,411.26 ",EFT,3,MANUAL LINE ENTRY,12/15/2022,3,13,"$17,021.97 ",51-58603-0000-508101-500-000000000-000000,Purchased Transportation,Purchased Transportation
9021679,"$1,256,411.26 ",12/30/2022,ISSUED,,MV Transportation,*,Manual Invoice Entry,NOV'2022/121637,"$1,256,411.26 ",EFT,3,MANUAL LINE ENTRY,12/15/2022,3,11,($341.70),51-58501-0000-508202-500-000000000-000000,RTA Certification Expense,Purchased Transportation
9021679,"$1,256,411.26 ",12/30/2022,ISSUED,,MV Transportation,*,Manual Invoice Entry,NOV'2022/121637,"$1,256,411.26 ",EFT,3,MANUAL LINE ENTRY,12/15/2022,3,2,"$4,672.82 ",51-58501-0000-508202-500-000000000-000000,RTA Certification Expense,Purchased Transportation
9021679,"$1,256,411.26 ",12/30/2022,ISSUED,,MV Transportation,*,Manual Invoice Entry,NOV'2022/121637,"$1,256,411.26 ",EFT,3,MANUAL LINE ENTRY,12/15/2022,3,5,"$7,338.50 ",51-59101-0000-205116-000-000000000-000000,Deferred ADA Ventra Revenue,Purchased Transportation
9021679,"$1,256,411.26 ",12/30/2022,ISSUED,,MV Transportation,*,Manual Invoice Entry,NOV'2022/121637,"$1,256,411.26 ",EFT,3,MANUAL LINE ENTRY,12/15/2022,3,7,"$25,231.75 ",51-59101-0000-205104-000-000000000-000000,Unredeemed Paratransit Fares,Purchased Transportation
9021679,"$1,256,411.26 ",12/30/2022,ISSUED,,MV Transportation,*,Manual Invoice Entry,NOV'2022/121637,"$1,256,411.26 ",EFT,3,MANUAL LINE ENTRY,12/15/2022,3,12,$0.00 ,51-57901-0000-508202-500-000000000-000000,RTA Certification Expense,Purchased Transportation
9021679,"$1,256,411.26 ",12/30/2022,ISSUED,,MV Transportation,*,Manual Invoice Entry,NOV'2022/121637,"$1,256,411.26 ",EFT,3,MANUAL LINE ENTRY,12/15/2022,3,3,$0.00 ,51-57901-0000-508202-500-000000000-000000,RTA Certification Expense,Purchased Transportation
9021679,"$1,256,411.26 ",12/30/2022,ISSUED,,MV Transportation,*,Manual Invoice Entry,NOV'2022/121637,"$1,256,411.26 ",EFT,3,MANUAL LINE ENTRY,12/15/2022,3,4,"($3,719.13)",51-59101-5311-509913-501-000000000-000000,General Expense,Miscellaneous
9021678,"$67,087.43 ",12/30/2022,ISSUED,,Blue Ribbon Taxi Association,*,Manual Invoice Entry,BR112022/SC,"$67,087.43 ",EFT,3,MANUAL LINE ENTRY,12/9/2022,3,11,($6.00),11-53153-0000-401101-100-000000000-000000,Passenger Fares,Purchased Transportation
9021678,"$67,087.43 ",12/30/2022,ISSUED,,Blue Ribbon Taxi Association,*,Manual Invoice Entry,BR112022/SC,"$67,087.43 ",EFT,3,MANUAL LINE ENTRY,12/9/2022,3,10,$116.58 ,11-53153-0000-508101-500-000000000-000000,Purchased Transportation,Purchased Transportation
9021678,"$67,087.43 ",12/30/2022,ISSUED,,Blue Ribbon Taxi Association,*,Manual Invoice Entry,BR112022/SC,"$67,087.43 ",EFT,3,MANUAL LINE ENTRY,12/9/2022,3,2,$305.50 ,51-59101-0000-205116-000-000000000-000000,Deferred ADA Ventra Revenue,Purchased Transportation
9021678,"$67,087.43 ",12/30/2022,ISSUED,,Blue Ribbon Taxi Association,*,Manual Invoice Entry,BR112022/SC,"$67,087.43 ",EFT,3,MANUAL LINE ENTRY,12/9/2022,3,9,$10.00 ,11-53112-0000-508101-500-000000000-000000,Purchased Transportation,Purchased Transportation
9021678,"$67,087.43 ",12/30/2022,ISSUED,,Blue Ribbon Taxi Association,*,Manual Invoice Entry,BR112022/SC,"$67,087.43 ",EFT,3,MANUAL LINE ENTRY,12/9/2022,3,1,"$67,863.35 ",51-57201-0000-508101-500-000000000-000000,Purchased Transportation,Purchased Transportation
9021678,"$67,087.43 ",12/30/2022,ISSUED,,Blue Ribbon Taxi Association,*,Manual Invoice Entry,BR112022/SC,"$67,087.43 ",EFT,2,MANUAL LINE ENTRY,12/9/2022,2,1,"($67,087.43)",51-57201-0000-508101-500-000000000-000000,Purchased Transportation,Purchased Transportation
9021678,"$67,087.43 ",12/30/2022,ISSUED,,Blue Ribbon Taxi Association,*,Manual Invoice Entry,BR112022/SC,"$67,087.43 ",EFT,1,HEADER MATCH,12/9/2022,1,1,"$67,087.43 ",51-57201-0000-508101-500-000000000-000000,Purchased Transportation,Purchased Transportation
9021678,"$67,087.43 ",12/30/2022,ISSUED,,Blue Ribbon Taxi Association,*,Manual Invoice Entry,BR112022/SC,"$67,087.43 ",EFT,3,MANUAL LINE ENTRY,12/9/2022,3,8,$20.00 ,51-57201-0000-508101-500-000000000-000000,Purchased Transportation,Purchased Transportation
9021678,"$67,087.43 ",12/30/2022,ISSUED,,Blue Ribbon Taxi Association,*,Manual Invoice Entry,BR112022/SC,"$67,087.43 ",EFT,3,MANUAL LINE ENTRY,12/9/2022,3,5,"($1,813.50)",51-57201-0000-401101-100-000000000-000000,Passenger Fares,Purchased Transportation
9021678,"$67,087.43 ",12/30/2022,ISSUED,,Blue Ribbon Taxi Association,*,Manual Invoice Entry,BR112022/SC,"$67,087.43 ",EFT,3,MANUAL LINE ENTRY,12/9/2022,3,3,($305.50),51-57201-0000-401101-100-000000000-000000,Passenger Fares,Purchased Transportation
9021678,"$67,087.43 ",12/30/2022,ISSUED,,Blue Ribbon Taxi Association,*,Manual Invoice Entry,BR112022/SC,"$67,087.43 ",EFT,3,MANUAL LINE ENTRY,12/9/2022,3,6,($916.50),51-57201-0000-401101-100-000000000-000000,Passenger Fares,Purchased Transportation
9021678,"$67,087.43 ",12/30/2022,ISSUED,,Blue Ribbon Taxi Association,*,Manual Invoice Entry,BR112022/SC,"$67,087.43 ",EFT,3,MANUAL LINE ENTRY,12/9/2022,3,4,"$1,813.50 ",51-59101-0000-205104-000-000000000-000000,Unredeemed Paratransit Fares,Purchased Transportation
9021677,"$39,198.28 ",12/30/2022,ISSUED,,Blue Ribbon Taxi Association,*,Manual Invoice Entry,BR112022/NC,"$39,198.28 ",EFT,3,MANUAL LINE ENTRY,12/9/2022,3,1,"$37,988.12 ",51-57202-0000-508101-500-000000000-000000,Purchased Transportation,Purchased Transportation
9021677,"$39,198.28 ",12/30/2022,ISSUED,,Blue Ribbon Taxi Association,*,Manual Invoice Entry,BR112022/NC,"$39,198.28 ",EFT,2,MANUAL LINE ENTRY,12/9/2022,2,1,"($39,198.28)",51-57204-0000-508101-500-000000000-000000,Purchased Transportation,Purchased Transportation
9021677,"$39,198.28 ",12/30/2022,ISSUED,,Blue Ribbon Taxi Association,*,Manual Invoice Entry,BR112022/NC,"$39,198.28 ",EFT,1,HEADER MATCH,12/9/2022,1,1,"$39,198.28 ",51-57204-0000-508101-500-000000000-000000,Purchased Transportation,Purchased Transportation
9021677,"$39,198.28 ",12/30/2022,ISSUED,,Blue Ribbon Taxi Association,*,Manual Invoice Entry,BR112022/NC,"$39,198.28 ",EFT,3,MANUAL LINE ENTRY,12/9/2022,3,9,($84.64),51-57202-0000-508101-500-000000000-000000,Purchased Transportation,Purchased Transportation
9021677,"$39,198.28 ",12/30/2022,ISSUED,,Blue Ribbon Taxi Association,*,Manual Invoice Entry,BR112022/NC,"$39,198.28 ",EFT,3,MANUAL LINE ENTRY,12/9/2022,3,7,($757.50),51-57202-0000-401101-100-000000000-000000,Passenger Fares,Purchased Transportation
9021677,"$39,198.28 ",12/30/2022,ISSUED,,Blue Ribbon Taxi Association,*,Manual Invoice Entry,BR112022/NC,"$39,198.28 ",EFT,3,MANUAL LINE ENTRY,12/9/2022,3,4,($224.25),51-57202-0000-401101-100-000000000-000000,Passenger Fares,Purchased Transportation
9021677,"$39,198.28 ",12/30/2022,ISSUED,,Blue Ribbon Taxi Association,*,Manual Invoice Entry,BR112022/NC,"$39,198.28 ",EFT,3,MANUAL LINE ENTRY,12/9/2022,3,2,"$2,200.66 ",11-53123-0000-508101-500-000000000-000000,Purchased Transportation,Purchased Transportation
9021677,"$39,198.28 ",12/30/2022,ISSUED,,Blue Ribbon Taxi Association,*,Manual Invoice Entry,BR112022/NC,"$39,198.28 ",EFT,3,MANUAL LINE ENTRY,12/9/2022,3,8,($145.00),11-53123-0000-401101-100-000000000-000000,Passenger Fares,Purchased Transportation
9021677,"$39,198.28 ",12/30/2022,ISSUED,,Blue Ribbon Taxi Association,*,Manual Invoice Entry,BR112022/NC,"$39,198.28 ",EFT,3,MANUAL LINE ENTRY,12/9/2022,3,10,($3.36),11-53123-0000-401101-100-000000000-000000,Passenger Fares,Purchased Transportation
9021677,"$39,198.28 ",12/30/2022,ISSUED,,Blue Ribbon Taxi Association,*,Manual Invoice Entry,BR112022/NC,"$39,198.28 ",EFT,3,MANUAL LINE ENTRY,12/9/2022,3,6,($568.50),51-57202-0000-401101-100-000000000-000000,Passenger Fares,Purchased Transportation
9021677,"$39,198.28 ",12/30/2022,ISSUED,,Blue Ribbon Taxi Association,*,Manual Invoice Entry,BR112022/NC,"$39,198.28 ",EFT,3,MANUAL LINE ENTRY,12/9/2022,3,3,$224.25 ,51-59101-0000-205116-000-000000000-000000,Deferred ADA Ventra Revenue,Purchased Transportation
9021677,"$39,198.28 ",12/30/2022,ISSUED,,Blue Ribbon Taxi Association,*,Manual Invoice Entry,BR112022/NC,"$39,198.28 ",EFT,3,MANUAL LINE ENTRY,12/9/2022,3,5,$568.50 ,51-59101-0000-205104-000-000000000-000000,Unredeemed Paratransit Fares,Purchased Transportation
9021676,"$522,165.93 ",12/30/2022,ISSUED,,Blue Ribbon Taxi Association,*,Manual Invoice Entry,BR112022,"$522,165.93 ",EFT,3,MANUAL LINE ENTRY,12/22/2022,3,6,"$5,066.50 ",51-59101-0000-205104-000-000000000-000000,Unredeemed Paratransit Fares,Purchased Transportation
9021676,"$522,165.93 ",12/30/2022,ISSUED,,Blue Ribbon Taxi Association,*,Manual Invoice Entry,BR112022,"$522,165.93 ",EFT,3,MANUAL LINE ENTRY,12/22/2022,3,4,"$3,178.50 ",51-59101-0000-205116-000-000000000-000000,Deferred ADA Ventra Revenue,Purchased Transportation
9021676,"$522,165.93 ",12/30/2022,ISSUED,,Blue Ribbon Taxi Association,*,Manual Invoice Entry,BR112022,"$522,165.93 ",EFT,3,MANUAL LINE ENTRY,12/22/2022,3,9,$0.00 ,51-58606-0000-508102-500-000000000-000000,Call Center Expansion Costs,Purchased Transportation
9021676,"$522,165.93 ",12/30/2022,ISSUED,,Blue Ribbon Taxi Association,*,Manual Invoice Entry,BR112022,"$522,165.93 ",EFT,3,MANUAL LINE ENTRY,12/22/2022,3,2,$0.00 ,51-58606-0000-508102-500-000000000-000000,Call Center Expansion Costs,Purchased Transportation
9021676,"$522,165.93 ",12/30/2022,ISSUED,,Blue Ribbon Taxi Association,*,Manual Invoice Entry,BR112022,"$522,165.93 ",EFT,3,MANUAL LINE ENTRY,12/22/2022,3,5,"($3,178.50)",51-58606-0000-401101-100-000000000-000000,Passenger Fares,Purchased Transportation
9021676,"$522,165.93 ",12/30/2022,ISSUED,,Blue Ribbon Taxi Association,*,Manual Invoice Entry,BR112022,"$522,165.93 ",EFT,3,MANUAL LINE ENTRY,12/22/2022,3,7,"($5,066.50)",51-58606-0000-401101-100-000000000-000000,Passenger Fares,Purchased Transportation
9021676,"$522,165.93 ",12/30/2022,ISSUED,,Blue Ribbon Taxi Association,*,Manual Invoice Entry,BR112022,"$522,165.93 ",EFT,3,MANUAL LINE ENTRY,12/22/2022,3,8,"($12,230.00)",51-58606-0000-401101-100-000000000-000000,Passenger Fares,Purchased Transportation
9021676,"$522,165.93 ",12/30/2022,ISSUED,,Blue Ribbon Taxi Association,*,Manual Invoice Entry,BR112022,"$522,165.93 ",EFT,3,MANUAL LINE ENTRY,12/22/2022,3,10,"($6,868.34)",51-58606-0000-508101-500-000000000-000000,Purchased Transportation,Purchased Transportation
9021676,"$522,165.93 ",12/30/2022,ISSUED,,Blue Ribbon Taxi Association,*,Manual Invoice Entry,BR112022,"$522,165.93 ",EFT,3,MANUAL LINE ENTRY,12/22/2022,3,1,"$515,884.97 ",51-58606-0000-508101-500-000000000-000000,Purchased Transportation,Purchased Transportation
9021676,"$522,165.93 ",12/30/2022,ISSUED,,Blue Ribbon Taxi Association,*,Manual Invoice Entry,BR112022,"$522,165.93 ",EFT,1,HEADER MATCH,12/22/2022,1,1,"$522,165.93 ",51-58606-0000-508101-500-000000000-000000,Purchased Transportation,Purchased Transportation
9021676,"$522,165.93 ",12/30/2022,ISSUED,,Blue Ribbon Taxi Association,*,Manual Invoice Entry,BR112022,"$522,165.93 ",EFT,2,MANUAL LINE ENTRY,12/22/2022,2,1,"($522,165.93)",51-58606-0000-508101-500-000000000-000000,Purchased Transportation,Purchased Transportation
9021676,"$522,165.93 ",12/30/2022,ISSUED,,Blue Ribbon Taxi Association,*,Manual Invoice Entry,BR112022,"$522,165.93 ",EFT,3,MANUAL LINE ENTRY,12/22/2022,3,11,($404.28),51-58501-0000-508202-500-000000000-000000,RTA Certification Expense,Purchased Transportation
9021676,"$522,165.93 ",12/30/2022,ISSUED,,Blue Ribbon Taxi Association,*,Manual Invoice Entry,BR112022,"$522,165.93 ",EFT,3,MANUAL LINE ENTRY,12/22/2022,3,3,"$25,783.58 ",51-58501-0000-508202-500-000000000-000000,RTA Certification Expense,Purchased Transportation
9021675,"$52,332.57 ",12/30/2022,ISSUED,,The Standard,300 North Martingale Rd,Manual Invoice Entry,1.44253E+11,"$52,332.57 ",WIRE,1,MANUAL LINE ENTRY,12/27/2022,1,1,"$52,332.57 ",11-10101-0000-205501-000-000000000-000000,Health Insurance Reserve - Current,Health Insurance
9021674,"$114,546.15 ",12/30/2022,ISSUED,,OptumRx Inc,c/o JP Morgan Chase,Manual Invoice Entry,5.14576E+11,"$114,546.15 ",WIRE,1,HEADER MATCH,12/27/2022,1,1,"$114,546.15 ",11-10101-0000-205501-000-000000000-000000,Health Insurance Reserve - Current,Health Insurance
9021673,"$2,851.41 ",12/29/2022,ISSUED,12/29/2022,Fidelity Security Life Insurance Eye,FSL EyeMed Premiums  9633314,Manual Invoice Entry,9.63331E+13,"$2,851.41 ",WIRE,1,MANUAL LINE ENTRY,12/27/2022,1,1,"$2,851.41 ",11-10101-0000-205501-000-000000000-000000,Health Insurance Reserve - Current,Health Insurance
9021673,"($2,851.41)",12/29/2022,VOID,12/29/2022,Fidelity Security Life Insurance Eye,FSL EyeMed Premiums  9633314,Manual Invoice Entry,9.63331E+13,"$2,851.41 ",WIRE,1,MANUAL LINE ENTRY,12/27/2022,1,1,"($2,851.41)",11-10101-0000-205501-000-000000000-000000,Health Insurance Reserve - Current,Health Insurance
9021672,"$1,777,703.59 ",12/30/2022,ISSUED,,Blue Cross Blue Shield of Illinois,PO Box 1186,Manual Invoice Entry,264413 122022,"$1,777,703.59 ",WIRE,1,HEADER MATCH,12/27/2022,1,1,"$1,777,703.59 ",11-10101-0000-205501-000-000000000-000000,Health Insurance Reserve - Current,Health Insurance
9021671,"$10,352.82 ",12/28/2022,ISSUED,,Charles Taylor TPA LLC fka Underwriters Safety & Claims,PO Box 23790,Manual Invoice Entry,WC12272022,"$10,352.82 ",WIRE,1,MANUAL LINE ENTRY,12/27/2022,1,1,"$10,352.82 ",11-10101-0000-101204-000-000000000-000000,Workers Compensation Claims Account,Claims
9021670,$485.00 ,12/30/2022,ISSUED,,"Szymkowiak, David J",2930 Hills Boro Lane,XpenseXpress,TOOL2022,$385.00 ,CHECK,1,IMPORTED,12/13/2022,1,1,$385.00 ,11-22104-0000-502131-300-000000000-000000,Uniforms,Employee - Expense Reimbursement
9021670,$485.00 ,12/30/2022,ISSUED,,"Szymkowiak, David J",2930 Hills Boro Lane,XpenseXpress,GEAR2022,$100.00 ,CHECK,1,IMPORTED,12/13/2022,1,1,$100.00 ,11-22104-0000-502131-300-000000000-000000,Uniforms,Employee - Expense Reimbursement
9021669,$485.00 ,12/30/2022,ISSUED,,"Zambrano, Selvin A",2709 N. 72nd Ct.,XpenseXpress,GEAR2022,$100.00 ,CHECK,1,IMPORTED,12/13/2022,1,1,$100.00 ,11-22104-0000-502131-300-000000000-000000,Uniforms,Employee - Expense Reimbursement
9021669,$485.00 ,12/30/2022,ISSUED,,"Zambrano, Selvin A",2709 N. 72nd Ct.,XpenseXpress,TOOL2022,$385.00 ,CHECK,1,IMPORTED,12/13/2022,1,1,$385.00 ,11-22104-0000-502131-300-000000000-000000,Uniforms,Employee - Expense Reimbursement
9021668,$405.00 ,12/30/2022,ISSUED,,"Yetter, David A",201 Pine Tree Lane,XpenseXpress,TOOL2022,$405.00 ,CHECK,1,IMPORTED,12/13/2022,1,1,$405.00 ,11-22109-0000-502142-300-000000000-000000,Other Fringe Benefits,Employee - Expense Reimbursement
9021667,$385.00 ,12/30/2022,ISSUED,,"Wright, Jonathan Edwards",5818 W. Montrose Ave.,XpenseXpress,TOOL2022,$385.00 ,CHECK,1,IMPORTED,12/13/2022,1,1,$385.00 ,11-22104-0000-502131-300-000000000-000000,Uniforms,Employee - Expense Reimbursement
9021666,$72.99 ,12/30/2022,ISSUED,,"Wojewoda, Stephanie N.",2203 S. Wolf,XpenseXpress,GEAR2022,$72.99 ,CHECK,1,IMPORTED,12/13/2022,1,1,$72.99 ,11-22104-0000-502131-300-000000000-000000,Uniforms,Employee - Expense Reimbursement
9021665,$125.00 ,12/30/2022,ISSUED,,"Wentz, Thomas Frederick",8787 S. Corcoran Road,XpenseXpress,GEAR2022,$125.00 ,CHECK,1,IMPORTED,12/22/2022,1,1,$125.00 ,11-22108-0000-502131-300-000000000-000000,Uniforms,Employee - Expense Reimbursement
9021664,$100.00 ,12/30/2022,ISSUED,,"Vervilas, Gus",3336 W. Columbia Ave.,XpenseXpress,GEAR2022,$100.00 ,CHECK,1,IMPORTED,12/13/2022,1,1,$100.00 ,11-22104-0000-502131-300-000000000-000000,Uniforms,Employee - Expense Reimbursement
9021663,$385.00 ,12/30/2022,ISSUED,,"Vela, David A",510 Chester Ct. W,XpenseXpress,TOOL2022,$385.00 ,CHECK,1,IMPORTED,12/13/2022,1,1,$385.00 ,11-22104-0000-502131-300-000000000-000000,Uniforms,Employee - Expense Reimbursement
9021662,$50.00 ,12/30/2022,ISSUED,,"Vazquez Garcia, Hugo E.",10800 S. Avenue F,XpenseXpress,GEAR2022,$50.00 ,CHECK,1,IMPORTED,12/7/2022,1,1,$50.00 ,11-22107-0000-502142-300-000000000-000000,Other Fringe Benefits,Employee - Expense Reimbursement
9021661,$385.00 ,12/30/2022,ISSUED,,"Ulrey, William Colton",5345 W. Bertreau Ave.,XpenseXpress,TOOL2022,$385.00 ,CHECK,1,IMPORTED,12/13/2022,1,1,$385.00 ,11-22104-0000-502131-300-000000000-000000,Uniforms,Employee - Expense Reimbursement
9021660,$100.00 ,12/30/2022,ISSUED,,"Togba, Jacob",235 Ridge Avenue,XpenseXpress,GEAR2022,$100.00 ,CHECK,1,IMPORTED,12/13/2022,1,1,$100.00 ,11-22104-0000-502131-300-000000000-000000,Uniforms,Employee - Expense Reimbursement
9021659,$365.07 ,12/30/2022,ISSUED,,"Tate, Marc Terrence",7456 Washington St.,XpenseXpress,TOOL2022,$365.07 ,CHECK,1,IMPORTED,12/21/2022,1,1,$365.07 ,11-22104-0000-502131-300-000000000-000000,Uniforms,Employee - Expense Reimbursement
9021658,$494.11 ,12/30/2022,ISSUED,,"Sullivan, Douglas",2615 Roslyn Circle,XpenseXpress,EERPR120922,$494.11 ,CHECK,2,IMPORTED,12/9/2022,2,1,$3.80 ,11-10101-4101-509202-500-000000000-000000,Local Travel,Employee - Expense Reimbursement
9021658,$494.11 ,12/30/2022,ISSUED,,"Sullivan, Douglas",2615 Roslyn Circle,XpenseXpress,EERPR120922,$494.11 ,CHECK,1,IMPORTED,12/9/2022,1,1,$453.06 ,11-10101-4101-509901-500-000000000-000000,Business Expense,Employee - Expense Reimbursement
9021658,$494.11 ,12/30/2022,ISSUED,,"Sullivan, Douglas",2615 Roslyn Circle,XpenseXpress,EERPR120922,$494.11 ,CHECK,3,IMPORTED,12/9/2022,3,1,$37.25 ,11-10101-4101-509202-500-000000000-000000,Local Travel,Employee - Expense Reimbursement
9021657,$378.13 ,12/30/2022,ISSUED,,"Sporina, Chris Joseph",1043 Beau Brummel Ct.,XpenseXpress,EERPR121622,$378.13 ,CHECK,2,IMPORTED,12/16/2022,2,1,$303.13 ,11-10101-7401-509202-500-000000000-000000,Local Travel,Employee - Expense Reimbursement
9021657,$378.13 ,12/30/2022,ISSUED,,"Sporina, Chris Joseph",1043 Beau Brummel Ct.,XpenseXpress,EERPR121622,$378.13 ,CHECK,1,IMPORTED,12/16/2022,1,1,$75.00 ,11-10101-7401-509202-500-000000000-000000,Local Travel,Employee - Expense Reimbursement
9021656,$405.00 ,12/30/2022,ISSUED,,"Sanchez, Jose Roberto",252 Armitage Ave,XpenseXpress,TOOL2022,$405.00 ,CHECK,1,IMPORTED,12/13/2022,1,1,$405.00 ,11-22109-0000-502142-300-000000000-000000,Other Fringe Benefits,Employee - Expense Reimbursement
9021655,$106.98 ,12/30/2022,ISSUED,,"Rivera, Ramon",3624 W 63rd St.,XpenseXpress,GEAR2022A,$106.98 ,CHECK,1,IMPORTED,12/14/2022,1,1,$106.98 ,11-22107-0000-502142-300-000000000-000000,Other Fringe Benefits,Employee - Expense Reimbursement
9021654,$89.98 ,12/30/2022,ISSUED,,"Rivera, Jose",5820 N. Nagle Ave.,XpenseXpress,GEAR2022,$89.98 ,CHECK,1,IMPORTED,12/13/2022,1,1,$89.98 ,11-22104-0000-502131-300-000000000-000000,Uniforms,Employee - Expense Reimbursement
9021653,$249.00 ,12/30/2022,ISSUED,,"Rebolledo, Greg",9012 Keating St.,XpenseXpress,TOOL2022,$249.00 ,CHECK,1,IMPORTED,12/13/2022,1,1,$249.00 ,11-22104-0000-502131-300-000000000-000000,Uniforms,Employee - Expense Reimbursement
9021652,$479.95 ,12/30/2022,ISSUED,,"Quinones, Wilson",1737 73rd Ct.,XpenseXpress,TOOL2022,$385.00 ,CHECK,1,IMPORTED,12/13/2022,1,1,$385.00 ,11-22104-0000-502131-300-000000000-000000,Uniforms,Employee - Expense Reimbursement
9021652,$479.95 ,12/30/2022,ISSUED,,"Quinones, Wilson",1737 73rd Ct.,XpenseXpress,GEAR2022,$94.95 ,CHECK,1,IMPORTED,12/13/2022,1,1,$94.95 ,11-22104-0000-502131-300-000000000-000000,Uniforms,Employee - Expense Reimbursement
9021651,$485.00 ,12/30/2022,ISSUED,,"Quinones, Emilio J",5135 W. Drummond,XpenseXpress,GEAR2022,$100.00 ,CHECK,1,IMPORTED,12/13/2022,1,1,$100.00 ,11-22104-0000-502131-300-000000000-000000,Uniforms,Employee - Expense Reimbursement
9021651,$485.00 ,12/30/2022,ISSUED,,"Quinones, Emilio J",5135 W. Drummond,XpenseXpress,TOOL2022,$385.00 ,CHECK,1,IMPORTED,12/13/2022,1,1,$385.00 ,11-22104-0000-502131-300-000000000-000000,Uniforms,Employee - Expense Reimbursement
9021650,$485.00 ,12/30/2022,ISSUED,,"Puente, Raymundo",5406 W. 25th Pl. Apt. 1,XpenseXpress,GEAR2022,$100.00 ,CHECK,1,IMPORTED,12/13/2022,1,1,$100.00 ,11-22104-0000-502131-300-000000000-000000,Uniforms,Employee - Expense Reimbursement
9021650,$485.00 ,12/30/2022,ISSUED,,"Puente, Raymundo",5406 W. 25th Pl. Apt. 1,XpenseXpress,TOOL2022,$385.00 ,CHECK,1,IMPORTED,12/13/2022,1,1,$385.00 ,11-22104-0000-502131-300-000000000-000000,Uniforms,Employee - Expense Reimbursement
9021649,$405.00 ,12/30/2022,ISSUED,,"Pierce, Patrick M",17919 Commercial Ave.,XpenseXpress,TOOL2022,$405.00 ,CHECK,1,IMPORTED,12/13/2022,1,1,$405.00 ,11-22109-0000-502142-300-000000000-000000,Other Fringe Benefits,Employee - Expense Reimbursement
9021648,$32.72 ,12/30/2022,ISSUED,,"Pappas, Shari",532 Landmeier,XpenseXpress,EERPR121322,$32.72 ,CHECK,1,IMPORTED,12/13/2022,1,1,$32.72 ,11-10101-5201-509901-500-000000000-000000,Business Expense,Employee - Expense Reimbursement
9021647,$15.01 ,12/30/2022,ISSUED,,"Metzger, Melinda J",1215 W. Oakdale Ave.,XpenseXpress,EERPR122222,$15.01 ,CHECK,1,IMPORTED,12/22/2022,1,1,$15.01 ,11-10101-1001-509901-500-000000000-000000,Business Expense,Employee - Expense Reimbursement
9021646,$195.52 ,12/30/2022,ISSUED,,"Medina, Esequiel",7803 Lawler Ave.,XpenseXpress,"TOOL2019,20,21,22",$195.52 ,CHECK,1,IMPORTED,12/7/2022,1,1,$195.52 ,11-22107-0000-502142-300-000000000-000000,Other Fringe Benefits,Employee - Expense Reimbursement
9021645,$39.98 ,12/30/2022,ISSUED,,"McElrath, Yolanda",2100 Home Street,XpenseXpress,GEAR2022,$39.98 ,CHECK,1,IMPORTED,12/19/2022,1,1,$39.98 ,11-22102-0000-502142-300-000000000-000000,Other Fringe Benefits,Employee - Expense Reimbursement
9021644,$405.00 ,12/30/2022,ISSUED,,"Mathai, Simon",1760 Hilltop Rd,XpenseXpress,TOOL2022,$405.00 ,CHECK,1,IMPORTED,12/21/2022,1,1,$405.00 ,11-22109-0000-502142-300-000000000-000000,Other Fringe Benefits,Employee - Expense Reimbursement
9021643,$403.88 ,12/30/2022,ISSUED,,"Malekzadeh, Sohail",1249 S Ridge Ave,XpenseXpress,GEAR2022,$99.95 ,CHECK,1,IMPORTED,12/13/2022,1,1,$99.95 ,11-22104-0000-502131-300-000000000-000000,Uniforms,Employee - Expense Reimbursement
9021643,$403.88 ,12/30/2022,ISSUED,,"Malekzadeh, Sohail",1249 S Ridge Ave,XpenseXpress,TOOL2022,$303.93 ,CHECK,1,IMPORTED,12/13/2022,1,1,$303.93 ,11-22104-0000-502131-300-000000000-000000,Uniforms,Employee - Expense Reimbursement
9021642,$485.00 ,12/30/2022,ISSUED,,"Lapaglia, Joseph Michael",5352 W. Sunnyside Ave.,XpenseXpress,GEAR2022,$100.00 ,CHECK,1,IMPORTED,12/13/2022,1,1,$100.00 ,11-22104-0000-502131-300-000000000-000000,Uniforms,Employee - Expense Reimbursement
9021642,$485.00 ,12/30/2022,ISSUED,,"Lapaglia, Joseph Michael",5352 W. Sunnyside Ave.,XpenseXpress,TOOL2022,$385.00 ,CHECK,1,IMPORTED,12/13/2022,1,1,$385.00 ,11-22104-0000-502131-300-000000000-000000,Uniforms,Employee - Expense Reimbursement
9021641,$485.00 ,12/30/2022,ISSUED,,"Katona, Peter M",730 N. Greenwood Dr.,XpenseXpress,GEAR2022,$100.00 ,CHECK,1,IMPORTED,12/13/2022,1,1,$100.00 ,11-22104-0000-502131-300-000000000-000000,Uniforms,Employee - Expense Reimbursement
9021641,$485.00 ,12/30/2022,ISSUED,,"Katona, Peter M",730 N. Greenwood Dr.,XpenseXpress,TOOL2022,$385.00 ,CHECK,1,IMPORTED,12/13/2022,1,1,$385.00 ,11-22104-0000-502131-300-000000000-000000,Uniforms,Employee - Expense Reimbursement
9021640,$385.00 ,12/30/2022,ISSUED,,"Jozwik, Andrew A.",485 Simone Dr.,XpenseXpress,TOOL2022,$385.00 ,CHECK,1,IMPORTED,12/13/2022,1,1,$385.00 ,11-22104-0000-502131-300-000000000-000000,Uniforms,Employee - Expense Reimbursement
9021639,$36.24 ,12/30/2022,ISSUED,,"Johnson, Anthony Dwayne",10315 Lyndale,XpenseXpress,EERPR121322,$36.24 ,CHECK,1,IMPORTED,12/13/2022,1,1,$36.24 ,11-10101-5201-509901-500-000000000-000000,Business Expense,Employee - Expense Reimbursement
9021638,$385.00 ,12/30/2022,ISSUED,,"Gwin, Eddie L",9800 S. Utica,XpenseXpress,TOOL2022,$385.00 ,CHECK,1,IMPORTED,12/13/2022,1,1,$385.00 ,11-22104-0000-502131-300-000000000-000000,Uniforms,Employee - Expense Reimbursement
9021637,$485.00 ,12/30/2022,ISSUED,,"Figueroa, Edwin",11 W. Green St.,XpenseXpress,GEAR2022,$100.00 ,CHECK,1,IMPORTED,12/13/2022,1,1,$100.00 ,11-22104-0000-502131-300-000000000-000000,Uniforms,Employee - Expense Reimbursement
9021637,$485.00 ,12/30/2022,ISSUED,,"Figueroa, Edwin",11 W. Green St.,XpenseXpress,TOOL2022,$385.00 ,CHECK,1,IMPORTED,12/13/2022,1,1,$385.00 ,11-22104-0000-502131-300-000000000-000000,Uniforms,Employee - Expense Reimbursement
9021636,$485.00 ,12/30/2022,ISSUED,,"Ferens, Artur A.",1707 W. Kim Ave.,XpenseXpress,GEAR2022,$100.00 ,CHECK,1,IMPORTED,12/13/2022,1,1,$100.00 ,11-22104-0000-502131-300-000000000-000000,Uniforms,Employee - Expense Reimbursement
9021636,$485.00 ,12/30/2022,ISSUED,,"Ferens, Artur A.",1707 W. Kim Ave.,XpenseXpress,TOOL2022,$385.00 ,CHECK,1,IMPORTED,12/13/2022,1,1,$385.00 ,11-22104-0000-502131-300-000000000-000000,Uniforms,Employee - Expense Reimbursement
9021635,$453.16 ,12/30/2022,ISSUED,,"Dudgeon, John K",214 South Park St.,XpenseXpress,GEAR2022,$100.00 ,CHECK,1,IMPORTED,12/13/2022,1,1,$100.00 ,11-22104-0000-502131-300-000000000-000000,Uniforms,Employee - Expense Reimbursement
9021635,$453.16 ,12/30/2022,ISSUED,,"Dudgeon, John K",214 South Park St.,XpenseXpress,TOOL2022,$353.16 ,CHECK,1,IMPORTED,12/13/2022,1,1,$353.16 ,11-22104-0000-502131-300-000000000-000000,Uniforms,Employee - Expense Reimbursement
9021634,$726.00 ,12/30/2022,ISSUED,,"Dickson, Lawrence",14928 Edbrooke,XpenseXpress,"TOOL19,20,21,22",$726.00 ,CHECK,1,IMPORTED,12/13/2022,1,1,$726.00 ,11-22107-0000-502142-300-000000000-000000,Other Fringe Benefits,Employee - Expense Reimbursement
9021633,$228.32 ,12/30/2022,ISSUED,,"De La Pena, David",3040 N. Luna Ave,XpenseXpress,GEAR2022,$100.00 ,CHECK,1,IMPORTED,12/13/2022,1,1,$100.00 ,11-22104-0000-502131-300-000000000-000000,Uniforms,Employee - Expense Reimbursement
9021633,$228.32 ,12/30/2022,ISSUED,,"De La Pena, David",3040 N. Luna Ave,XpenseXpress,TOOL2022,$128.32 ,CHECK,1,IMPORTED,12/13/2022,1,1,$128.32 ,11-22104-0000-502131-300-000000000-000000,Uniforms,Employee - Expense Reimbursement
9021632,$485.00 ,12/30/2022,ISSUED,,"Dang, Kimxuyen",6020 Lincoln  #301,XpenseXpress,GEAR2022,$100.00 ,CHECK,1,IMPORTED,12/13/2022,1,1,$100.00 ,11-22104-0000-502131-300-000000000-000000,Uniforms,Employee - Expense Reimbursement
9021632,$485.00 ,12/30/2022,ISSUED,,"Dang, Kimxuyen",6020 Lincoln  #301,XpenseXpress,TOOL2022,$385.00 ,CHECK,1,IMPORTED,12/13/2022,1,1,$385.00 ,11-22104-0000-502131-300-000000000-000000,Uniforms,Employee - Expense Reimbursement
9021631,$485.00 ,12/30/2022,ISSUED,,"Chanthavong, David",7049 West Ave.,XpenseXpress,GEAR2022,$100.00 ,CHECK,1,IMPORTED,12/13/2022,1,1,$100.00 ,11-22104-0000-502131-300-000000000-000000,Uniforms,Employee - Expense Reimbursement
9021631,$485.00 ,12/30/2022,ISSUED,,"Chanthavong, David",7049 West Ave.,XpenseXpress,TOOL2022,$385.00 ,CHECK,1,IMPORTED,12/13/2022,1,1,$385.00 ,11-22104-0000-502131-300-000000000-000000,Uniforms,Employee - Expense Reimbursement
9021630,$79.70 ,12/30/2022,ISSUED,,"Burkhardt, Brett J",109 S. Pine St.,XpenseXpress,EERPR122222,$79.70 ,CHECK,4,IMPORTED,12/22/2022,4,1,$10.00 ,11-22103-0000-509201-500-000000000-000000,Travel & Meeting,Employee - Expense Reimbursement
9021630,$79.70 ,12/30/2022,ISSUED,,"Burkhardt, Brett J",109 S. Pine St.,XpenseXpress,EERPR122222,$79.70 ,CHECK,3,IMPORTED,12/22/2022,3,1,$10.00 ,11-22104-0000-509201-500-000000000-000000,Travel & Meeting,Employee - Expense Reimbursement
9021630,$79.70 ,12/30/2022,ISSUED,,"Burkhardt, Brett J",109 S. Pine St.,XpenseXpress,EERPR122222,$79.70 ,CHECK,1,IMPORTED,12/22/2022,1,1,$39.70 ,11-22106-0000-509201-500-000000000-000000,Travel & Meeting,Employee - Expense Reimbursement
9021630,$79.70 ,12/30/2022,ISSUED,,"Burkhardt, Brett J",109 S. Pine St.,XpenseXpress,EERPR122222,$79.70 ,CHECK,2,IMPORTED,12/22/2022,2,1,$20.00 ,11-22109-0000-509201-500-000000000-000000,Travel & Meeting,Employee - Expense Reimbursement
9021629,$200.00 ,12/30/2022,ISSUED,,"Boyd, Robert",9258 S. Normal,XpenseXpress,GEAR2022,$200.00 ,CHECK,1,IMPORTED,12/19/2022,1,1,$200.00 ,11-22107-0000-502142-300-000000000-000000,Other Fringe Benefits,Employee - Expense Reimbursement
9021628,$125.00 ,12/30/2022,ISSUED,,"Barajas, Alejandro",10618 S 81st Ct,XpenseXpress,GEAR2022,$125.00 ,CHECK,1,IMPORTED,12/13/2022,1,1,$125.00 ,11-22107-0000-502142-300-000000000-000000,Other Fringe Benefits,Employee - Expense Reimbursement
9021627,$485.00 ,12/30/2022,ISSUED,,"Aman, Mohammed",2026 Audubon Dr.,XpenseXpress,TOOL2022,$385.00 ,CHECK,1,IMPORTED,12/13/2022,1,1,$385.00 ,11-22104-0000-502131-300-000000000-000000,Uniforms,Employee - Expense Reimbursement
9021627,$485.00 ,12/30/2022,ISSUED,,"Aman, Mohammed",2026 Audubon Dr.,XpenseXpress,GEAR2022,$100.00 ,CHECK,1,IMPORTED,12/13/2022,1,1,$100.00 ,11-22104-0000-502131-300-000000000-000000,Uniforms,Employee - Expense Reimbursement
9021626,$27.94 ,12/30/2022,ISSUED,,"Aguilar, Karen",4555 Heron Dr,XpenseXpress,EERPR122222,$27.94 ,CHECK,1,IMPORTED,12/22/2022,1,1,$17.94 ,11-10101-5051-509202-500-000000000-000000,Local Travel,Employee - Expense Reimbursement
9021626,$27.94 ,12/30/2022,ISSUED,,"Aguilar, Karen",4555 Heron Dr,XpenseXpress,EERPR122222,$27.94 ,CHECK,2,IMPORTED,12/22/2022,2,1,$10.00 ,11-10101-5051-509202-500-000000000-000000,Local Travel,Employee - Expense Reimbursement
9021625,$125.00 ,12/30/2022,ISSUED,,"Aguilar, Jose",8613 Major Ave.,XpenseXpress,GEAR2022,$125.00 ,CHECK,1,IMPORTED,12/19/2022,1,1,$125.00 ,11-22107-0000-502142-300-000000000-000000,Other Fringe Benefits,Employee - Expense Reimbursement
9021624,$385.00 ,12/30/2022,ISSUED,,"Acosta, E. Ron",8519 Menard Ave.,XpenseXpress,TOOL2022,$385.00 ,CHECK,1,IMPORTED,12/13/2022,1,1,$385.00 ,11-22104-0000-502131-300-000000000-000000,Uniforms,Employee - Expense Reimbursement
9021623,"$6,923.94 ",12/27/2022,ISSUED,,Great West Life & Annuity Ins,Empower,Manual Invoice Entry,HQ122322,"$6,923.94 ",WIRE,2,MANUAL LINE ENTRY,12/22/2022,2,1,"$4,037.35 ",11-22106-0000-202106-000-000000000-000000,401K Withheld,401k/Pension EE/ER Contribution
9021623,"$6,923.94 ",12/27/2022,ISSUED,,Great West Life & Annuity Ins,Empower,Manual Invoice Entry,HQ122322,"$6,923.94 ",WIRE,1,MANUAL LINE ENTRY,12/22/2022,1,1,"$2,886.59 ",11-22101-0000-202106-000-000000000-000000,401K Withheld,401k/Pension EE/ER Contribution
9021622,"$42,907.00 ",12/27/2022,ISSUED,,Nexus Alpha Low Power Systems LTD,Natwest Putney,Manual Invoice Entry,1036,"$42,907.00 ",WIRE,2,HEADER MATCH,5/9/2022,2,1,"$21,617.00 ",11-10101-0000-111211-000-221205632-000000,"Equipment, Furniture & Fixtures",Equipment
9021622,"$42,907.00 ",12/27/2022,ISSUED,,Nexus Alpha Low Power Systems LTD,Natwest Putney,Manual Invoice Entry,1036,"$42,907.00 ",WIRE,1,HEADER MATCH,5/9/2022,1,1,"$21,290.00 ",11-10101-0000-111211-000-221205632-000000,"Equipment, Furniture & Fixtures",Equipment
9021621,"$18,526.00 ",12/27/2022,ISSUED,,Mesirow Insurance Services Inc,21000021,Manual Invoice Entry,2160487,$362.00 ,WIRE,1,HEADER MATCH,12/14/2022,1,1,$362.00 ,11-10101-2052-506801-501-000000000-000000,Premiums,Casualty and Liability
9021621,"$18,526.00 ",12/27/2022,ISSUED,,Mesirow Insurance Services Inc,21000021,Manual Invoice Entry,2160094,"$18,164.00 ",WIRE,1,HEADER MATCH,12/14/2022,1,1,"$18,164.00 ",11-10101-2052-506801-501-000000000-000000,Premiums,Casualty and Liability
9021620,"$3,992.47 ",12/27/2022,ISSUED,,Illinois Auto Central,5/3 Bank,Manual Invoice Entry,109376,"$3,992.47 ",WIRE,1,MANUAL LINE ENTRY,8/5/2022,1,1,"$3,992.47 ",11-22108-0000-504989-300-000000000-000000,Other Materials & Supplies,Materials and Supplies
9021619,"$5,500.00 ",12/22/2022,ISSUED,,9280-0366 Québec Inc dba Transit,26004093,Manual Invoice Entry,948,"$5,500.00 ",WIRE,1,HEADER MATCH,12/13/2022,1,1,"$5,500.00 ",11-10101-7402-503552-500-000000000-000000,Data Processing  Software Maintenance,Services
9021618,"$4,640.87 ",12/23/2022,ISSUED,,Village Bank and Trust,234 W Northwest Hwy,Manual Invoice Entry,BE122122,"$4,640.87 ",WIRE,1,MANUAL LINE ENTRY,12/22/2022,1,1,"$4,640.87 ",11-10101-0000-202109-000-000000000-000000,Flexible Spending Withheld,Payroll Deductions
9021617,"$15,064.25 ",12/23/2022,ISSUED,,Principal Financial Group,Butterfield Centre,Manual Invoice Entry,FV122322,"$15,064.25 ",WIRE,1,MANUAL LINE ENTRY,12/22/2022,1,1,"$15,064.25 ",11-22101-0000-202107-000-000000000-000000,Pension Withheld,401k/Pension EE/ER Contribution
9021616,"$28,116.54 ",12/23/2022,ISSUED,,Principal Financial Group,Butterfield Centre,Manual Invoice Entry,RV122322,"$28,116.54 ",WIRE,1,MANUAL LINE ENTRY,12/22/2022,1,1,"$28,116.54 ",11-22106-0000-202107-000-000000000-000000,Pension Withheld,401k/Pension EE/ER Contribution
9021615,"$1,689.50 ",12/23/2022,ISSUED,,Aurora Policeman's Credit Union,1200 E Indian Trail,Manual Invoice Entry,AP122322,"$1,689.50 ",WIRE,1,MANUAL LINE ENTRY,12/22/2022,1,1,"$1,689.50 ",11-22101-0000-202102-000-000000000-000000,Credit Union Withheld,Payroll Deductions
9021614,"$130,697.75 ",12/23/2022,ISSUED,,Yellow Cab Association Inc,*,Manual Invoice Entry,111622TAP20200,"$20,694.50 ",EFT,1,HEADER MATCH,12/21/2022,1,1,"$20,694.50 ",51-58201-0000-508101-500-000000000-000000,Purchased Transportation,Purchased Transportation
9021614,"$130,697.75 ",12/23/2022,ISSUED,,Yellow Cab Association Inc,*,Manual Invoice Entry,111722TAP20201,"$21,223.75 ",EFT,1,HEADER MATCH,12/21/2022,1,1,"$21,223.75 ",51-58201-0000-508101-500-000000000-000000,Purchased Transportation,Purchased Transportation
9021614,"$130,697.75 ",12/23/2022,ISSUED,,Yellow Cab Association Inc,*,Manual Invoice Entry,112222TAP20205,"$21,353.00 ",EFT,1,HEADER MATCH,12/21/2022,1,1,"$21,353.00 ",51-58201-0000-508101-500-000000000-000000,Purchased Transportation,Purchased Transportation
9021614,"$130,697.75 ",12/23/2022,ISSUED,,Yellow Cab Association Inc,*,Manual Invoice Entry,112022TAP20203,"$27,215.25 ",EFT,1,HEADER MATCH,12/21/2022,1,1,"$27,215.25 ",51-58201-0000-508101-500-000000000-000000,Purchased Transportation,Purchased Transportation
9021614,"$130,697.75 ",12/23/2022,ISSUED,,Yellow Cab Association Inc,*,Manual Invoice Entry,112122TAP20204,"$20,886.50 ",EFT,1,HEADER MATCH,12/21/2022,1,1,"$20,886.50 ",51-58201-0000-508101-500-000000000-000000,Purchased Transportation,Purchased Transportation
9021614,"$130,697.75 ",12/23/2022,ISSUED,,Yellow Cab Association Inc,*,Manual Invoice Entry,111822TAP20202,"$19,324.75 ",EFT,1,HEADER MATCH,12/21/2022,1,1,"$19,324.75 ",51-58201-0000-508101-500-000000000-000000,Purchased Transportation,Purchased Transportation
9021613,$219.04 ,12/23/2022,ISSUED,,Flash Cab Company,71923909,Manual Invoice Entry,121422MD73371,$219.04 ,WIRE,1,HEADER MATCH,12/21/2022,1,1,$219.04 ,51-58301-0000-508101-500-000000000-000000,Purchased Transportation,Purchased Transportation
9021612,"$90,610.00 ",12/21/2022,ISSUED,,Federal Transit Administration,.,Manual Invoice Entry,LP923875,"$90,610.00 ",WIRE,1,MANUAL LINE ENTRY,12/7/2022,1,1,"$90,610.00 ",11-10101-0000-201205-000-000000000-000000,Due to FTA/RTA/IDOT,FTA/RTA/IDOT Reimbursement
9021611,"$16,926.51 ",12/21/2022,ISSUED,,Charles Taylor TPA LLC fka Underwriters Safety & Claims,PO Box 23790,Manual Invoice Entry,WC12202022,"$16,926.51 ",WIRE,1,MANUAL LINE ENTRY,12/20/2022,1,1,"$16,926.51 ",11-10101-0000-101204-000-000000000-000000,Workers Compensation Claims Account,Claims
9021610,"$109,874.50 ",12/21/2022,ISSUED,,Yellow Cab Association Inc,*,Manual Invoice Entry,111422TAP20198,"$20,921.50 ",EFT,1,HEADER MATCH,12/19/2022,1,1,"$20,921.50 ",51-58201-0000-508101-500-000000000-000000,Purchased Transportation,Purchased Transportation
9021610,"$109,874.50 ",12/21/2022,ISSUED,,Yellow Cab Association Inc,*,Manual Invoice Entry,110822TAP20193,"$20,197.75 ",EFT,1,HEADER MATCH,12/15/2022,1,1,"$20,197.75 ",51-58201-0000-508101-500-000000000-000000,Purchased Transportation,Purchased Transportation
9021610,"$109,874.50 ",12/21/2022,ISSUED,,Yellow Cab Association Inc,*,Manual Invoice Entry,111522TAP20199,"$20,175.75 ",EFT,1,HEADER MATCH,12/19/2022,1,1,"$20,175.75 ",51-58201-0000-508101-500-000000000-000000,Purchased Transportation,Purchased Transportation
9021610,"$109,874.50 ",12/21/2022,ISSUED,,Yellow Cab Association Inc,*,Manual Invoice Entry,111322TAP20197,"$26,888.25 ",EFT,1,HEADER MATCH,12/19/2022,1,1,"$26,888.25 ",51-58201-0000-508101-500-000000000-000000,Purchased Transportation,Purchased Transportation
9021610,"$109,874.50 ",12/21/2022,ISSUED,,Yellow Cab Association Inc,*,Manual Invoice Entry,111022TAP20195,"$21,691.25 ",EFT,1,HEADER MATCH,12/15/2022,1,1,"$21,691.25 ",51-58201-0000-508101-500-000000000-000000,Purchased Transportation,Purchased Transportation
9021609,$189.00 ,12/20/2022,ISSUED,,Pitney Bowes,4300261,Manual Invoice Entry,1022127177,$189.00 ,WIRE,1,MANUAL LINE ENTRY,12/12/2022,1,1,$189.00 ,11-22108-0000-503991-500-000000000-000000,Other Services,Services
9021608,"$109,107.45 ",12/20/2022,ISSUED,,Flash Cab Company,71923909,Manual Invoice Entry,102622TAP73028,"$109,107.45 ",WIRE,1,HEADER MATCH,12/14/2022,1,1,"$109,107.45 ",51-58201-0000-508101-500-000000000-000000,Purchased Transportation,Purchased Transportation
9021607,"$27,000.00 ",12/19/2022,ISSUED,,MissionSquare Retirement,ABA# 011000028,Manual Invoice Entry,HQ121622,"$27,000.00 ",WIRE,1,MANUAL LINE ENTRY,12/16/2022,1,1,"$27,000.00 ",11-10101-0000-202106-000-000000000-000000,401K Withheld,401k/Pension EE/ER Contribution
9021606,"$1,200,000.00 ",12/19/2022,ISSUED,,The Huntington National Bank,Equipment Finance Division,Manual Invoice Entry,121522PRCPLPYMT,"$1,200,000.00 ",WIRE,1,MANUAL LINE ENTRY,12/8/2022,1,1,"$1,200,000.00 ",11-10101-0000-221201-000-000000000-000000,Bonds Payable - Long Term,Bond Payment
9021605,"$59,700.00 ",12/19/2022,ISSUED,,The Huntington National Bank,Equipment Finance Division,Manual Invoice Entry,121522INTPYMT,"$59,700.00 ",WIRE,1,MANUAL LINE ENTRY,12/15/2022,1,1,"$59,700.00 ",11-10101-0000-205601-000-000000000-000000,Interest Payable,Bond Payment
9021604,"$89,937.49 ",12/19/2022,ISSUED,,Great West Life & Annuity Ins,Empower,Manual Invoice Entry,HQ121622,"$89,937.49 ",WIRE,4,MANUAL LINE ENTRY,12/15/2022,4,1,"$3,417.41 ",11-22102-0000-202106-000-000000000-000000,401K Withheld,401k/Pension EE/ER Contribution
9021604,"$89,937.49 ",12/19/2022,ISSUED,,Great West Life & Annuity Ins,Empower,Manual Invoice Entry,HQ121622,"$89,937.49 ",WIRE,6,MANUAL LINE ENTRY,12/15/2022,6,1,"$6,467.83 ",11-22104-0000-202106-000-000000000-000000,401K Withheld,401k/Pension EE/ER Contribution
9021604,"$89,937.49 ",12/19/2022,ISSUED,,Great West Life & Annuity Ins,Empower,Manual Invoice Entry,HQ121622,"$89,937.49 ",WIRE,8,MANUAL LINE ENTRY,12/15/2022,8,1,"$65,852.77 ",11-10101-0000-202106-000-000000000-000000,401K Withheld,401k/Pension EE/ER Contribution
9021604,"$89,937.49 ",12/19/2022,ISSUED,,Great West Life & Annuity Ins,Empower,Manual Invoice Entry,HQ121622,"$89,937.49 ",WIRE,1,MANUAL LINE ENTRY,12/15/2022,1,1,"$1,841.93 ",11-22103-0000-202106-000-000000000-000000,401K Withheld,401k/Pension EE/ER Contribution
9021604,"$89,937.49 ",12/19/2022,ISSUED,,Great West Life & Annuity Ins,Empower,Manual Invoice Entry,HQ121622,"$89,937.49 ",WIRE,5,MANUAL LINE ENTRY,12/15/2022,5,1,"$3,940.81 ",11-22109-0000-202106-000-000000000-000000,401K Withheld,401k/Pension EE/ER Contribution
9021604,"$89,937.49 ",12/19/2022,ISSUED,,Great West Life & Annuity Ins,Empower,Manual Invoice Entry,HQ121622,"$89,937.49 ",WIRE,3,MANUAL LINE ENTRY,12/15/2022,3,1,"$3,119.97 ",11-22108-0000-202106-000-000000000-000000,401K Withheld,401k/Pension EE/ER Contribution
9021604,"$89,937.49 ",12/19/2022,ISSUED,,Great West Life & Annuity Ins,Empower,Manual Invoice Entry,HQ121622,"$89,937.49 ",WIRE,2,MANUAL LINE ENTRY,12/15/2022,2,1,"$3,287.55 ",11-22107-0000-202106-000-000000000-000000,401K Withheld,401k/Pension EE/ER Contribution
9021604,"$89,937.49 ",12/19/2022,ISSUED,,Great West Life & Annuity Ins,Empower,Manual Invoice Entry,HQ121622,"$89,937.49 ",WIRE,7,MANUAL LINE ENTRY,12/15/2022,7,1,"$2,009.22 ",11-22105-0000-202106-000-000000000-000000,401K Withheld,401k/Pension EE/ER Contribution
9021603,$370.00 ,12/23/2022,ISSUED,,"Jashari, Muamer",742 Medford Dr.,XpenseXpress,TOOL2022,$370.00 ,CHECK,1,IMPORTED,12/6/2022,1,1,$370.00 ,11-22106-0000-502131-300-000000000-000000,Uniforms,Employee - Expense Reimbursement
9021602,$271.72 ,12/23/2022,ISSUED,,"Good, Joshua D.",828 Hemlock Dr.,XpenseXpress,TOOL2022,$271.72 ,CHECK,1,IMPORTED,12/15/2022,1,1,$271.72 ,11-22106-0000-502131-300-000000000-000000,Uniforms,Employee - Expense Reimbursement
9021601,$370.00 ,12/23/2022,ISSUED,,"Diaz, Alejandro",400 Jefferson Ave.,XpenseXpress,TOOL2022,$370.00 ,CHECK,1,IMPORTED,12/15/2022,1,1,$370.00 ,11-22106-0000-502131-300-000000000-000000,Uniforms,Employee - Expense Reimbursement
9021600,$87.50 ,12/16/2022,ISSUED,,Edenred Commuter Benefit Solutions LLC,Edenred USA,Manual Invoice Entry,723246,$87.50 ,WIRE,1,MANUAL LINE ENTRY,12/16/2022,1,1,$87.50 ,11-10101-0000-202114-000-000000000-000000,Commuter Benefits Withheld,Payroll Deductions
9021599,"$92,615.52 ",12/16/2022,ISSUED,,Principal Financial Group,1210002848,Manual Invoice Entry,WE121622,"$92,615.52 ",WIRE,1,MANUAL LINE ENTRY,12/15/2022,1,1,"$92,615.52 ",11-22109-0000-202107-000-000000000-000000,Pension Withheld,401k/Pension EE/ER Contribution
9021598,"$15,638.17 ",12/16/2022,ISSUED,,Principal Financial Group,1210002848,Manual Invoice Entry,NO121622,"$15,638.17 ",WIRE,1,MANUAL LINE ENTRY,12/15/2022,1,1,"$15,638.17 ",11-22103-0000-202107-000-000000000-000000,Pension Withheld,401k/Pension EE/ER Contribution
9021597,"$24,724.02 ",12/16/2022,ISSUED,,Principal Financial Group,Butterfield Centre,Manual Invoice Entry,SW121622,"$24,724.02 ",WIRE,1,MANUAL LINE ENTRY,12/15/2022,1,1,"$24,724.02 ",11-22108-0000-202107-000-000000000-000000,Pension Withheld,401k/Pension EE/ER Contribution
9021596,"$76,310.00 ",12/16/2022,ISSUED,,Principal Financial Group,Butterfield Centre,Manual Invoice Entry,SO121622,"$76,310.00 ",WIRE,1,MANUAL LINE ENTRY,12/15/2022,1,1,"$76,310.00 ",11-22107-0000-202107-000-000000000-000000,Pension Withheld,401k/Pension EE/ER Contribution
9021595,"$81,316.27 ",12/16/2022,ISSUED,,Principal Financial Group,Butterfield Centre,Manual Invoice Entry,NW121622,"$81,316.27 ",WIRE,1,MANUAL LINE ENTRY,12/15/2022,1,1,"$81,316.27 ",11-22104-0000-202107-000-000000000-000000,Pension Withheld,401k/Pension EE/ER Contribution
9021594,"$16,616.78 ",12/16/2022,ISSUED,,Principal Financial Group,Butterfield Centre,Manual Invoice Entry,NS121622,"$16,616.78 ",WIRE,1,MANUAL LINE ENTRY,12/15/2022,1,1,"$16,616.78 ",11-22105-0000-202107-000-000000000-000000,Pension Withheld,401k/Pension EE/ER Contribution
9021593,"$17,420.34 ",12/16/2022,ISSUED,,Principal Financial Group,Butterfield Centre,Manual Invoice Entry,HE121622,"$17,420.34 ",WIRE,1,MANUAL LINE ENTRY,12/15/2022,1,1,"$17,420.34 ",11-22102-0000-202107-000-000000000-000000,Pension Withheld,401k/Pension EE/ER Contribution
9021592,$600.00 ,12/16/2022,ISSUED,,United Credit Union,4444 S Pulaski,Manual Invoice Entry,UC121622,$600.00 ,WIRE,2,MANUAL LINE ENTRY,12/15/2022,2,1,$50.00 ,11-10101-0000-202102-000-000000000-000000,Credit Union Withheld,Payroll Deductions
9021592,$600.00 ,12/16/2022,ISSUED,,United Credit Union,4444 S Pulaski,Manual Invoice Entry,UC121622,$600.00 ,WIRE,1,MANUAL LINE ENTRY,12/15/2022,1,1,$550.00 ,11-22108-0000-202102-000-000000000-000000,Credit Union Withheld,Payroll Deductions
9021591,"$45,074.72 ",12/16/2022,ISSUED,,Northside L Federal C U - West Town,1419 W Roosevelt Rd,Manual Invoice Entry,NL121622,"$45,074.72 ",WIRE,3,MANUAL LINE ENTRY,12/15/2022,3,1,$62.00 ,11-22105-0000-202102-000-000000000-000000,Credit Union Withheld,Payroll Deductions
9021591,"$45,074.72 ",12/16/2022,ISSUED,,Northside L Federal C U - West Town,1419 W Roosevelt Rd,Manual Invoice Entry,NL121622,"$45,074.72 ",WIRE,5,MANUAL LINE ENTRY,12/15/2022,5,1,"$1,425.00 ",11-22108-0000-202102-000-000000000-000000,Credit Union Withheld,Payroll Deductions
9021591,"$45,074.72 ",12/16/2022,ISSUED,,Northside L Federal C U - West Town,1419 W Roosevelt Rd,Manual Invoice Entry,NL121622,"$45,074.72 ",WIRE,1,MANUAL LINE ENTRY,12/15/2022,1,1,$890.00 ,11-10101-0000-202102-000-000000000-000000,Credit Union Withheld,Payroll Deductions
9021591,"$45,074.72 ",12/16/2022,ISSUED,,Northside L Federal C U - West Town,1419 W Roosevelt Rd,Manual Invoice Entry,NL121622,"$45,074.72 ",WIRE,2,MANUAL LINE ENTRY,12/15/2022,2,1,"$12,346.23 ",11-22107-0000-202102-000-000000000-000000,Credit Union Withheld,Payroll Deductions
9021591,"$45,074.72 ",12/16/2022,ISSUED,,Northside L Federal C U - West Town,1419 W Roosevelt Rd,Manual Invoice Entry,NL121622,"$45,074.72 ",WIRE,4,MANUAL LINE ENTRY,12/15/2022,4,1,"$2,651.00 ",11-22104-0000-202102-000-000000000-000000,Credit Union Withheld,Payroll Deductions
9021591,"$45,074.72 ",12/16/2022,ISSUED,,Northside L Federal C U - West Town,1419 W Roosevelt Rd,Manual Invoice Entry,NL121622,"$45,074.72 ",WIRE,6,MANUAL LINE ENTRY,12/15/2022,6,1,"$27,700.49 ",11-22109-0000-202102-000-000000000-000000,Credit Union Withheld,Payroll Deductions
9021590,"$1,836.00 ",12/16/2022,ISSUED,,Amalgamated Transit Union,Division 900,Manual Invoice Entry,AT121622,"$1,836.00 ",WIRE,1,MANUAL LINE ENTRY,12/15/2022,1,1,"$1,836.00 ",11-22103-0000-202111-000-000000000-000000,Union Dues Withheld,Payroll Deductions
9021589,"$1,371.00 ",12/16/2022,ISSUED,,Abri Credit Union,1350 W Renwick Rd,Manual Invoice Entry,PT121622,"$1,371.00 ",WIRE,2,MANUAL LINE ENTRY,12/15/2022,2,1,$525.00 ,11-22102-0000-202102-000-000000000-000000,Credit Union Withheld,Payroll Deductions
9021589,"$1,371.00 ",12/16/2022,ISSUED,,Abri Credit Union,1350 W Renwick Rd,Manual Invoice Entry,PT121622,"$1,371.00 ",WIRE,1,MANUAL LINE ENTRY,12/15/2022,1,1,$846.00 ,11-10101-0000-202102-000-000000000-000000,Credit Union Withheld,Payroll Deductions
9021588,"$6,705.52 ",12/16/2022,ISSUED,,Village Bank and Trust,234 W Northwest Hwy,Manual Invoice Entry,BE121622,"$6,705.52 ",WIRE,1,MANUAL LINE ENTRY,12/15/2022,1,1,"$6,705.52 ",11-10101-0000-202109-000-000000000-000000,Flexible Spending Withheld,Payroll Deductions
9021587,"$133,153.80 ",12/15/2022,ISSUED,,Yellow Cab Association Inc,*,Manual Invoice Entry,103022TAP20185,"$26,685.00 ",EFT,1,HEADER MATCH,12/12/2022,1,1,"$26,685.00 ",51-58201-0000-508101-500-000000000-000000,Purchased Transportation,Purchased Transportation
9021587,"$133,153.80 ",12/15/2022,ISSUED,,Yellow Cab Association Inc,*,Manual Invoice Entry,102822TAP20184,"$19,644.50 ",EFT,1,HEADER MATCH,12/12/2022,1,1,"$19,644.50 ",51-58201-0000-508101-500-000000000-000000,Purchased Transportation,Purchased Transportation
9021587,"$133,153.80 ",12/15/2022,ISSUED,,Yellow Cab Association Inc,*,Manual Invoice Entry,110222TAP20188,"$21,948.30 ",EFT,1,HEADER MATCH,12/13/2022,1,1,"$21,948.30 ",51-58201-0000-508101-500-000000000-000000,Purchased Transportation,Purchased Transportation
9021587,"$133,153.80 ",12/15/2022,ISSUED,,Yellow Cab Association Inc,*,Manual Invoice Entry,110122TAP20187,"$22,727.75 ",EFT,1,HEADER MATCH,12/13/2022,1,1,"$22,727.75 ",51-58201-0000-508101-500-000000000-000000,Purchased Transportation,Purchased Transportation
9021587,"$133,153.80 ",12/15/2022,ISSUED,,Yellow Cab Association Inc,*,Manual Invoice Entry,103122TAP20186,"$19,861.50 ",EFT,1,HEADER MATCH,12/13/2022,1,1,"$19,861.50 ",51-58201-0000-508101-500-000000000-000000,Purchased Transportation,Purchased Transportation
9021587,"$133,153.80 ",12/15/2022,ISSUED,,Yellow Cab Association Inc,*,Manual Invoice Entry,110322TAP20189,"$22,286.75 ",EFT,1,HEADER MATCH,12/13/2022,1,1,"$22,286.75 ",51-58201-0000-508101-500-000000000-000000,Purchased Transportation,Purchased Transportation
9021586,"$9,044.86 ",12/15/2022,ISSUED,,Village Bank and Trust,234 W Northwest Hwy,Manual Invoice Entry,BE121522,"$9,044.86 ",WIRE,1,MANUAL LINE ENTRY,12/14/2022,1,1,"$9,044.86 ",11-10101-0000-202109-000-000000000-000000,Flexible Spending Withheld,Payroll Deductions
9021585,"$31,774.00 ",12/14/2022,ISSUED,,Federal Transit Administration,.,Manual Invoice Entry,LP923129,"$31,774.00 ",WIRE,1,MANUAL LINE ENTRY,12/7/2022,1,1,"$31,774.00 ",11-10101-0000-201205-000-000000000-000000,Due to FTA/RTA/IDOT,FTA/RTA/IDOT Reimbursement
9021584,"$238,715.89 ",12/14/2022,ISSUED,,Flash Cab Company,71923909,Manual Invoice Entry,101922TAP73021,"$113,272.49 ",WIRE,1,HEADER MATCH,12/8/2022,1,1,"$113,272.49 ",51-58201-0000-508101-500-000000000-000000,Purchased Transportation,Purchased Transportation
9021584,"$238,715.89 ",12/14/2022,ISSUED,,Flash Cab Company,71923909,Manual Invoice Entry,102322TAP73023,"$125,443.40 ",WIRE,1,HEADER MATCH,12/12/2022,1,1,"$125,443.40 ",51-58201-0000-508101-500-000000000-000000,Purchased Transportation,Purchased Transportation
9021583,"$423,650.07 ",12/14/2022,ISSUED,,Cook DuPage Transportation Co,1200 W Fulton St,Manual Invoice Entry,OCT'2022-SC,"$423,650.07 ",WIRE,3,MANUAL LINE ENTRY,11/30/2022,3,7,"($2,463.00)",11-10101-5311-509913-501-000000000-000000,General Expense,Miscellaneous
9021583,"$423,650.07 ",12/14/2022,ISSUED,,Cook DuPage Transportation Co,1200 W Fulton St,Manual Invoice Entry,OCT'2022-SC,"$423,650.07 ",WIRE,3,MANUAL LINE ENTRY,11/30/2022,3,8,"$5,716.75 ",51-59101-0000-205116-000-000000000-000000,Deferred ADA Ventra Revenue,Purchased Transportation
9021583,"$423,650.07 ",12/14/2022,ISSUED,,Cook DuPage Transportation Co,1200 W Fulton St,Manual Invoice Entry,OCT'2022-SC,"$423,650.07 ",WIRE,3,MANUAL LINE ENTRY,11/30/2022,3,11,"($19,989.25)",51-57201-0000-401101-100-000000000-000000,Passenger Fares,Purchased Transportation
9021583,"$423,650.07 ",12/14/2022,ISSUED,,Cook DuPage Transportation Co,1200 W Fulton St,Manual Invoice Entry,OCT'2022-SC,"$423,650.07 ",WIRE,3,MANUAL LINE ENTRY,11/30/2022,3,12,"($20,899.00)",51-57201-0000-401101-100-000000000-000000,Passenger Fares,Purchased Transportation
9021583,"$423,650.07 ",12/14/2022,ISSUED,,Cook DuPage Transportation Co,1200 W Fulton St,Manual Invoice Entry,OCT'2022-SC,"$423,650.07 ",WIRE,3,MANUAL LINE ENTRY,11/30/2022,3,16,$0.00 ,51-57201-0000-401101-100-000000000-000000,Passenger Fares,Purchased Transportation
9021583,"$423,650.07 ",12/14/2022,ISSUED,,Cook DuPage Transportation Co,1200 W Fulton St,Manual Invoice Entry,OCT'2022-SC,"$423,650.07 ",WIRE,3,MANUAL LINE ENTRY,11/30/2022,3,4,"$2,493.95 ",51-57201-0000-508101-500-000000000-000000,Purchased Transportation,Purchased Transportation
9021583,"$423,650.07 ",12/14/2022,ISSUED,,Cook DuPage Transportation Co,1200 W Fulton St,Manual Invoice Entry,OCT'2022-SC,"$423,650.07 ",WIRE,3,MANUAL LINE ENTRY,11/30/2022,3,23,"$18,208.83 ",51-57201-0000-508101-500-000000000-000000,Purchased Transportation,Purchased Transportation
9021583,"$423,650.07 ",12/14/2022,ISSUED,,Cook DuPage Transportation Co,1200 W Fulton St,Manual Invoice Entry,OCT'2022-SC,"$423,650.07 ",WIRE,3,MANUAL LINE ENTRY,11/30/2022,3,19,"($264,552.04)",51-57201-0000-508101-500-000000000-000000,Purchased Transportation,Purchased Transportation
9021583,"$423,650.07 ",12/14/2022,ISSUED,,Cook DuPage Transportation Co,1200 W Fulton St,Manual Invoice Entry,OCT'2022-SC,"$423,650.07 ",WIRE,1,HEADER MATCH,11/30/2022,1,1,"$423,650.07 ",51-57201-0000-508101-500-000000000-000000,Purchased Transportation,Purchased Transportation
9021583,"$423,650.07 ",12/14/2022,ISSUED,,Cook DuPage Transportation Co,1200 W Fulton St,Manual Invoice Entry,OCT'2022-SC,"$423,650.07 ",WIRE,2,MANUAL LINE ENTRY,11/30/2022,2,1,"($423,650.07)",51-57201-0000-508101-500-000000000-000000,Purchased Transportation,Purchased Transportation
9021583,"$423,650.07 ",12/14/2022,ISSUED,,Cook DuPage Transportation Co,1200 W Fulton St,Manual Invoice Entry,OCT'2022-SC,"$423,650.07 ",WIRE,3,MANUAL LINE ENTRY,11/30/2022,3,1,"$675,803.22 ",51-57201-0000-508101-500-000000000-000000,Purchased Transportation,Purchased Transportation
9021583,"$423,650.07 ",12/14/2022,ISSUED,,Cook DuPage Transportation Co,1200 W Fulton St,Manual Invoice Entry,OCT'2022-SC,"$423,650.07 ",WIRE,3,MANUAL LINE ENTRY,11/30/2022,3,24,$85.03 ,51-57201-0000-508101-500-000000000-000000,Purchased Transportation,Purchased Transportation
9021583,"$423,650.07 ",12/14/2022,ISSUED,,Cook DuPage Transportation Co,1200 W Fulton St,Manual Invoice Entry,OCT'2022-SC,"$423,650.07 ",WIRE,3,MANUAL LINE ENTRY,11/30/2022,3,20,($976.29),51-57201-0000-508101-500-000000000-000000,Purchased Transportation,Purchased Transportation
9021583,"$423,650.07 ",12/14/2022,ISSUED,,Cook DuPage Transportation Co,1200 W Fulton St,Manual Invoice Entry,OCT'2022-SC,"$423,650.07 ",WIRE,3,MANUAL LINE ENTRY,11/30/2022,3,17,$0.00 ,11-53112-0000-508101-500-000000000-000000,Purchased Transportation,Purchased Transportation
9021583,"$423,650.07 ",12/14/2022,ISSUED,,Cook DuPage Transportation Co,1200 W Fulton St,Manual Invoice Entry,OCT'2022-SC,"$423,650.07 ",WIRE,3,MANUAL LINE ENTRY,11/30/2022,3,25,$102.50 ,11-53112-0000-508101-500-000000000-000000,Purchased Transportation,Purchased Transportation
9021583,"$423,650.07 ",12/14/2022,ISSUED,,Cook DuPage Transportation Co,1200 W Fulton St,Manual Invoice Entry,OCT'2022-SC,"$423,650.07 ",WIRE,3,MANUAL LINE ENTRY,11/30/2022,3,21,"($1,093.02)",11-53112-0000-401101-100-000000000-000000,Passenger Fares,Purchased Transportation
9021583,"$423,650.07 ",12/14/2022,ISSUED,,Cook DuPage Transportation Co,1200 W Fulton St,Manual Invoice Entry,OCT'2022-SC,"$423,650.07 ",WIRE,3,MANUAL LINE ENTRY,11/30/2022,3,5,"$2,792.14 ",11-53112-0000-401101-100-000000000-000000,Passenger Fares,Purchased Transportation
9021583,"$423,650.07 ",12/14/2022,ISSUED,,Cook DuPage Transportation Co,1200 W Fulton St,Manual Invoice Entry,OCT'2022-SC,"$423,650.07 ",WIRE,3,MANUAL LINE ENTRY,11/30/2022,3,22,"($9,652.27)",11-53153-0000-508101-500-000000000-000000,Purchased Transportation,Purchased Transportation
9021583,"$423,650.07 ",12/14/2022,ISSUED,,Cook DuPage Transportation Co,1200 W Fulton St,Manual Invoice Entry,OCT'2022-SC,"$423,650.07 ",WIRE,3,MANUAL LINE ENTRY,11/30/2022,3,6,"$24,656.91 ",11-53153-0000-508101-500-000000000-000000,Purchased Transportation,Purchased Transportation
9021583,"$423,650.07 ",12/14/2022,ISSUED,,Cook DuPage Transportation Co,1200 W Fulton St,Manual Invoice Entry,OCT'2022-SC,"$423,650.07 ",WIRE,3,MANUAL LINE ENTRY,11/30/2022,3,26,$615.11 ,11-53153-0000-508101-500-000000000-000000,Purchased Transportation,Purchased Transportation
9021583,"$423,650.07 ",12/14/2022,ISSUED,,Cook DuPage Transportation Co,1200 W Fulton St,Manual Invoice Entry,OCT'2022-SC,"$423,650.07 ",WIRE,3,MANUAL LINE ENTRY,11/30/2022,3,18,"($1,472.00)",11-53153-0000-401101-100-000000000-000000,Passenger Fares,Purchased Transportation
9021583,"$423,650.07 ",12/14/2022,ISSUED,,Cook DuPage Transportation Co,1200 W Fulton St,Manual Invoice Entry,OCT'2022-SC,"$423,650.07 ",WIRE,3,MANUAL LINE ENTRY,11/30/2022,3,3,$0.00 ,11-54202-0000-508102-500-000000000-000000,Call Center Expansion Costs,Purchased Transportation
9021583,"$423,650.07 ",12/14/2022,ISSUED,,Cook DuPage Transportation Co,1200 W Fulton St,Manual Invoice Entry,OCT'2022-SC,"$423,650.07 ",WIRE,3,MANUAL LINE ENTRY,11/30/2022,3,15,$0.00 ,11-54202-0000-508102-500-000000000-000000,Call Center Expansion Costs,Purchased Transportation
9021583,"$423,650.07 ",12/14/2022,ISSUED,,Cook DuPage Transportation Co,1200 W Fulton St,Manual Invoice Entry,OCT'2022-SC,"$423,650.07 ",WIRE,3,MANUAL LINE ENTRY,11/30/2022,3,10,"$19,989.25 ",51-59101-0000-205104-000-000000000-000000,Unredeemed Paratransit Fares,Purchased Transportation
9021583,"$423,650.07 ",12/14/2022,ISSUED,,Cook DuPage Transportation Co,1200 W Fulton St,Manual Invoice Entry,OCT'2022-SC,"$423,650.07 ",WIRE,3,MANUAL LINE ENTRY,11/30/2022,3,2,$0.00 ,51-57201-0000-508102-500-000000000-000000,Call Center Expansion Costs,Purchased Transportation
9021583,"$423,650.07 ",12/14/2022,ISSUED,,Cook DuPage Transportation Co,1200 W Fulton St,Manual Invoice Entry,OCT'2022-SC,"$423,650.07 ",WIRE,3,MANUAL LINE ENTRY,11/30/2022,3,13,$0.00 ,51-57201-0000-508102-500-000000000-000000,Call Center Expansion Costs,Purchased Transportation
9021583,"$423,650.07 ",12/14/2022,ISSUED,,Cook DuPage Transportation Co,1200 W Fulton St,Manual Invoice Entry,OCT'2022-SC,"$423,650.07 ",WIRE,3,MANUAL LINE ENTRY,11/30/2022,3,14,$0.00 ,51-57201-0000-508102-500-000000000-000000,Call Center Expansion Costs,Purchased Transportation
9021583,"$423,650.07 ",12/14/2022,ISSUED,,Cook DuPage Transportation Co,1200 W Fulton St,Manual Invoice Entry,OCT'2022-SC,"$423,650.07 ",WIRE,3,MANUAL LINE ENTRY,11/30/2022,3,9,"($5,716.75)",51-57201-0000-401101-100-000000000-000000,Passenger Fares,Purchased Transportation
9021582,"$3,395.75 ",12/14/2022,ISSUED,,Charles Taylor TPA LLC fka Underwriters Safety & Claims,*,Manual Invoice Entry,WC12132022,"$3,395.75 ",EFT,1,MANUAL LINE ENTRY,12/13/2022,1,1,"$3,395.75 ",11-10101-0000-101204-000-000000000-000000,Workers Compensation Claims Account,Claims
9021581,"$43,612.50 ",12/13/2022,ISSUED,,Federal Transit Administration,.,Manual Invoice Entry,LP918927,"$43,612.50 ",WIRE,1,MANUAL LINE ENTRY,11/28/2022,1,1,"$43,612.50 ",11-10101-0000-201205-000-000000000-000000,Due to FTA/RTA/IDOT,FTA/RTA/IDOT Reimbursement
9021580,$800.00 ,12/14/2022,ISSUED,,Reserve Account,043 000 261,Manual Invoice Entry,26078121-2211,$800.00 ,WIRE,1,MANUAL LINE ENTRY,11/9/2022,1,1,$800.00 ,11-22107-0000-504989-200-000000000-000000,Other Materials & Supplies,Materials and Supplies
9021579,"$911,644.96 ",12/13/2022,ISSUED,,Path Construction Company,"Wheaton Bank & Trust, N.A.",Manual Invoice Entry,232351-08,"$911,644.96 ",WIRE,1,HEADER MATCH,11/28/2022,1,1,"$27,000.00 ",11-10101-0000-111211-000-216075017-000000,"Equipment, Furniture & Fixtures",Equipment
9021579,"$911,644.96 ",12/13/2022,ISSUED,,Path Construction Company,"Wheaton Bank & Trust, N.A.",Manual Invoice Entry,232351-08,"$911,644.96 ",WIRE,3,HEADER MATCH,11/28/2022,3,1,"$27,000.00 ",11-10101-0000-111211-000-216075017-000000,"Equipment, Furniture & Fixtures",Equipment
9021579,"$911,644.96 ",12/13/2022,ISSUED,,Path Construction Company,"Wheaton Bank & Trust, N.A.",Manual Invoice Entry,232351-08,"$911,644.96 ",WIRE,4,HEADER MATCH,11/28/2022,4,1,"$526,119.01 ",11-10101-0000-111251-000-218044953-000000,Buildings and Improvements,Building/Bldg Improvement
9021579,"$911,644.96 ",12/13/2022,ISSUED,,Path Construction Company,"Wheaton Bank & Trust, N.A.",Manual Invoice Entry,232351-08,"$911,644.96 ",WIRE,5,HEADER MATCH,11/28/2022,5,1,"$125,359.20 ",11-10101-0000-111251-000-218044953-000000,Buildings and Improvements,Building/Bldg Improvement
9021579,"$911,644.96 ",12/13/2022,ISSUED,,Path Construction Company,"Wheaton Bank & Trust, N.A.",Manual Invoice Entry,232351-08,"$911,644.96 ",WIRE,2,HEADER MATCH,11/28/2022,2,1,"$186,625.89 ",11-10101-0000-111251-000-218044953-000000,Buildings and Improvements,Building/Bldg Improvement
9021579,"$911,644.96 ",12/13/2022,ISSUED,,Path Construction Company,"Wheaton Bank & Trust, N.A.",Manual Invoice Entry,232351-08,"$911,644.96 ",WIRE,6,HEADER MATCH,11/28/2022,6,1,"$19,540.86 ",11-10101-0000-111251-000-221204953-000000,Buildings and Improvements,Building/Bldg Improvement
9021578,"$1,307.30 ",12/12/2022,ISSUED,,Illinois Auto Central,5/3 Bank,Manual Invoice Entry,116557,"$1,307.30 ",WIRE,1,HEADER MATCH,11/7/2022,1,1,"$1,307.30 ",11-22104-0000-201202-000-000000000-000000,Liability for Parts,Fuel/Parts Inventory
9021577,"$11,134.81 ",12/13/2022,ISSUED,,CTI USA Inc dba Globe Ticket Company,Bank of America NA,Manual Invoice Entry,400519,"$11,134.81 ",WIRE,1,HEADER MATCH,11/15/2022,1,1,"$11,134.81 ",11-10101-7352-504951-501-000000000-000000,Monthly Pass Printing,Materials and Supplies
9021576,$405.00 ,12/16/2022,ISSUED,,"Wyatt, Anthony E",16W755 Mockingbird Ln.,XpenseXpress,TOOL2022,$405.00 ,CHECK,1,IMPORTED,12/5/2022,1,1,$405.00 ,11-22109-0000-502142-300-000000000-000000,Other Fringe Benefits,Employee - Expense Reimbursement
9021575,$315.00 ,12/16/2022,ISSUED,,"Wilson, Kenneth",3900 Dundee Rd.,XpenseXpress,TOOL2022,$315.00 ,CHECK,1,IMPORTED,11/19/2022,1,1,$315.00 ,11-22105-0000-502142-300-000000000-000000,Other Fringe Benefits,Employee - Expense Reimbursement
9021574,$60.00 ,12/16/2022,ISSUED,,"Siguenza Pichinte, Jose A.",12677 W. Ford Street,XpenseXpress,CDL2022,$60.00 ,CHECK,1,IMPORTED,10/25/2022,1,1,$60.00 ,11-22103-0000-502131-300-000000000-000000,Uniforms,Employee - Expense Reimbursement
9021573,$405.00 ,12/16/2022,ISSUED,,"Sanders, Charles Alvin",1726 N. Melvina Ave.,XpenseXpress,TOOL2022,$405.00 ,CHECK,1,IMPORTED,12/7/2022,1,1,$405.00 ,11-22109-0000-502142-300-000000000-000000,Other Fringe Benefits,Employee - Expense Reimbursement
9021572,$315.00 ,12/16/2022,ISSUED,,"Salgado, Felipe",219 E. Pleasant Ln.,XpenseXpress,TOOL2022,$315.00 ,CHECK,1,IMPORTED,11/19/2022,1,1,$315.00 ,11-22105-0000-502142-300-000000000-000000,Other Fringe Benefits,Employee - Expense Reimbursement
9021571,$121.14 ,12/16/2022,ISSUED,,"Rodriguez, Jorge",10529 S. Avenue E,XpenseXpress,EERPR112822,$121.14 ,CHECK,1,IMPORTED,11/28/2022,1,1,$121.14 ,11-22108-0000-504989-400-000000000-000000,Other Materials & Supplies,Employee - Expense Reimbursement
9021570,$405.00 ,12/16/2022,ISSUED,,"Rodriguez, Edgar Javier",2448 N 72nd CT,XpenseXpress,TOOL2022,$405.00 ,CHECK,1,IMPORTED,11/30/2022,1,1,$405.00 ,11-22109-0000-502142-300-000000000-000000,Other Fringe Benefits,Employee - Expense Reimbursement
9021569,$315.00 ,12/16/2022,ISSUED,,"Reyes, Jorge",8717 N. St. Louis Ave,XpenseXpress,TOOL2022,$315.00 ,CHECK,1,IMPORTED,11/19/2022,1,1,$315.00 ,11-22105-0000-502142-300-000000000-000000,Other Fringe Benefits,Employee - Expense Reimbursement
9021568,"$7,071.62 ",12/12/2022,ISSUED,,Great West Life & Annuity Ins,Empower,Manual Invoice Entry,HQ120922A,"$7,071.62 ",WIRE,2,MANUAL LINE ENTRY,12/8/2022,2,1,"$4,185.03 ",11-22106-0000-202106-000-000000000-000000,401K Withheld,401k/Pension EE/ER Contribution
9021568,"$7,071.62 ",12/12/2022,ISSUED,,Great West Life & Annuity Ins,Empower,Manual Invoice Entry,HQ120922A,"$7,071.62 ",WIRE,1,MANUAL LINE ENTRY,12/8/2022,1,1,"$2,886.59 ",11-22101-0000-202106-000-000000000-000000,401K Withheld,401k/Pension EE/ER Contribution
9021567,$60.00 ,12/16/2022,ISSUED,,"Perry, Ingrid Nichelle",2732 Ezra Ave.,XpenseXpress,CDL2022,$60.00 ,CHECK,1,IMPORTED,9/7/2022,1,1,$60.00 ,11-22103-0000-502131-300-000000000-000000,Uniforms,Employee - Expense Reimbursement
9021566,$60.00 ,12/16/2022,ISSUED,,"Perpich, Michael F.",3227 Hampshire Lane,XpenseXpress,CDL2022,$60.00 ,CHECK,1,IMPORTED,9/28/2022,1,1,$60.00 ,11-22103-0000-502131-300-000000000-000000,Uniforms,Employee - Expense Reimbursement
9021565,$60.00 ,12/16/2022,ISSUED,,"Perez, Maria",288 W Prairie Walk Ln.,XpenseXpress,CDL2022,$60.00 ,CHECK,1,IMPORTED,9/21/2022,1,1,$60.00 ,11-22103-0000-502131-300-000000000-000000,Uniforms,Employee - Expense Reimbursement
9021564,$315.00 ,12/16/2022,ISSUED,,"Perello, Rafael",4301 N. Sawyer,XpenseXpress,TOOL2022,$315.00 ,CHECK,1,IMPORTED,11/21/2022,1,1,$315.00 ,11-22105-0000-502142-300-000000000-000000,Other Fringe Benefits,Employee - Expense Reimbursement
9021563,$38.00 ,12/16/2022,ISSUED,,"Osborn, Michelle Elyse",918 W. Shiloh Dr.,XpenseXpress,EERPR121122,$38.00 ,CHECK,1,IMPORTED,12/1/2022,1,1,$38.00 ,11-10101-2051-509202-500-000000000-000000,Local Travel,Employee - Expense Reimbursement
9021562,$405.00 ,12/16/2022,ISSUED,,"Nunez, Gamaliel",18825 Henry Ct,XpenseXpress,TOOL2022,$405.00 ,CHECK,1,IMPORTED,12/5/2022,1,1,$405.00 ,11-22109-0000-502142-300-000000000-000000,Other Fringe Benefits,Employee - Expense Reimbursement
9021561,$449.24 ,12/16/2022,ISSUED,,"Newson, Lorri Ann",355 E. Ohio St.,XpenseXpress,EERPR112822,$449.24 ,CHECK,2,IMPORTED,11/28/2022,2,1,$11.94 ,11-10101-3001-509203-500-000000000-000000,Out of Region Travel,Employee - Expense Reimbursement
9021561,$449.24 ,12/16/2022,ISSUED,,"Newson, Lorri Ann",355 E. Ohio St.,XpenseXpress,EERPR112822,$449.24 ,CHECK,1,IMPORTED,11/28/2022,1,1,$316.00 ,11-10101-3001-509203-500-000000000-000000,Out of Region Travel,Employee - Expense Reimbursement
9021561,$449.24 ,12/16/2022,ISSUED,,"Newson, Lorri Ann",355 E. Ohio St.,XpenseXpress,EERPR112822,$449.24 ,CHECK,4,IMPORTED,11/28/2022,4,1,$76.00 ,11-10101-3001-509203-500-000000000-000000,Out of Region Travel,Employee - Expense Reimbursement
9021561,$449.24 ,12/16/2022,ISSUED,,"Newson, Lorri Ann",355 E. Ohio St.,XpenseXpress,EERPR112822,$449.24 ,CHECK,3,IMPORTED,11/28/2022,3,1,$45.30 ,11-10101-3001-509203-500-000000000-000000,Out of Region Travel,Employee - Expense Reimbursement
9021560,$410.00 ,12/16/2022,ISSUED,,"Limon, Edgardo",2535 N. Poplar Street,XpenseXpress,TOOL2022,$410.00 ,CHECK,1,IMPORTED,10/12/2022,1,1,$410.00 ,11-22103-0000-502131-300-000000000-000000,Uniforms,Employee - Expense Reimbursement
9021559,$100.00 ,12/16/2022,ISSUED,,"Landeros, Ricardo",11215 S. Ewing Ave.,XpenseXpress,GEAR2022,$100.00 ,CHECK,1,IMPORTED,11/30/2022,1,1,$100.00 ,11-22107-0000-502142-300-000000000-000000,Other Fringe Benefits,Employee - Expense Reimbursement
9021558,$110.24 ,12/16/2022,ISSUED,,"Komperda, Jan M.",3101 North Olcott Avenue,XpenseXpress,GEAR2022,$110.24 ,CHECK,1,IMPORTED,12/1/2022,1,1,$110.24 ,11-22109-0000-502131-300-000000000-000000,Uniforms,Employee - Expense Reimbursement
9021557,$315.00 ,12/16/2022,ISSUED,,"Iype, Vijoy",7929 Lyons St,XpenseXpress,TOOL2022A,$315.00 ,CHECK,1,IMPORTED,11/19/2022,1,1,$315.00 ,11-22105-0000-502142-300-000000000-000000,Other Fringe Benefits,Employee - Expense Reimbursement
9021556,$315.00 ,12/16/2022,ISSUED,,"Deperalta, Jonathan",5030 W. Nelson St.,XpenseXpress,TOOL2022,$315.00 ,CHECK,1,IMPORTED,11/19/2022,1,1,$315.00 ,11-22105-0000-502142-300-000000000-000000,Other Fringe Benefits,Employee - Expense Reimbursement
9021555,$305.15 ,12/16/2022,ISSUED,,"Cazares, Jose",705 Stonebridge Dr.,XpenseXpress,TOOL2022,$305.15 ,CHECK,1,IMPORTED,11/19/2022,1,1,$305.15 ,11-22105-0000-502142-300-000000000-000000,Other Fringe Benefits,Employee - Expense Reimbursement
9021554,$315.00 ,12/16/2022,ISSUED,,"Aguinaga, Alexis",2535 Parkwood Ln,XpenseXpress,TOOL2022,$315.00 ,CHECK,1,IMPORTED,11/19/2022,1,1,$315.00 ,11-22105-0000-502142-300-000000000-000000,Other Fringe Benefits,Employee - Expense Reimbursement
9021553,"$15,582.05 ",12/9/2022,ISSUED,,Great West Life & Annuity Ins,Empower,Manual Invoice Entry,HQ120922,"$15,582.05 ",WIRE,1,MANUAL LINE ENTRY,12/8/2022,1,1,"$15,582.05 ",11-10101-0000-202112-000-000000000-000000,Accrued Leave Time,Fringe Benefits
9021552,"$1,025.02 ",12/9/2022,ISSUED,,Village Bank and Trust,234 W Northwest Hwy,Manual Invoice Entry,BE120822,"$1,025.02 ",WIRE,1,MANUAL LINE ENTRY,12/8/2022,1,1,"$1,025.02 ",11-10101-0000-202109-000-000000000-000000,Flexible Spending Withheld,Payroll Deductions
9021551,"$26,399.81 ",12/9/2022,ISSUED,,Principal Financial Group,Butterfield Centre,Manual Invoice Entry,RV120922,"$26,399.81 ",WIRE,1,MANUAL LINE ENTRY,12/8/2022,1,1,"$26,399.81 ",11-22106-0000-202107-000-000000000-000000,Pension Withheld,401k/Pension EE/ER Contribution
9021550,"$15,138.85 ",12/9/2022,ISSUED,,Principal Financial Group,Butterfield Centre,Manual Invoice Entry,FV120922,"$15,138.85 ",WIRE,1,MANUAL LINE ENTRY,12/8/2022,1,1,"$15,138.85 ",11-22101-0000-202107-000-000000000-000000,Pension Withheld,401k/Pension EE/ER Contribution
9021549,"$1,689.50 ",12/9/2022,ISSUED,,Aurora Policeman's Credit Union,1200 E Indian Trail,Manual Invoice Entry,AP120922,"$1,689.50 ",WIRE,1,MANUAL LINE ENTRY,12/8/2022,1,1,"$1,689.50 ",11-22101-0000-202102-000-000000000-000000,Credit Union Withheld,Payroll Deductions
9021548,"$195,489.47 ",12/9/2022,ISSUED,,Ride X Corp,5600 N River Rd #800 PMB 832,Manual Invoice Entry,2207/10/ADA,"$195,489.47 ",WIRE,3,MANUAL LINE ENTRY,11/30/2022,3,1,"$218,276.24 ",51-58606-0000-508101-500-000000000-000000,Purchased Transportation,Purchased Transportation
9021548,"$195,489.47 ",12/9/2022,ISSUED,,Ride X Corp,5600 N River Rd #800 PMB 832,Manual Invoice Entry,2207/10/ADA,"$195,489.47 ",WIRE,3,MANUAL LINE ENTRY,11/30/2022,3,7,"($15,264.52)",51-58606-0000-508101-500-000000000-000000,Purchased Transportation,Purchased Transportation
9021548,"$195,489.47 ",12/9/2022,ISSUED,,Ride X Corp,5600 N River Rd #800 PMB 832,Manual Invoice Entry,2207/10/ADA,"$195,489.47 ",WIRE,1,HEADER MATCH,11/30/2022,1,1,"$195,489.47 ",51-58606-0000-508101-500-000000000-000000,Purchased Transportation,Purchased Transportation
9021548,"$195,489.47 ",12/9/2022,ISSUED,,Ride X Corp,5600 N River Rd #800 PMB 832,Manual Invoice Entry,2207/10/ADA,"$195,489.47 ",WIRE,2,MANUAL LINE ENTRY,11/30/2022,2,1,"($195,489.47)",51-58606-0000-508101-500-000000000-000000,Purchased Transportation,Purchased Transportation
9021548,"$195,489.47 ",12/9/2022,ISSUED,,Ride X Corp,5600 N River Rd #800 PMB 832,Manual Invoice Entry,2207/10/ADA,"$195,489.47 ",WIRE,3,MANUAL LINE ENTRY,11/30/2022,3,6,"($5,533.25)",51-58606-0000-401101-100-000000000-000000,Passenger Fares,Purchased Transportation
9021548,"$195,489.47 ",12/9/2022,ISSUED,,Ride X Corp,5600 N River Rd #800 PMB 832,Manual Invoice Entry,2207/10/ADA,"$195,489.47 ",WIRE,3,MANUAL LINE ENTRY,11/30/2022,3,2,$715.00 ,51-59101-0000-205116-000-000000000-000000,Deferred ADA Ventra Revenue,Purchased Transportation
9021548,"$195,489.47 ",12/9/2022,ISSUED,,Ride X Corp,5600 N River Rd #800 PMB 832,Manual Invoice Entry,2207/10/ADA,"$195,489.47 ",WIRE,3,MANUAL LINE ENTRY,11/30/2022,3,3,($715.00),51-58606-0000-401101-100-000000000-000000,Passenger Fares,Purchased Transportation
9021548,"$195,489.47 ",12/9/2022,ISSUED,,Ride X Corp,5600 N River Rd #800 PMB 832,Manual Invoice Entry,2207/10/ADA,"$195,489.47 ",WIRE,3,MANUAL LINE ENTRY,11/30/2022,3,8,"($1,989.00)",51-58606-0000-401101-100-000000000-000000,Passenger Fares,Purchased Transportation
9021548,"$195,489.47 ",12/9/2022,ISSUED,,Ride X Corp,5600 N River Rd #800 PMB 832,Manual Invoice Entry,2207/10/ADA,"$195,489.47 ",WIRE,3,MANUAL LINE ENTRY,11/30/2022,3,5,"($3,433.50)",51-58606-0000-401101-100-000000000-000000,Passenger Fares,Purchased Transportation
9021548,"$195,489.47 ",12/9/2022,ISSUED,,Ride X Corp,5600 N River Rd #800 PMB 832,Manual Invoice Entry,2207/10/ADA,"$195,489.47 ",WIRE,3,MANUAL LINE ENTRY,11/30/2022,3,4,"$3,433.50 ",51-59101-0000-205104-000-000000000-000000,Unredeemed Paratransit Fares,Purchased Transportation
9021547,"$112,902.57 ",12/8/2022,ISSUED,,Flash Cab Company,71923909,Manual Invoice Entry,101622TAP73008,"$112,040.10 ",WIRE,1,HEADER MATCH,12/5/2022,1,1,"$112,040.10 ",51-58201-0000-508101-500-000000000-000000,Purchased Transportation,Purchased Transportation
9021547,"$112,902.57 ",12/8/2022,ISSUED,,Flash Cab Company,71923909,Manual Invoice Entry,113022MD73321,$232.73 ,WIRE,1,HEADER MATCH,12/5/2022,1,1,$232.73 ,51-58301-0000-508101-500-000000000-000000,Purchased Transportation,Purchased Transportation
9021547,"$112,902.57 ",12/8/2022,ISSUED,,Flash Cab Company,71923909,Manual Invoice Entry,103122MD73049,$397.01 ,WIRE,1,HEADER MATCH,12/5/2022,1,1,$397.01 ,51-58301-0000-508101-500-000000000-000000,Purchased Transportation,Purchased Transportation
9021547,"$112,902.57 ",12/8/2022,ISSUED,,Flash Cab Company,71923909,Manual Invoice Entry,111422MD73165,$232.73 ,WIRE,1,HEADER MATCH,12/5/2022,1,1,$232.73 ,51-58301-0000-508101-500-000000000-000000,Purchased Transportation,Purchased Transportation
9021546,"$29,605.42 ",12/8/2022,ISSUED,,Sedia Inc,*,Manual Invoice Entry,37411-102522,"$12,645.23 ",EFT,1,HEADER MATCH,10/25/2022,1,1,"$12,645.23 ",11-10101-0000-111211-000-220075542-000000,"Equipment, Furniture & Fixtures",Equipment
9021546,"$29,605.42 ",12/8/2022,ISSUED,,Sedia Inc,*,Manual Invoice Entry,37425-110222,"$16,960.19 ",EFT,1,HEADER MATCH,11/2/2022,1,1,"$16,960.19 ",11-10101-0000-111211-000-220075542-000000,"Equipment, Furniture & Fixtures",Equipment
9021545,$325.00 ,12/9/2022,ISSUED,,"Stevens, David M",197 S Pinecrest Rd,XpenseXpress,TOOL2022,$325.00 ,CHECK,1,IMPORTED,11/22/2022,1,1,$325.00 ,11-22101-0000-502142-300-000000000-000000,Other Fringe Benefits,Employee - Expense Reimbursement
9021544,$370.00 ,12/9/2022,ISSUED,,"Rojewski, Jack",480 Wedgewood Cir,XpenseXpress,TOOL2022,$370.00 ,CHECK,1,IMPORTED,11/29/2022,1,1,$370.00 ,11-22106-0000-502131-300-000000000-000000,Uniforms,Employee - Expense Reimbursement
9021543,$370.00 ,12/7/2022,ISSUED,12/7/2022,"Rojewski, Jack",480 Wedgewood Cir,XpenseXpress,TOOL2022,$370.00 ,CHECK,1,IMPORTED,11/29/2022,1,1,$370.00 ,11-22106-0000-502131-300-000000000-000000,Uniforms,Employee - Expense Reimbursement
9021543,($370.00),12/7/2022,VOID,12/7/2022,"Rojewski, Jack",480 Wedgewood Cir,XpenseXpress,TOOL2022,$370.00 ,CHECK,1,IMPORTED,11/29/2022,1,1,($370.00),11-22106-0000-502131-300-000000000-000000,Uniforms,Employee - Expense Reimbursement
9021542,"$8,661.32 ",12/7/2022,ISSUED,,Charles Taylor TPA LLC fka Underwriters Safety & Claims,PO Box 23790,Manual Invoice Entry,WC12062022,"$8,661.32 ",WIRE,1,MANUAL LINE ENTRY,12/6/2022,1,1,"$8,661.32 ",11-10101-0000-101204-000-000000000-000000,Workers Compensation Claims Account,Claims
9021541,"$102,605.45 ",12/7/2022,ISSUED,,Flash Cab Company,71923909,Manual Invoice Entry,101222TAP72931,"$102,605.45 ",WIRE,1,HEADER MATCH,12/1/2022,1,1,"$102,605.45 ",51-58201-0000-508101-500-000000000-000000,Purchased Transportation,Purchased Transportation
9021540,$22.00 ,12/6/2022,ISSUED,,Phamatech Inc,Wells Fargo,Manual Invoice Entry,HZ0000163307,$11.00 ,WIRE,1,HEADER MATCH,4/30/2022,1,1,$11.00 ,11-22104-0000-503362-200-000000000-000000,Professional and Technical Services,Services
9021540,$22.00 ,12/6/2022,ISSUED,,Phamatech Inc,Wells Fargo,Manual Invoice Entry,HZ0000163306,$11.00 ,WIRE,1,HEADER MATCH,4/30/2022,1,1,$11.00 ,11-22104-0000-503362-200-000000000-000000,Professional and Technical Services,Services
9021539,"$1,102.12 ",12/5/2022,ISSUED,,Illinois Auto Central,5/3 Bank,Manual Invoice Entry,116004,"$1,102.12 ",WIRE,1,HEADER MATCH,10/31/2022,1,1,"$1,102.12 ",11-22103-0000-201202-000-000000000-000000,Liability for Parts,Fuel/Parts Inventory
9021538,$50.00 ,12/5/2022,ISSUED,,Quadient Inc formerly Neopost USA Inc,PO Box 1183,Manual Invoice Entry,N120222HQ,$50.00 ,WIRE,1,MANUAL LINE ENTRY,12/2/2022,1,1,$50.00 ,11-10101-7052-503901-500-000000000-000000,Postage,Services
9021537,"$98,820.76 ",12/5/2022,ISSUED,,Great West Life & Annuity Ins,Empower,Manual Invoice Entry,HQ120222,"$98,820.76 ",WIRE,6,MANUAL LINE ENTRY,12/1/2022,6,1,"$10,525.29 ",11-22104-0000-202106-000-000000000-000000,401K Withheld,401k/Pension EE/ER Contribution
9021537,"$98,820.76 ",12/5/2022,ISSUED,,Great West Life & Annuity Ins,Empower,Manual Invoice Entry,HQ120222,"$98,820.76 ",WIRE,8,MANUAL LINE ENTRY,12/1/2022,8,1,"$71,121.54 ",11-10101-0000-202106-000-000000000-000000,401K Withheld,401k/Pension EE/ER Contribution
9021537,"$98,820.76 ",12/5/2022,ISSUED,,Great West Life & Annuity Ins,Empower,Manual Invoice Entry,HQ120222,"$98,820.76 ",WIRE,7,MANUAL LINE ENTRY,12/1/2022,7,1,"$1,462.44 ",11-22105-0000-202106-000-000000000-000000,401K Withheld,401k/Pension EE/ER Contribution
9021537,"$98,820.76 ",12/5/2022,ISSUED,,Great West Life & Annuity Ins,Empower,Manual Invoice Entry,HQ120222,"$98,820.76 ",WIRE,1,MANUAL LINE ENTRY,12/1/2022,1,1,"$1,841.93 ",11-22103-0000-202106-000-000000000-000000,401K Withheld,401k/Pension EE/ER Contribution
9021537,"$98,820.76 ",12/5/2022,ISSUED,,Great West Life & Annuity Ins,Empower,Manual Invoice Entry,HQ120222,"$98,820.76 ",WIRE,5,MANUAL LINE ENTRY,12/1/2022,5,1,"$3,998.32 ",11-22109-0000-202106-000-000000000-000000,401K Withheld,401k/Pension EE/ER Contribution
9021537,"$98,820.76 ",12/5/2022,ISSUED,,Great West Life & Annuity Ins,Empower,Manual Invoice Entry,HQ120222,"$98,820.76 ",WIRE,3,MANUAL LINE ENTRY,12/1/2022,3,1,"$3,119.57 ",11-22108-0000-202106-000-000000000-000000,401K Withheld,401k/Pension EE/ER Contribution
9021537,"$98,820.76 ",12/5/2022,ISSUED,,Great West Life & Annuity Ins,Empower,Manual Invoice Entry,HQ120222,"$98,820.76 ",WIRE,2,MANUAL LINE ENTRY,12/1/2022,2,1,"$3,253.89 ",11-22107-0000-202106-000-000000000-000000,401K Withheld,401k/Pension EE/ER Contribution
9021537,"$98,820.76 ",12/5/2022,ISSUED,,Great West Life & Annuity Ins,Empower,Manual Invoice Entry,HQ120222,"$98,820.76 ",WIRE,4,MANUAL LINE ENTRY,12/1/2022,4,1,"$3,497.78 ",11-22102-0000-202106-000-000000000-000000,401K Withheld,401k/Pension EE/ER Contribution
9021536,"$55,500.00 ",12/2/2022,ISSUED,,9280-0366 Québec Inc dba Transit,26004093,Manual Invoice Entry,878,"$55,500.00 ",WIRE,1,HEADER MATCH,10/31/2022,1,1,"$55,500.00 ",11-10101-7402-503552-500-000000000-000000,Data Processing  Software Maintenance,Services
9021535,"$61,002.32 ",12/5/2022,ISSUED,,PNC Bank National Association,PO Box 828702,Manual Invoice Entry,PREPAYMENT 22-11,"$61,002.32 ",WIRE,1,MANUAL LINE ENTRY,11/30/2022,1,1,"$61,002.32 ",11-00000-0000-151102-000-000000000-000000,Prepaid Expenses,Prepayment
9021535,"$61,002.32 ",12/5/2022,ISSUED,,PNC Bank National Association,PO Box 828702,PROCARD,9.6322E+11,"$61,002.32 ",WIRE,1,IMPORTED,11/30/2022,1,1,$503.16 ,11-10101-2201-503322-500-000000000-000000,HR Recruitment Expense,Services
9021535,"$61,002.32 ",12/5/2022,ISSUED,,PNC Bank National Association,PO Box 828702,PROCARD,9.6322E+11,"$61,002.32 ",WIRE,8,IMPORTED,11/30/2022,8,1,$204.24 ,11-10101-2201-503322-500-000000000-000000,HR Recruitment Expense,Services
9021535,"$61,002.32 ",12/5/2022,ISSUED,,PNC Bank National Association,PO Box 828702,PROCARD,9.6322E+11,"$61,002.32 ",WIRE,9,IMPORTED,11/30/2022,9,1,$470.90 ,11-10101-2201-503322-500-000000000-000000,HR Recruitment Expense,Services
9021535,"$61,002.32 ",12/5/2022,ISSUED,,PNC Bank National Association,PO Box 828702,PROCARD,9.6322E+11,"$61,002.32 ",WIRE,15,IMPORTED,11/30/2022,15,1,$505.73 ,11-10101-2201-503322-500-000000000-000000,HR Recruitment Expense,Services
9021535,"$61,002.32 ",12/5/2022,ISSUED,,PNC Bank National Association,PO Box 828702,PROCARD,9.6322E+11,"$61,002.32 ",WIRE,16,IMPORTED,11/30/2022,16,1,"$1,332.97 ",11-10101-2201-503322-500-000000000-000000,HR Recruitment Expense,Services
9021535,"$61,002.32 ",12/5/2022,ISSUED,,PNC Bank National Association,PO Box 828702,PROCARD,9.6322E+11,"$61,002.32 ",WIRE,26,IMPORTED,11/30/2022,26,1,$613.10 ,11-10101-2201-503322-500-000000000-000000,HR Recruitment Expense,Services
9021535,"$61,002.32 ",12/5/2022,ISSUED,,PNC Bank National Association,PO Box 828702,PROCARD,9.6322E+11,"$61,002.32 ",WIRE,27,IMPORTED,11/30/2022,27,1,$501.04 ,11-10101-2201-503322-500-000000000-000000,HR Recruitment Expense,Services
9021535,"$61,002.32 ",12/5/2022,ISSUED,,PNC Bank National Association,PO Box 828702,PROCARD,9.6322E+11,"$61,002.32 ",WIRE,39,IMPORTED,11/30/2022,39,1,$503.92 ,11-10101-2201-503322-500-000000000-000000,HR Recruitment Expense,Services
9021535,"$61,002.32 ",12/5/2022,ISSUED,,PNC Bank National Association,PO Box 828702,PROCARD,9.6322E+11,"$61,002.32 ",WIRE,50,IMPORTED,11/30/2022,50,1,$507.48 ,11-10101-2201-503322-500-000000000-000000,HR Recruitment Expense,Services
9021535,"$61,002.32 ",12/5/2022,ISSUED,,PNC Bank National Association,PO Box 828702,PROCARD,9.6322E+11,"$61,002.32 ",WIRE,51,IMPORTED,11/30/2022,51,1,$250.00 ,11-10101-2201-503322-500-000000000-000000,HR Recruitment Expense,Services
9021535,"$61,002.32 ",12/5/2022,ISSUED,,PNC Bank National Association,PO Box 828702,PROCARD,9.6322E+11,"$61,002.32 ",WIRE,64,IMPORTED,11/30/2022,64,1,$611.40 ,11-10101-2201-503322-500-000000000-000000,HR Recruitment Expense,Services
9021535,"$61,002.32 ",12/5/2022,ISSUED,,PNC Bank National Association,PO Box 828702,PROCARD,9.6322E+11,"$61,002.32 ",WIRE,73,IMPORTED,11/30/2022,73,1,$508.78 ,11-10101-2201-503322-500-000000000-000000,HR Recruitment Expense,Services
9021535,"$61,002.32 ",12/5/2022,ISSUED,,PNC Bank National Association,PO Box 828702,PROCARD,9.6322E+11,"$61,002.32 ",WIRE,74,IMPORTED,11/30/2022,74,1,$250.00 ,11-10101-2201-503322-500-000000000-000000,HR Recruitment Expense,Services
9021535,"$61,002.32 ",12/5/2022,ISSUED,,PNC Bank National Association,PO Box 828702,PROCARD,9.6322E+11,"$61,002.32 ",WIRE,75,IMPORTED,11/30/2022,75,1,$250.00 ,11-10101-2201-503322-500-000000000-000000,HR Recruitment Expense,Services
9021535,"$61,002.32 ",12/5/2022,ISSUED,,PNC Bank National Association,PO Box 828702,PROCARD,9.6322E+11,"$61,002.32 ",WIRE,76,IMPORTED,11/30/2022,76,1,$250.00 ,11-10101-2201-503322-500-000000000-000000,HR Recruitment Expense,Services
9021535,"$61,002.32 ",12/5/2022,ISSUED,,PNC Bank National Association,PO Box 828702,PROCARD,9.6322E+11,"$61,002.32 ",WIRE,77,IMPORTED,11/30/2022,77,1,$250.00 ,11-10101-2201-503322-500-000000000-000000,HR Recruitment Expense,Services
9021535,"$61,002.32 ",12/5/2022,ISSUED,,PNC Bank National Association,PO Box 828702,PROCARD,9.6322E+11,"$61,002.32 ",WIRE,85,IMPORTED,11/30/2022,85,1,$610.64 ,11-10101-2201-503322-500-000000000-000000,HR Recruitment Expense,Services
9021535,"$61,002.32 ",12/5/2022,ISSUED,,PNC Bank National Association,PO Box 828702,PROCARD,9.6322E+11,"$61,002.32 ",WIRE,86,IMPORTED,11/30/2022,86,1,$504.11 ,11-10101-2201-503322-500-000000000-000000,HR Recruitment Expense,Services
9021535,"$61,002.32 ",12/5/2022,ISSUED,,PNC Bank National Association,PO Box 828702,PROCARD,9.6322E+11,"$61,002.32 ",WIRE,104,IMPORTED,11/30/2022,104,1,$522.67 ,11-10101-2201-503322-500-000000000-000000,HR Recruitment Expense,Services
9021535,"$61,002.32 ",12/5/2022,ISSUED,,PNC Bank National Association,PO Box 828702,PROCARD,9.6322E+11,"$61,002.32 ",WIRE,119,IMPORTED,11/30/2022,119,1,$518.86 ,11-10101-2201-503322-500-000000000-000000,HR Recruitment Expense,Services
9021535,"$61,002.32 ",12/5/2022,ISSUED,,PNC Bank National Association,PO Box 828702,PROCARD,9.6322E+11,"$61,002.32 ",WIRE,134,IMPORTED,11/30/2022,134,1,$531.62 ,11-10101-2201-503322-500-000000000-000000,HR Recruitment Expense,Services
9021535,"$61,002.32 ",12/5/2022,ISSUED,,PNC Bank National Association,PO Box 828702,PROCARD,9.6322E+11,"$61,002.32 ",WIRE,140,IMPORTED,11/30/2022,140,1,$511.49 ,11-10101-2201-503322-500-000000000-000000,HR Recruitment Expense,Services
9021535,"$61,002.32 ",12/5/2022,ISSUED,,PNC Bank National Association,PO Box 828702,PROCARD,9.6322E+11,"$61,002.32 ",WIRE,144,IMPORTED,11/30/2022,144,1,$508.81 ,11-10101-2201-503322-500-000000000-000000,HR Recruitment Expense,Services
9021535,"$61,002.32 ",12/5/2022,ISSUED,,PNC Bank National Association,PO Box 828702,PROCARD,9.6322E+11,"$61,002.32 ",WIRE,148,IMPORTED,11/30/2022,148,1,$552.56 ,11-10101-2201-503322-500-000000000-000000,HR Recruitment Expense,Services
9021535,"$61,002.32 ",12/5/2022,ISSUED,,PNC Bank National Association,PO Box 828702,PROCARD,9.6322E+11,"$61,002.32 ",WIRE,154,IMPORTED,11/30/2022,154,1,$515.35 ,11-10101-2201-503322-500-000000000-000000,HR Recruitment Expense,Services
9021535,"$61,002.32 ",12/5/2022,ISSUED,,PNC Bank National Association,PO Box 828702,PROCARD,9.6322E+11,"$61,002.32 ",WIRE,155,IMPORTED,11/30/2022,155,1,$531.48 ,11-10101-2201-503322-500-000000000-000000,HR Recruitment Expense,Services
9021535,"$61,002.32 ",12/5/2022,ISSUED,,PNC Bank National Association,PO Box 828702,PROCARD,9.6322E+11,"$61,002.32 ",WIRE,158,IMPORTED,11/30/2022,158,1,$524.23 ,11-10101-2201-503322-500-000000000-000000,HR Recruitment Expense,Services
9021535,"$61,002.32 ",12/5/2022,ISSUED,,PNC Bank National Association,PO Box 828702,PROCARD,9.6322E+11,"$61,002.32 ",WIRE,163,IMPORTED,11/30/2022,163,1,$505.75 ,11-10101-2201-503322-500-000000000-000000,HR Recruitment Expense,Services
9021535,"$61,002.32 ",12/5/2022,ISSUED,,PNC Bank National Association,PO Box 828702,PROCARD,9.6322E+11,"$61,002.32 ",WIRE,31,IMPORTED,11/30/2022,31,1,($119.74),11-10101-5052-503511-401-000000000-000000,Passenger Facility Maintenance,Services
9021535,"$61,002.32 ",12/5/2022,ISSUED,,PNC Bank National Association,PO Box 828702,PROCARD,9.6322E+11,"$61,002.32 ",WIRE,32,IMPORTED,11/30/2022,32,1,($1.53),11-10101-5052-503511-401-000000000-000000,Passenger Facility Maintenance,Services
9021535,"$61,002.32 ",12/5/2022,ISSUED,,PNC Bank National Association,PO Box 828702,PROCARD,9.6322E+11,"$61,002.32 ",WIRE,33,IMPORTED,11/30/2022,33,1,$167.81 ,11-10101-5052-503511-401-000000000-000000,Passenger Facility Maintenance,Services
9021535,"$61,002.32 ",12/5/2022,ISSUED,,PNC Bank National Association,PO Box 828702,PROCARD,9.6322E+11,"$61,002.32 ",WIRE,60,IMPORTED,11/30/2022,60,1,$51.70 ,11-10101-5052-503511-401-000000000-000000,Passenger Facility Maintenance,Services
9021535,"$61,002.32 ",12/5/2022,ISSUED,,PNC Bank National Association,PO Box 828702,PROCARD,9.6322E+11,"$61,002.32 ",WIRE,132,IMPORTED,11/30/2022,132,1,$13.05 ,11-10101-2051-503332-500-000000000-000000,Court Fees - Legal,Services
9021535,"$61,002.32 ",12/5/2022,ISSUED,,PNC Bank National Association,PO Box 828702,PROCARD,9.6322E+11,"$61,002.32 ",WIRE,133,IMPORTED,11/30/2022,133,1,$451.50 ,11-10101-2051-503332-500-000000000-000000,Court Fees - Legal,Services
9021535,"$61,002.32 ",12/5/2022,ISSUED,,PNC Bank National Association,PO Box 828702,PROCARD,9.6322E+11,"$61,002.32 ",WIRE,47,IMPORTED,11/30/2022,47,1,$8.90 ,11-10101-1001-509901-500-000000000-000000,Business Expense,Miscellaneous
9021535,"$61,002.32 ",12/5/2022,ISSUED,,PNC Bank National Association,PO Box 828702,PROCARD,9.6322E+11,"$61,002.32 ",WIRE,62,IMPORTED,11/30/2022,62,1,$50.23 ,11-10101-1001-509901-500-000000000-000000,Business Expense,Miscellaneous
9021535,"$61,002.32 ",12/5/2022,ISSUED,,PNC Bank National Association,PO Box 828702,PROCARD,9.6322E+11,"$61,002.32 ",WIRE,67,IMPORTED,11/30/2022,67,1,$261.59 ,11-22108-0000-504989-400-000000000-000000,Other Materials & Supplies,Materials and Supplies
9021535,"$61,002.32 ",12/5/2022,ISSUED,,PNC Bank National Association,PO Box 828702,PROCARD,9.6322E+11,"$61,002.32 ",WIRE,81,IMPORTED,11/30/2022,81,1,$153.74 ,11-22108-0000-504989-400-000000000-000000,Other Materials & Supplies,Materials and Supplies
9021535,"$61,002.32 ",12/5/2022,ISSUED,,PNC Bank National Association,PO Box 828702,PROCARD,9.6322E+11,"$61,002.32 ",WIRE,82,IMPORTED,11/30/2022,82,1,($13.43),11-22108-0000-504989-400-000000000-000000,Other Materials & Supplies,Materials and Supplies
9021535,"$61,002.32 ",12/5/2022,ISSUED,,PNC Bank National Association,PO Box 828702,PROCARD,9.6322E+11,"$61,002.32 ",WIRE,135,IMPORTED,11/30/2022,135,1,$58.78 ,11-22108-0000-504989-400-000000000-000000,Other Materials & Supplies,Materials and Supplies
9021535,"$61,002.32 ",12/5/2022,ISSUED,,PNC Bank National Association,PO Box 828702,PROCARD,9.6322E+11,"$61,002.32 ",WIRE,162,IMPORTED,11/30/2022,162,1,$20.00 ,11-22108-0000-509201-500-000000000-000000,Travel & Meeting,Miscellaneous
9021535,"$61,002.32 ",12/5/2022,ISSUED,,PNC Bank National Association,PO Box 828702,PROCARD,9.6322E+11,"$61,002.32 ",WIRE,25,IMPORTED,11/30/2022,25,1,$578.00 ,11-10101-2101-509103-500-000000000-000000,Subscriptions,Miscellaneous
9021535,"$61,002.32 ",12/5/2022,ISSUED,,PNC Bank National Association,PO Box 828702,PROCARD,9.6322E+11,"$61,002.32 ",WIRE,71,IMPORTED,11/30/2022,71,1,$6.00 ,11-10101-2051-503334-500-000000000-000000,Legal Services,Services
9021535,"$61,002.32 ",12/5/2022,ISSUED,,PNC Bank National Association,PO Box 828702,PROCARD,9.6322E+11,"$61,002.32 ",WIRE,72,IMPORTED,11/30/2022,72,1,$6.00 ,11-10101-2051-503334-500-000000000-000000,Legal Services,Services
9021535,"$61,002.32 ",12/5/2022,ISSUED,,PNC Bank National Association,PO Box 828702,PROCARD,9.6322E+11,"$61,002.32 ",WIRE,117,IMPORTED,11/30/2022,117,1,$7.50 ,11-10101-2051-503334-500-000000000-000000,Legal Services,Services
9021535,"$61,002.32 ",12/5/2022,ISSUED,,PNC Bank National Association,PO Box 828702,PROCARD,9.6322E+11,"$61,002.32 ",WIRE,7,IMPORTED,11/30/2022,7,1,$281.66 ,11-22102-0000-504989-400-000000000-000000,Other Materials & Supplies,Materials and Supplies
9021535,"$61,002.32 ",12/5/2022,ISSUED,,PNC Bank National Association,PO Box 828702,PROCARD,9.6322E+11,"$61,002.32 ",WIRE,68,IMPORTED,11/30/2022,68,1,$256.98 ,11-22102-0000-504989-400-000000000-000000,Other Materials & Supplies,Materials and Supplies
9021535,"$61,002.32 ",12/5/2022,ISSUED,,PNC Bank National Association,PO Box 828702,PROCARD,9.6322E+11,"$61,002.32 ",WIRE,90,IMPORTED,11/30/2022,90,1,$136.47 ,11-22102-0000-504989-400-000000000-000000,Other Materials & Supplies,Materials and Supplies
9021535,"$61,002.32 ",12/5/2022,ISSUED,,PNC Bank National Association,PO Box 828702,PROCARD,9.6322E+11,"$61,002.32 ",WIRE,110,IMPORTED,11/30/2022,110,1,($205.58),11-22102-0000-504989-400-000000000-000000,Other Materials & Supplies,Materials and Supplies
9021535,"$61,002.32 ",12/5/2022,ISSUED,,PNC Bank National Association,PO Box 828702,PROCARD,9.6322E+11,"$61,002.32 ",WIRE,111,IMPORTED,11/30/2022,111,1,$486.91 ,11-22102-0000-504989-400-000000000-000000,Other Materials & Supplies,Materials and Supplies
9021535,"$61,002.32 ",12/5/2022,ISSUED,,PNC Bank National Association,PO Box 828702,PROCARD,9.6322E+11,"$61,002.32 ",WIRE,138,IMPORTED,11/30/2022,138,1,$614.04 ,11-22102-0000-504989-400-000000000-000000,Other Materials & Supplies,Materials and Supplies
9021535,"$61,002.32 ",12/5/2022,ISSUED,,PNC Bank National Association,PO Box 828702,PROCARD,9.6322E+11,"$61,002.32 ",WIRE,151,IMPORTED,11/30/2022,151,1,$203.45 ,11-22102-0000-504989-400-000000000-000000,Other Materials & Supplies,Materials and Supplies
9021535,"$61,002.32 ",12/5/2022,ISSUED,,PNC Bank National Association,PO Box 828702,PROCARD,9.6322E+11,"$61,002.32 ",WIRE,13,IMPORTED,11/30/2022,13,1,$277.83 ,11-22105-0000-503991-400-000000000-000000,Other Services,Services
9021535,"$61,002.32 ",12/5/2022,ISSUED,,PNC Bank National Association,PO Box 828702,PROCARD,9.6322E+11,"$61,002.32 ",WIRE,106,IMPORTED,11/30/2022,106,1,$14.31 ,11-22105-0000-503991-400-000000000-000000,Other Services,Services
9021535,"$61,002.32 ",12/5/2022,ISSUED,,PNC Bank National Association,PO Box 828702,PROCARD,9.6322E+11,"$61,002.32 ",WIRE,20,IMPORTED,11/30/2022,20,1,$39.23 ,11-22108-0000-504989-300-000000000-000000,Other Materials & Supplies,Materials and Supplies
9021535,"$61,002.32 ",12/5/2022,ISSUED,,PNC Bank National Association,PO Box 828702,PROCARD,9.6322E+11,"$61,002.32 ",WIRE,40,IMPORTED,11/30/2022,40,1,$102.50 ,11-22108-0000-504989-300-000000000-000000,Other Materials & Supplies,Materials and Supplies
9021535,"$61,002.32 ",12/5/2022,ISSUED,,PNC Bank National Association,PO Box 828702,PROCARD,9.6322E+11,"$61,002.32 ",WIRE,41,IMPORTED,11/30/2022,41,1,$25.85 ,11-22101-0000-504989-400-000000000-000000,Other Materials & Supplies,Materials and Supplies
9021535,"$61,002.32 ",12/5/2022,ISSUED,,PNC Bank National Association,PO Box 828702,PROCARD,9.6322E+11,"$61,002.32 ",WIRE,42,IMPORTED,11/30/2022,42,1,$38.87 ,11-22101-0000-504989-400-000000000-000000,Other Materials & Supplies,Materials and Supplies
9021535,"$61,002.32 ",12/5/2022,ISSUED,,PNC Bank National Association,PO Box 828702,PROCARD,9.6322E+11,"$61,002.32 ",WIRE,70,IMPORTED,11/30/2022,70,1,$21.19 ,11-22101-0000-504989-400-000000000-000000,Other Materials & Supplies,Materials and Supplies
9021535,"$61,002.32 ",12/5/2022,ISSUED,,PNC Bank National Association,PO Box 828702,PROCARD,9.6322E+11,"$61,002.32 ",WIRE,84,IMPORTED,11/30/2022,84,1,$318.93 ,11-22101-0000-504989-400-000000000-000000,Other Materials & Supplies,Materials and Supplies
9021535,"$61,002.32 ",12/5/2022,ISSUED,,PNC Bank National Association,PO Box 828702,PROCARD,9.6322E+11,"$61,002.32 ",WIRE,103,IMPORTED,11/30/2022,103,1,$42.48 ,11-22101-0000-504989-400-000000000-000000,Other Materials & Supplies,Materials and Supplies
9021535,"$61,002.32 ",12/5/2022,ISSUED,,PNC Bank National Association,PO Box 828702,PROCARD,9.6322E+11,"$61,002.32 ",WIRE,114,IMPORTED,11/30/2022,114,1,$28.58 ,11-22101-0000-504989-400-000000000-000000,Other Materials & Supplies,Materials and Supplies
9021535,"$61,002.32 ",12/5/2022,ISSUED,,PNC Bank National Association,PO Box 828702,PROCARD,9.6322E+11,"$61,002.32 ",WIRE,130,IMPORTED,11/30/2022,130,1,$54.41 ,11-22101-0000-504989-400-000000000-000000,Other Materials & Supplies,Materials and Supplies
9021535,"$61,002.32 ",12/5/2022,ISSUED,,PNC Bank National Association,PO Box 828702,PROCARD,9.6322E+11,"$61,002.32 ",WIRE,142,IMPORTED,11/30/2022,142,1,$36.09 ,11-22101-0000-504989-400-000000000-000000,Other Materials & Supplies,Materials and Supplies
9021535,"$61,002.32 ",12/5/2022,ISSUED,,PNC Bank National Association,PO Box 828702,PROCARD,9.6322E+11,"$61,002.32 ",WIRE,143,IMPORTED,11/30/2022,143,1,$25.00 ,11-22101-0000-504989-400-000000000-000000,Other Materials & Supplies,Materials and Supplies
9021535,"$61,002.32 ",12/5/2022,ISSUED,,PNC Bank National Association,PO Box 828702,PROCARD,9.6322E+11,"$61,002.32 ",WIRE,146,IMPORTED,11/30/2022,146,1,$40.65 ,11-22101-0000-504989-400-000000000-000000,Other Materials & Supplies,Materials and Supplies
9021535,"$61,002.32 ",12/5/2022,ISSUED,,PNC Bank National Association,PO Box 828702,PROCARD,9.6322E+11,"$61,002.32 ",WIRE,112,IMPORTED,11/30/2022,112,1,$404.00 ,11-22102-0000-503991-300-000000000-000000,Other Services,Services
9021535,"$61,002.32 ",12/5/2022,ISSUED,,PNC Bank National Association,PO Box 828702,PROCARD,9.6322E+11,"$61,002.32 ",WIRE,98,IMPORTED,11/30/2022,98,1,$422.54 ,11-22102-0000-504989-300-000000000-000000,Other Materials & Supplies,Materials and Supplies
9021535,"$61,002.32 ",12/5/2022,ISSUED,,PNC Bank National Association,PO Box 828702,PROCARD,9.6322E+11,"$61,002.32 ",WIRE,28,IMPORTED,11/30/2022,28,1,"$2,345.00 ",11-10101-5201-504954-500-000000000-000000,Safety Materials,Materials and Supplies
9021535,"$61,002.32 ",12/5/2022,ISSUED,,PNC Bank National Association,PO Box 828702,PROCARD,9.6322E+11,"$61,002.32 ",WIRE,48,IMPORTED,11/30/2022,48,1,$154.53 ,11-22101-0000-504989-300-000000000-000000,Other Materials & Supplies,Materials and Supplies
9021535,"$61,002.32 ",12/5/2022,ISSUED,,PNC Bank National Association,PO Box 828702,PROCARD,9.6322E+11,"$61,002.32 ",WIRE,115,IMPORTED,11/30/2022,115,1,$43.47 ,11-22101-0000-504989-300-000000000-000000,Other Materials & Supplies,Materials and Supplies
9021535,"$61,002.32 ",12/5/2022,ISSUED,,PNC Bank National Association,PO Box 828702,PROCARD,9.6322E+11,"$61,002.32 ",WIRE,116,IMPORTED,11/30/2022,116,1,($43.47),11-22101-0000-504989-300-000000000-000000,Other Materials & Supplies,Materials and Supplies
9021535,"$61,002.32 ",12/5/2022,ISSUED,,PNC Bank National Association,PO Box 828702,PROCARD,9.6322E+11,"$61,002.32 ",WIRE,161,IMPORTED,11/30/2022,161,1,"$1,433.16 ",11-22101-0000-504989-300-000000000-000000,Other Materials & Supplies,Materials and Supplies
9021535,"$61,002.32 ",12/5/2022,ISSUED,,PNC Bank National Association,PO Box 828702,PROCARD,9.6322E+11,"$61,002.32 ",WIRE,4,IMPORTED,11/30/2022,4,1,$100.00 ,11-22107-0000-509201-500-000000000-000000,Travel & Meeting,Miscellaneous
9021535,"$61,002.32 ",12/5/2022,ISSUED,,PNC Bank National Association,PO Box 828702,PROCARD,9.6322E+11,"$61,002.32 ",WIRE,5,IMPORTED,11/30/2022,5,1,$1.97 ,11-22107-0000-509201-500-000000000-000000,Travel & Meeting,Miscellaneous
9021535,"$61,002.32 ",12/5/2022,ISSUED,,PNC Bank National Association,PO Box 828702,PROCARD,9.6322E+11,"$61,002.32 ",WIRE,18,IMPORTED,11/30/2022,18,1,$100.00 ,11-22107-0000-509201-500-000000000-000000,Travel & Meeting,Miscellaneous
9021535,"$61,002.32 ",12/5/2022,ISSUED,,PNC Bank National Association,PO Box 828702,PROCARD,9.6322E+11,"$61,002.32 ",WIRE,19,IMPORTED,11/30/2022,19,1,$1.97 ,11-22107-0000-509201-500-000000000-000000,Travel & Meeting,Miscellaneous
9021535,"$61,002.32 ",12/5/2022,ISSUED,,PNC Bank National Association,PO Box 828702,PROCARD,9.6322E+11,"$61,002.32 ",WIRE,66,IMPORTED,11/30/2022,66,1,$100.00 ,11-22107-0000-509201-500-000000000-000000,Travel & Meeting,Miscellaneous
9021535,"$61,002.32 ",12/5/2022,ISSUED,,PNC Bank National Association,PO Box 828702,PROCARD,9.6322E+11,"$61,002.32 ",WIRE,63,IMPORTED,11/30/2022,63,1,$16.71 ,11-10101-2001-509901-500-000000000-000000,Business Expense,Miscellaneous
9021535,"$61,002.32 ",12/5/2022,ISSUED,,PNC Bank National Association,PO Box 828702,PROCARD,9.6322E+11,"$61,002.32 ",WIRE,38,IMPORTED,11/30/2022,38,1,"$2,131.05 ",11-10101-2051-509102-500-000000000-000000,Legal Library,Miscellaneous
9021535,"$61,002.32 ",12/5/2022,ISSUED,,PNC Bank National Association,PO Box 828702,PROCARD,9.6322E+11,"$61,002.32 ",WIRE,139,IMPORTED,11/30/2022,139,1,$48.48 ,11-22106-0000-504989-300-000000000-000000,Other Materials & Supplies,Materials and Supplies
9021535,"$61,002.32 ",12/5/2022,ISSUED,,PNC Bank National Association,PO Box 828702,PROCARD,9.6322E+11,"$61,002.32 ",WIRE,49,IMPORTED,11/30/2022,49,1,$449.68 ,11-22106-0000-504989-400-000000000-000000,Other Materials & Supplies,Materials and Supplies
9021535,"$61,002.32 ",12/5/2022,ISSUED,,PNC Bank National Association,PO Box 828702,PROCARD,9.6322E+11,"$61,002.32 ",WIRE,147,IMPORTED,11/30/2022,147,1,$561.05 ,11-22106-0000-504989-400-000000000-000000,Other Materials & Supplies,Materials and Supplies
9021535,"$61,002.32 ",12/5/2022,ISSUED,,PNC Bank National Association,PO Box 828702,PROCARD,9.6322E+11,"$61,002.32 ",WIRE,12,IMPORTED,11/30/2022,12,1,$796.91 ,11-22104-0000-504989-400-000000000-000000,Other Materials & Supplies,Materials and Supplies
9021535,"$61,002.32 ",12/5/2022,ISSUED,,PNC Bank National Association,PO Box 828702,PROCARD,9.6322E+11,"$61,002.32 ",WIRE,22,IMPORTED,11/30/2022,22,1,$412.42 ,11-22104-0000-504989-400-000000000-000000,Other Materials & Supplies,Materials and Supplies
9021535,"$61,002.32 ",12/5/2022,ISSUED,,PNC Bank National Association,PO Box 828702,PROCARD,9.6322E+11,"$61,002.32 ",WIRE,107,IMPORTED,11/30/2022,107,1,$70.30 ,11-22104-0000-504989-400-000000000-000000,Other Materials & Supplies,Materials and Supplies
9021535,"$61,002.32 ",12/5/2022,ISSUED,,PNC Bank National Association,PO Box 828702,PROCARD,9.6322E+11,"$61,002.32 ",WIRE,123,IMPORTED,11/30/2022,123,1,$126.50 ,11-22104-0000-504989-400-000000000-000000,Other Materials & Supplies,Materials and Supplies
9021535,"$61,002.32 ",12/5/2022,ISSUED,,PNC Bank National Association,PO Box 828702,PROCARD,9.6322E+11,"$61,002.32 ",WIRE,124,IMPORTED,11/30/2022,124,1,"$2,194.51 ",11-22104-0000-504989-400-000000000-000000,Other Materials & Supplies,Materials and Supplies
9021535,"$61,002.32 ",12/5/2022,ISSUED,,PNC Bank National Association,PO Box 828702,PROCARD,9.6322E+11,"$61,002.32 ",WIRE,156,IMPORTED,11/30/2022,156,1,$213.70 ,11-22104-0000-504989-400-000000000-000000,Other Materials & Supplies,Materials and Supplies
9021535,"$61,002.32 ",12/5/2022,ISSUED,,PNC Bank National Association,PO Box 828702,PROCARD,9.6322E+11,"$61,002.32 ",WIRE,97,IMPORTED,11/30/2022,97,1,$53.03 ,11-22102-0000-509201-500-000000000-000000,Travel & Meeting,Miscellaneous
9021535,"$61,002.32 ",12/5/2022,ISSUED,,PNC Bank National Association,PO Box 828702,PROCARD,9.6322E+11,"$61,002.32 ",WIRE,37,IMPORTED,11/30/2022,37,1,$327.39 ,11-22103-0000-504989-500-000000000-000000,Other Materials & Supplies,Materials and Supplies
9021535,"$61,002.32 ",12/5/2022,ISSUED,,PNC Bank National Association,PO Box 828702,PROCARD,9.6322E+11,"$61,002.32 ",WIRE,21,IMPORTED,11/30/2022,21,1,$426.26 ,11-22104-0000-504989-300-000000000-000000,Other Materials & Supplies,Materials and Supplies
9021535,"$61,002.32 ",12/5/2022,ISSUED,,PNC Bank National Association,PO Box 828702,PROCARD,9.6322E+11,"$61,002.32 ",WIRE,136,IMPORTED,11/30/2022,136,1,$44.55 ,11-22104-0000-504989-300-000000000-000000,Other Materials & Supplies,Materials and Supplies
9021535,"$61,002.32 ",12/5/2022,ISSUED,,PNC Bank National Association,PO Box 828702,PROCARD,9.6322E+11,"$61,002.32 ",WIRE,145,IMPORTED,11/30/2022,145,1,$85.89 ,11-22104-0000-504989-300-000000000-000000,Other Materials & Supplies,Materials and Supplies
9021535,"$61,002.32 ",12/5/2022,ISSUED,,PNC Bank National Association,PO Box 828702,PROCARD,9.6322E+11,"$61,002.32 ",WIRE,150,IMPORTED,11/30/2022,150,1,$36.20 ,11-22104-0000-504989-300-000000000-000000,Other Materials & Supplies,Materials and Supplies
9021535,"$61,002.32 ",12/5/2022,ISSUED,,PNC Bank National Association,PO Box 828702,PROCARD,9.6322E+11,"$61,002.32 ",WIRE,96,IMPORTED,11/30/2022,96,1,$49.98 ,11-22107-0000-504989-400-000000000-000000,Other Materials & Supplies,Materials and Supplies
9021535,"$61,002.32 ",12/5/2022,ISSUED,,PNC Bank National Association,PO Box 828702,PROCARD,9.6322E+11,"$61,002.32 ",WIRE,153,IMPORTED,11/30/2022,153,1,$83.26 ,11-22107-0000-504989-400-000000000-000000,Other Materials & Supplies,Materials and Supplies
9021535,"$61,002.32 ",12/5/2022,ISSUED,,PNC Bank National Association,PO Box 828702,PROCARD,9.6322E+11,"$61,002.32 ",WIRE,105,IMPORTED,11/30/2022,105,1,$10.99 ,11-22107-0000-504989-500-000000000-000000,Other Materials & Supplies,Materials and Supplies
9021535,"$61,002.32 ",12/5/2022,ISSUED,,PNC Bank National Association,PO Box 828702,PROCARD,9.6322E+11,"$61,002.32 ",WIRE,141,IMPORTED,11/30/2022,141,1,$110.00 ,11-22107-0000-504989-500-000000000-000000,Other Materials & Supplies,Materials and Supplies
9021535,"$61,002.32 ",12/5/2022,ISSUED,,PNC Bank National Association,PO Box 828702,PROCARD,9.6322E+11,"$61,002.32 ",WIRE,149,IMPORTED,11/30/2022,149,1,$123.06 ,11-22107-0000-504989-500-000000000-000000,Other Materials & Supplies,Materials and Supplies
9021535,"$61,002.32 ",12/5/2022,ISSUED,,PNC Bank National Association,PO Box 828702,PROCARD,9.6322E+11,"$61,002.32 ",WIRE,129,IMPORTED,11/30/2022,129,1,$230.00 ,11-10101-4601-504958-500-000000000-000000,Repro Supplies,Materials and Supplies
9021535,"$61,002.32 ",12/5/2022,ISSUED,,PNC Bank National Association,PO Box 828702,PROCARD,9.6322E+11,"$61,002.32 ",WIRE,24,IMPORTED,11/30/2022,24,1,"$1,651.01 ",11-10101-4601-512121-500-000000000-000000,Equipment Rental & Maintenance,Leases and Rentals
9021535,"$61,002.32 ",12/5/2022,ISSUED,,PNC Bank National Association,PO Box 828702,PROCARD,9.6322E+11,"$61,002.32 ",WIRE,99,IMPORTED,11/30/2022,99,1,$45.00 ,11-10101-1001-509104-500-000000000-000000,Contributions,Miscellaneous
9021535,"$61,002.32 ",12/5/2022,ISSUED,,PNC Bank National Association,PO Box 828702,PROCARD,9.6322E+11,"$61,002.32 ",WIRE,159,IMPORTED,11/30/2022,159,1,$45.00 ,11-10101-1001-509104-500-000000000-000000,Contributions,Miscellaneous
9021535,"$61,002.32 ",12/5/2022,ISSUED,,PNC Bank National Association,PO Box 828702,PROCARD,9.6322E+11,"$61,002.32 ",WIRE,94,IMPORTED,11/30/2022,94,1,$35.00 ,11-10101-2001-509104-500-000000000-000000,Contributions,Miscellaneous
9021535,"$61,002.32 ",12/5/2022,ISSUED,,PNC Bank National Association,PO Box 828702,PROCARD,9.6322E+11,"$61,002.32 ",WIRE,100,IMPORTED,11/30/2022,100,1,$45.00 ,11-10101-2001-509104-500-000000000-000000,Contributions,Miscellaneous
9021535,"$61,002.32 ",12/5/2022,ISSUED,,PNC Bank National Association,PO Box 828702,PROCARD,9.6322E+11,"$61,002.32 ",WIRE,160,IMPORTED,11/30/2022,160,1,$45.00 ,11-10101-2001-509104-500-000000000-000000,Contributions,Miscellaneous
9021535,"$61,002.32 ",12/5/2022,ISSUED,,PNC Bank National Association,PO Box 828702,PROCARD,9.6322E+11,"$61,002.32 ",WIRE,101,IMPORTED,11/30/2022,101,1,$60.00 ,11-10101-7351-509104-500-000000000-000000,Contributions,Miscellaneous
9021535,"$61,002.32 ",12/5/2022,ISSUED,,PNC Bank National Association,PO Box 828702,PROCARD,9.6322E+11,"$61,002.32 ",WIRE,102,IMPORTED,11/30/2022,102,1,$60.00 ,11-10101-3101-509104-500-000000000-000000,Contributions,Miscellaneous
9021535,"$61,002.32 ",12/5/2022,ISSUED,,PNC Bank National Association,PO Box 828702,PROCARD,9.6322E+11,"$61,002.32 ",WIRE,95,IMPORTED,11/30/2022,95,1,$35.00 ,11-10101-2501-509104-500-000000000-000000,Contributions,Miscellaneous
9021535,"$61,002.32 ",12/5/2022,ISSUED,,PNC Bank National Association,PO Box 828702,PROCARD,9.6322E+11,"$61,002.32 ",WIRE,34,IMPORTED,11/30/2022,34,1,$385.00 ,11-10101-2201-509101-500-000000000-000000,Dues,Miscellaneous
9021535,"$61,002.32 ",12/5/2022,ISSUED,,PNC Bank National Association,PO Box 828702,PROCARD,9.6322E+11,"$61,002.32 ",WIRE,61,IMPORTED,11/30/2022,61,1,$490.00 ,11-10101-2201-509101-500-000000000-000000,Dues,Miscellaneous
9021535,"$61,002.32 ",12/5/2022,ISSUED,,PNC Bank National Association,PO Box 828702,PROCARD,9.6322E+11,"$61,002.32 ",WIRE,89,IMPORTED,11/30/2022,89,1,$61.35 ,11-10101-2201-509101-500-000000000-000000,Dues,Miscellaneous
9021535,"$61,002.32 ",12/5/2022,ISSUED,,PNC Bank National Association,PO Box 828702,PROCARD,9.6322E+11,"$61,002.32 ",WIRE,137,IMPORTED,11/30/2022,137,1,"$1,300.00 ",11-10101-2201-509101-500-000000000-000000,Dues,Miscellaneous
9021535,"$61,002.32 ",12/5/2022,ISSUED,,PNC Bank National Association,PO Box 828702,PROCARD,9.6322E+11,"$61,002.32 ",WIRE,6,IMPORTED,11/30/2022,6,1,$90.00 ,11-10101-2201-503321-500-000000000-000000,Training & Development,Services
9021535,"$61,002.32 ",12/5/2022,ISSUED,,PNC Bank National Association,PO Box 828702,PROCARD,9.6322E+11,"$61,002.32 ",WIRE,14,IMPORTED,11/30/2022,14,1,$35.00 ,11-10101-2201-503321-500-000000000-000000,Training & Development,Services
9021535,"$61,002.32 ",12/5/2022,ISSUED,,PNC Bank National Association,PO Box 828702,PROCARD,9.6322E+11,"$61,002.32 ",WIRE,108,IMPORTED,11/30/2022,108,1,$35.00 ,11-10101-2201-503321-500-000000000-000000,Training & Development,Services
9021535,"$61,002.32 ",12/5/2022,ISSUED,,PNC Bank National Association,PO Box 828702,PROCARD,9.6322E+11,"$61,002.32 ",WIRE,109,IMPORTED,11/30/2022,109,1,$35.00 ,11-10101-2201-503321-500-000000000-000000,Training & Development,Services
9021535,"$61,002.32 ",12/5/2022,ISSUED,,PNC Bank National Association,PO Box 828702,PROCARD,9.6322E+11,"$61,002.32 ",WIRE,157,IMPORTED,11/30/2022,157,1,($35.00),11-10101-2201-503321-500-000000000-000000,Training & Development,Services
9021535,"$61,002.32 ",12/5/2022,ISSUED,,PNC Bank National Association,PO Box 828702,PROCARD,9.6322E+11,"$61,002.32 ",WIRE,164,IMPORTED,11/30/2022,164,1,$42.15 ,11-10101-2201-503321-500-000000000-000000,Training & Development,Services
9021535,"$61,002.32 ",12/5/2022,ISSUED,,PNC Bank National Association,PO Box 828702,PROCARD,9.6322E+11,"$61,002.32 ",WIRE,79,IMPORTED,11/30/2022,79,1,$21.00 ,11-10101-3001-509203-500-000000000-000000,Out of Region Travel,Miscellaneous
9021535,"$61,002.32 ",12/5/2022,ISSUED,,PNC Bank National Association,PO Box 828702,PROCARD,9.6322E+11,"$61,002.32 ",WIRE,78,IMPORTED,11/30/2022,78,1,$250.10 ,11-10101-3001-509203-500-000000000-000000,Out of Region Travel,Miscellaneous
9021535,"$61,002.32 ",12/5/2022,ISSUED,,PNC Bank National Association,PO Box 828702,PROCARD,9.6322E+11,"$61,002.32 ",WIRE,80,IMPORTED,11/30/2022,80,1,$21.00 ,11-10101-3001-509203-500-000000000-000000,Out of Region Travel,Miscellaneous
9021535,"$61,002.32 ",12/5/2022,ISSUED,,PNC Bank National Association,PO Box 828702,PROCARD,9.6322E+11,"$61,002.32 ",WIRE,120,IMPORTED,11/30/2022,120,1,$298.23 ,11-10101-3001-509203-500-000000000-000000,Out of Region Travel,Miscellaneous
9021535,"$61,002.32 ",12/5/2022,ISSUED,,PNC Bank National Association,PO Box 828702,PROCARD,9.6322E+11,"$61,002.32 ",WIRE,93,IMPORTED,11/30/2022,93,1,$35.00 ,11-10101-1001-509104-500-000000000-000000,Contributions,Miscellaneous
9021535,"$61,002.32 ",12/5/2022,ISSUED,,PNC Bank National Association,PO Box 828702,PROCARD,9.6322E+11,"$61,002.32 ",WIRE,65,IMPORTED,11/30/2022,65,1,$209.94 ,11-10101-7052-504989-500-000000000-000000,Other Materials & Supplies,Materials and Supplies
9021535,"$61,002.32 ",12/5/2022,ISSUED,,PNC Bank National Association,PO Box 828702,PROCARD,9.6322E+11,"$61,002.32 ",WIRE,87,IMPORTED,11/30/2022,87,1,($679.77),11-10101-7052-504989-500-000000000-000000,Other Materials & Supplies,Materials and Supplies
9021535,"$61,002.32 ",12/5/2022,ISSUED,,PNC Bank National Association,PO Box 828702,PROCARD,9.6322E+11,"$61,002.32 ",WIRE,45,IMPORTED,11/30/2022,45,1,"$2,910.08 ",11-10101-7052-509912-500-000000000-000000,General Office,Miscellaneous
9021535,"$61,002.32 ",12/5/2022,ISSUED,,PNC Bank National Association,PO Box 828702,PROCARD,9.6322E+11,"$61,002.32 ",WIRE,29,IMPORTED,11/30/2022,29,1,$79.11 ,11-10101-7052-504989-400-000000000-000000,Other Materials & Supplies,Materials and Supplies
9021535,"$61,002.32 ",12/5/2022,ISSUED,,PNC Bank National Association,PO Box 828702,PROCARD,9.6322E+11,"$61,002.32 ",WIRE,43,IMPORTED,11/30/2022,43,1,$28.42 ,11-10101-3001-509901-500-000000000-000000,Business Expense,Miscellaneous
9021535,"$61,002.32 ",12/5/2022,ISSUED,,PNC Bank National Association,PO Box 828702,PROCARD,9.6322E+11,"$61,002.32 ",WIRE,44,IMPORTED,11/30/2022,44,1,($13.83),11-10101-3001-509901-500-000000000-000000,Business Expense,Miscellaneous
9021535,"$61,002.32 ",12/5/2022,ISSUED,,PNC Bank National Association,PO Box 828702,PROCARD,9.6322E+11,"$61,002.32 ",WIRE,121,IMPORTED,11/30/2022,121,1,$206.31 ,11-10101-3001-509901-500-000000000-000000,Business Expense,Miscellaneous
9021535,"$61,002.32 ",12/5/2022,ISSUED,,PNC Bank National Association,PO Box 828702,PROCARD,9.6322E+11,"$61,002.32 ",WIRE,122,IMPORTED,11/30/2022,122,1,$145.08 ,11-10101-3001-509901-500-000000000-000000,Business Expense,Miscellaneous
9021535,"$61,002.32 ",12/5/2022,ISSUED,,PNC Bank National Association,PO Box 828702,PROCARD,9.6322E+11,"$61,002.32 ",WIRE,23,IMPORTED,11/30/2022,23,1,$151.81 ,11-10101-7404-503551-500-000000000-000000,Data Processing Equipment Maintenance,Services
9021535,"$61,002.32 ",12/5/2022,ISSUED,,PNC Bank National Association,PO Box 828702,PROCARD,9.6322E+11,"$61,002.32 ",WIRE,35,IMPORTED,11/30/2022,35,1,$308.92 ,11-10101-7404-503551-500-000000000-000000,Data Processing Equipment Maintenance,Services
9021535,"$61,002.32 ",12/5/2022,ISSUED,,PNC Bank National Association,PO Box 828702,PROCARD,9.6322E+11,"$61,002.32 ",WIRE,46,IMPORTED,11/30/2022,46,1,$235.45 ,11-10101-7404-503551-500-000000000-000000,Data Processing Equipment Maintenance,Services
9021535,"$61,002.32 ",12/5/2022,ISSUED,,PNC Bank National Association,PO Box 828702,PROCARD,9.6322E+11,"$61,002.32 ",WIRE,91,IMPORTED,11/30/2022,91,1,$899.98 ,11-10101-7404-503551-500-000000000-000000,Data Processing Equipment Maintenance,Services
9021535,"$61,002.32 ",12/5/2022,ISSUED,,PNC Bank National Association,PO Box 828702,PROCARD,9.6322E+11,"$61,002.32 ",WIRE,92,IMPORTED,11/30/2022,92,1,"$1,970.00 ",11-10101-7404-503551-500-000000000-000000,Data Processing Equipment Maintenance,Services
9021535,"$61,002.32 ",12/5/2022,ISSUED,,PNC Bank National Association,PO Box 828702,PROCARD,9.6322E+11,"$61,002.32 ",WIRE,113,IMPORTED,11/30/2022,113,1,$744.96 ,11-10101-7404-503551-500-000000000-000000,Data Processing Equipment Maintenance,Services
9021535,"$61,002.32 ",12/5/2022,ISSUED,,PNC Bank National Association,PO Box 828702,PROCARD,9.6322E+11,"$61,002.32 ",WIRE,126,IMPORTED,11/30/2022,126,1,"$2,200.00 ",11-10101-7404-503551-500-000000000-000000,Data Processing Equipment Maintenance,Services
9021535,"$61,002.32 ",12/5/2022,ISSUED,,PNC Bank National Association,PO Box 828702,PROCARD,9.6322E+11,"$61,002.32 ",WIRE,127,IMPORTED,11/30/2022,127,1,$569.25 ,11-10101-7404-503551-500-000000000-000000,Data Processing Equipment Maintenance,Services
9021535,"$61,002.32 ",12/5/2022,ISSUED,,PNC Bank National Association,PO Box 828702,PROCARD,9.6322E+11,"$61,002.32 ",WIRE,128,IMPORTED,11/30/2022,128,1,$157.95 ,11-10101-7404-503551-500-000000000-000000,Data Processing Equipment Maintenance,Services
9021535,"$61,002.32 ",12/5/2022,ISSUED,,PNC Bank National Association,PO Box 828702,PROCARD,9.6322E+11,"$61,002.32 ",WIRE,3,IMPORTED,11/30/2022,3,1,$60.86 ,11-10101-7052-503531-400-000000000-000000,Grounds Maintenance,Services
9021535,"$61,002.32 ",12/5/2022,ISSUED,,PNC Bank National Association,PO Box 828702,PROCARD,9.6322E+11,"$61,002.32 ",WIRE,52,IMPORTED,11/30/2022,52,1,"$1,457.35 ",11-10101-7052-503531-400-000000000-000000,Grounds Maintenance,Services
9021535,"$61,002.32 ",12/5/2022,ISSUED,,PNC Bank National Association,PO Box 828702,PROCARD,9.6322E+11,"$61,002.32 ",WIRE,53,IMPORTED,11/30/2022,53,1,$230.91 ,11-10101-7052-503531-400-000000000-000000,Grounds Maintenance,Services
9021535,"$61,002.32 ",12/5/2022,ISSUED,,PNC Bank National Association,PO Box 828702,PROCARD,9.6322E+11,"$61,002.32 ",WIRE,54,IMPORTED,11/30/2022,54,1,$230.91 ,11-10101-7052-503531-400-000000000-000000,Grounds Maintenance,Services
9021535,"$61,002.32 ",12/5/2022,ISSUED,,PNC Bank National Association,PO Box 828702,PROCARD,9.6322E+11,"$61,002.32 ",WIRE,55,IMPORTED,11/30/2022,55,1,$820.55 ,11-10101-7052-503531-400-000000000-000000,Grounds Maintenance,Services
9021535,"$61,002.32 ",12/5/2022,ISSUED,,PNC Bank National Association,PO Box 828702,PROCARD,9.6322E+11,"$61,002.32 ",WIRE,2,IMPORTED,11/30/2022,2,1,"$1,403.43 ",11-10101-7052-503901-500-000000000-000000,Postage,Services
9021535,"$61,002.32 ",12/5/2022,ISSUED,,PNC Bank National Association,PO Box 828702,PROCARD,9.6322E+11,"$61,002.32 ",WIRE,125,IMPORTED,11/30/2022,125,1,$635.75 ,11-10101-7404-504956-500-000000000-000000,Data Processing Supplies,Materials and Supplies
9021535,"$61,002.32 ",12/5/2022,ISSUED,,PNC Bank National Association,PO Box 828702,PROCARD,9.6322E+11,"$61,002.32 ",WIRE,69,IMPORTED,11/30/2022,69,1,$39.31 ,11-10101-7404-503552-500-000000000-000000,Data Processing  Software Maintenance,Services
9021535,"$61,002.32 ",12/5/2022,ISSUED,,PNC Bank National Association,PO Box 828702,PROCARD,9.6322E+11,"$61,002.32 ",WIRE,152,IMPORTED,11/30/2022,152,1,$378.85 ,11-10101-7404-503552-500-000000000-000000,Data Processing  Software Maintenance,Services
9021535,"$61,002.32 ",12/5/2022,ISSUED,,PNC Bank National Association,PO Box 828702,PROCARD,9.6322E+11,"$61,002.32 ",WIRE,83,IMPORTED,11/30/2022,83,1,$25.00 ,11-10101-7402-503552-500-000000000-000000,Data Processing  Software Maintenance,Services
9021535,"$61,002.32 ",12/5/2022,ISSUED,,PNC Bank National Association,PO Box 828702,PROCARD,9.6322E+11,"$61,002.32 ",WIRE,131,IMPORTED,11/30/2022,131,1,"$4,387.48 ",11-10101-5104-503991-300-000000000-000000,Other Services,Services
9021535,"$61,002.32 ",12/5/2022,ISSUED,,PNC Bank National Association,PO Box 828702,PROCARD,9.6322E+11,"$61,002.32 ",WIRE,36,IMPORTED,11/30/2022,36,1,$4.00 ,11-10101-2001-509103-500-000000000-000000,Subscriptions,Miscellaneous
9021535,"$61,002.32 ",12/5/2022,ISSUED,,PNC Bank National Association,PO Box 828702,PROCARD,9.6322E+11,"$61,002.32 ",WIRE,118,IMPORTED,11/30/2022,118,1,$6.00 ,11-10101-2051-503334-500-000000000-000000,Legal Services,Services
9021535,"$61,002.32 ",12/5/2022,ISSUED,,PNC Bank National Association,PO Box 828702,PROCARD,9.6322E+11,"$61,002.32 ",WIRE,10,IMPORTED,11/30/2022,10,1,$21.08 ,11-10101-0000-509914-500-000000000-000000,Other Miscellaneous,Miscellaneous
9021535,"$61,002.32 ",12/5/2022,ISSUED,,PNC Bank National Association,PO Box 828702,PROCARD,9.6322E+11,"$61,002.32 ",WIRE,17,IMPORTED,11/30/2022,17,1,"$1,677.50 ",51-59101-5311-509913-501-000000000-000000,General Expense,Miscellaneous
9021535,"$61,002.32 ",12/5/2022,ISSUED,,PNC Bank National Association,PO Box 828702,PROCARD,9.6322E+11,"$61,002.32 ",WIRE,11,IMPORTED,11/30/2022,11,1,"$1,354.31 ",11-10101-5051-509901-500-000000000-000000,Business Expense,Miscellaneous
9021535,"$61,002.32 ",12/5/2022,ISSUED,,PNC Bank National Association,PO Box 828702,PROCARD,9.6322E+11,"$61,002.32 ",WIRE,56,IMPORTED,11/30/2022,56,1,$200.00 ,11-10101-5051-509901-500-000000000-000000,Business Expense,Miscellaneous
9021535,"$61,002.32 ",12/5/2022,ISSUED,,PNC Bank National Association,PO Box 828702,PROCARD,9.6322E+11,"$61,002.32 ",WIRE,57,IMPORTED,11/30/2022,57,1,$200.00 ,11-10101-5051-509901-500-000000000-000000,Business Expense,Miscellaneous
9021535,"$61,002.32 ",12/5/2022,ISSUED,,PNC Bank National Association,PO Box 828702,PROCARD,9.6322E+11,"$61,002.32 ",WIRE,58,IMPORTED,11/30/2022,58,1,$110.00 ,11-10101-5051-509901-500-000000000-000000,Business Expense,Miscellaneous
9021535,"$61,002.32 ",12/5/2022,ISSUED,,PNC Bank National Association,PO Box 828702,PROCARD,9.6322E+11,"$61,002.32 ",WIRE,59,IMPORTED,11/30/2022,59,1,$110.00 ,11-10101-5051-509901-500-000000000-000000,Business Expense,Miscellaneous
9021535,"$61,002.32 ",12/5/2022,ISSUED,,PNC Bank National Association,PO Box 828702,PROCARD,9.6322E+11,"$61,002.32 ",WIRE,88,IMPORTED,11/30/2022,88,1,$160.00 ,11-10101-5051-509901-500-000000000-000000,Business Expense,Miscellaneous
9021535,"$61,002.32 ",12/5/2022,ISSUED,,PNC Bank National Association,PO Box 828702,PROCARD,9.6322E+11,"$61,002.32 ",WIRE,30,IMPORTED,11/30/2022,30,1,$225.20 ,11-22108-0000-504989-400-000000000-000000,Other Materials & Supplies,Materials and Supplies
9021534,"$7,703.98 ",12/2/2022,ISSUED,,Village Bank and Trust,234 W Northwest Hwy,Manual Invoice Entry,BE120122,"$7,703.98 ",WIRE,1,MANUAL LINE ENTRY,12/1/2022,1,1,"$7,703.98 ",11-10101-0000-202109-000-000000000-000000,Flexible Spending Withheld,Payroll Deductions
9021533,$600.00 ,12/2/2022,ISSUED,,United Credit Union,4444 S Pulaski,Manual Invoice Entry,UC120222,$600.00 ,WIRE,2,MANUAL LINE ENTRY,12/1/2022,2,1,$50.00 ,11-10101-0000-202102-000-000000000-000000,Credit Union Withheld,Payroll Deductions
9021533,$600.00 ,12/2/2022,ISSUED,,United Credit Union,4444 S Pulaski,Manual Invoice Entry,UC120222,$600.00 ,WIRE,1,MANUAL LINE ENTRY,12/1/2022,1,1,$550.00 ,11-22108-0000-202102-000-000000000-000000,Credit Union Withheld,Payroll Deductions
9021532,"$90,866.16 ",12/2/2022,ISSUED,,Principal Financial Group,1210002848,Manual Invoice Entry,WE120222,"$90,866.16 ",WIRE,1,MANUAL LINE ENTRY,12/1/2022,1,1,"$90,866.16 ",11-22109-0000-202107-000-000000000-000000,Pension Withheld,401k/Pension EE/ER Contribution
9021531,"$14,935.58 ",12/2/2022,ISSUED,,Principal Financial Group,1210002848,Manual Invoice Entry,NO120222,"$14,935.58 ",WIRE,1,MANUAL LINE ENTRY,12/1/2022,1,1,"$14,935.58 ",11-22103-0000-202107-000-000000000-000000,Pension Withheld,401k/Pension EE/ER Contribution
9021530,"$23,779.99 ",12/2/2022,ISSUED,,Principal Financial Group,Butterfield Centre,Manual Invoice Entry,SW120222,"$23,779.99 ",WIRE,1,MANUAL LINE ENTRY,12/1/2022,1,1,"$23,779.99 ",11-22108-0000-202107-000-000000000-000000,Pension Withheld,401k/Pension EE/ER Contribution
9021529,"$73,292.71 ",12/2/2022,ISSUED,,Principal Financial Group,Butterfield Centre,Manual Invoice Entry,SO120222,"$73,292.71 ",WIRE,1,MANUAL LINE ENTRY,12/1/2022,1,1,"$73,292.71 ",11-22107-0000-202107-000-000000000-000000,Pension Withheld,401k/Pension EE/ER Contribution
9021528,"$87,229.27 ",12/2/2022,ISSUED,,Principal Financial Group,Butterfield Centre,Manual Invoice Entry,NW120222,"$87,229.27 ",WIRE,1,MANUAL LINE ENTRY,12/1/2022,1,1,"$87,229.27 ",11-22104-0000-202107-000-000000000-000000,Pension Withheld,401k/Pension EE/ER Contribution
9021527,"$16,267.42 ",12/2/2022,ISSUED,,Principal Financial Group,Butterfield Centre,Manual Invoice Entry,NS120222,"$16,267.42 ",WIRE,1,MANUAL LINE ENTRY,12/1/2022,1,1,"$16,267.42 ",11-22105-0000-202107-000-000000000-000000,Pension Withheld,401k/Pension EE/ER Contribution
9021526,"$17,533.90 ",12/2/2022,ISSUED,,Principal Financial Group,Butterfield Centre,Manual Invoice Entry,HE120222,"$17,533.90 ",WIRE,1,MANUAL LINE ENTRY,12/1/2022,1,1,"$17,533.90 ",11-22102-0000-202107-000-000000000-000000,Pension Withheld,401k/Pension EE/ER Contribution
9021525,"$45,284.66 ",12/2/2022,ISSUED,,Northside L Federal C U - West Town,1419 W Roosevelt Rd,Manual Invoice Entry,NL120222,"$45,284.66 ",WIRE,1,MANUAL LINE ENTRY,12/1/2022,1,1,$890.00 ,11-10101-0000-202102-000-000000000-000000,Credit Union Withheld,Payroll Deductions
9021525,"$45,284.66 ",12/2/2022,ISSUED,,Northside L Federal C U - West Town,1419 W Roosevelt Rd,Manual Invoice Entry,NL120222,"$45,284.66 ",WIRE,6,MANUAL LINE ENTRY,12/1/2022,6,1,"$28,743.34 ",11-22109-0000-202102-000-000000000-000000,Credit Union Withheld,Payroll Deductions
9021525,"$45,284.66 ",12/2/2022,ISSUED,,Northside L Federal C U - West Town,1419 W Roosevelt Rd,Manual Invoice Entry,NL120222,"$45,284.66 ",WIRE,5,MANUAL LINE ENTRY,12/1/2022,5,1,"$1,475.00 ",11-22108-0000-202102-000-000000000-000000,Credit Union Withheld,Payroll Deductions
9021525,"$45,284.66 ",12/2/2022,ISSUED,,Northside L Federal C U - West Town,1419 W Roosevelt Rd,Manual Invoice Entry,NL120222,"$45,284.66 ",WIRE,3,MANUAL LINE ENTRY,12/1/2022,3,1,$62.00 ,11-22105-0000-202102-000-000000000-000000,Credit Union Withheld,Payroll Deductions
9021525,"$45,284.66 ",12/2/2022,ISSUED,,Northside L Federal C U - West Town,1419 W Roosevelt Rd,Manual Invoice Entry,NL120222,"$45,284.66 ",WIRE,2,MANUAL LINE ENTRY,12/1/2022,2,1,"$11,463.32 ",11-22107-0000-202102-000-000000000-000000,Credit Union Withheld,Payroll Deductions
9021525,"$45,284.66 ",12/2/2022,ISSUED,,Northside L Federal C U - West Town,1419 W Roosevelt Rd,Manual Invoice Entry,NL120222,"$45,284.66 ",WIRE,4,MANUAL LINE ENTRY,12/1/2022,4,1,"$2,651.00 ",11-22104-0000-202102-000-000000000-000000,Credit Union Withheld,Payroll Deductions
9021524,"$1,986.00 ",12/2/2022,ISSUED,,Amalgamated Transit Union,Division 900,Manual Invoice Entry,AT120222,"$1,986.00 ",WIRE,1,MANUAL LINE ENTRY,12/1/2022,1,1,"$1,986.00 ",11-22103-0000-202111-000-000000000-000000,Union Dues Withheld,Payroll Deductions
9021523,"$1,371.00 ",12/2/2022,ISSUED,,Abri Credit Union,1350 W Renwick Rd,Manual Invoice Entry,PT120222,"$1,371.00 ",WIRE,2,MANUAL LINE ENTRY,12/1/2022,2,1,$525.00 ,11-22102-0000-202102-000-000000000-000000,Credit Union Withheld,Payroll Deductions
9021523,"$1,371.00 ",12/2/2022,ISSUED,,Abri Credit Union,1350 W Renwick Rd,Manual Invoice Entry,PT120222,"$1,371.00 ",WIRE,1,MANUAL LINE ENTRY,12/1/2022,1,1,$846.00 ,11-10101-0000-202102-000-000000000-000000,Credit Union Withheld,Payroll Deductions
9021522,$485.00 ,12/2/2022,ISSUED,,"West, Edward Michael",8879 South Ryan Rd.,XpenseXpress,GEAR2022,$125.00 ,CHECK,1,IMPORTED,11/18/2022,1,1,$125.00 ,11-22108-0000-502131-300-000000000-000000,Uniforms,Employee - Expense Reimbursement
9021522,$485.00 ,12/2/2022,ISSUED,,"West, Edward Michael",8879 South Ryan Rd.,XpenseXpress,TOOL2022,$360.00 ,CHECK,1,IMPORTED,11/18/2022,1,1,$360.00 ,11-22108-0000-502142-300-000000000-000000,Other Fringe Benefits,Employee - Expense Reimbursement
9021521,$479.60 ,12/2/2022,ISSUED,,"West, Dennis Adam",954 Saddle Ridge Dr.,XpenseXpress,TOOL2022,$360.00 ,CHECK,1,IMPORTED,11/16/2022,1,1,$360.00 ,11-22108-0000-502142-300-000000000-000000,Other Fringe Benefits,Employee - Expense Reimbursement
9021521,$479.60 ,12/2/2022,ISSUED,,"West, Dennis Adam",954 Saddle Ridge Dr.,XpenseXpress,GEAR2022,$119.60 ,CHECK,1,IMPORTED,11/15/2022,1,1,$119.60 ,11-22108-0000-502131-300-000000000-000000,Uniforms,Employee - Expense Reimbursement
9021520,$107.99 ,12/2/2022,ISSUED,,"Trujillo, Tim",1426 Alexandra Blvd,XpenseXpress,GEAR2022,$107.99 ,CHECK,1,IMPORTED,11/14/2022,1,1,$107.99 ,11-22109-0000-502131-300-000000000-000000,Uniforms,Employee - Expense Reimbursement
9021519,$50.00 ,12/2/2022,ISSUED,,"Medina, Esequiel",7803 Lawler Ave.,XpenseXpress,GEAR2022,$50.00 ,CHECK,1,IMPORTED,11/18/2022,1,1,$50.00 ,11-22107-0000-502142-300-000000000-000000,Other Fringe Benefits,Employee - Expense Reimbursement
9021518,$137.49 ,12/2/2022,ISSUED,,"McGinnis, Kim",372 Whitewater Dr.,XpenseXpress,EERPR112222,$137.49 ,CHECK,1,IMPORTED,11/22/2022,1,1,$137.49 ,11-10101-7351-509901-500-000000000-000000,Business Expense,Employee - Expense Reimbursement
9021517,$66.95 ,12/2/2022,ISSUED,,"Madden, Edward T.",611 N. Elmhurst Rd.,XpenseXpress,EERPR111822,$66.95 ,CHECK,2,IMPORTED,11/18/2022,2,1,$6.20 ,11-10101-4101-509202-500-000000000-000000,Local Travel,Employee - Expense Reimbursement
9021517,$66.95 ,12/2/2022,ISSUED,,"Madden, Edward T.",611 N. Elmhurst Rd.,XpenseXpress,EERPR111822,$66.95 ,CHECK,1,IMPORTED,11/18/2022,1,1,$60.75 ,11-10101-4101-509202-500-000000000-000000,Local Travel,Employee - Expense Reimbursement
9021516,$405.00 ,12/2/2022,ISSUED,,"Kalamaris, Perry",2831 N. New England,XpenseXpress,TOOL2022,$405.00 ,CHECK,1,IMPORTED,11/22/2022,1,1,$405.00 ,11-22109-0000-502142-300-000000000-000000,Other Fringe Benefits,Employee - Expense Reimbursement
9021515,$200.00 ,12/2/2022,ISSUED,,"Johnsen, Richard L",8059 Greenwood Ave.,XpenseXpress,GEAR2022,$200.00 ,CHECK,1,IMPORTED,11/18/2022,1,1,$200.00 ,11-22107-0000-502142-300-000000000-000000,Other Fringe Benefits,Employee - Expense Reimbursement
9021514,$315.00 ,12/2/2022,ISSUED,,"Iversen, Paul E",1323 W Sigwalt,XpenseXpress,TOOL2022,$315.00 ,CHECK,1,IMPORTED,11/19/2022,1,1,$315.00 ,11-22105-0000-502142-300-000000000-000000,Other Fringe Benefits,Employee - Expense Reimbursement
9021513,$72.00 ,12/2/2022,ISSUED,,"Booker, Leroy",3414 Montmarte Ave.,XpenseXpress,GEAR2022B,$72.00 ,CHECK,1,IMPORTED,11/18/2022,1,1,$72.00 ,11-22107-0000-502142-300-000000000-000000,Other Fringe Benefits,Employee - Expense Reimbursement
9021512,"$105,309.60 ",12/2/2022,ISSUED,,Flash Cab Company,71923909,Manual Invoice Entry,092122TAP72837,"$105,309.60 ",WIRE,1,HEADER MATCH,11/7/2022,1,1,"$105,309.60 ",51-58201-0000-508101-500-000000000-000000,Purchased Transportation,Purchased Transportation
9021511,"$35,323.21 ",11/30/2022,ISSUED,,Uber Technologies Inc,031100209  A/C 0001,Manual Invoice Entry,OCT'2022/DUPAGE/95F8B3,"$35,323.21 ",WIRE,2,HEADER MATCH,11/21/2022,2,1,"$4,430.22 ",11-54151-0000-508101-500-000000000-000000,Purchased Transportation,Purchased Transportation
9021511,"$35,323.21 ",11/30/2022,ISSUED,,Uber Technologies Inc,031100209  A/C 0001,Manual Invoice Entry,OCT'2022/DUPAGE/95F8B3,"$35,323.21 ",WIRE,1,HEADER MATCH,11/21/2022,1,1,"$30,892.99 ",51-57303-0000-508101-500-000000000-000000,Purchased Transportation,Purchased Transportation
9021510,"$222,374.25 ",11/30/2022,ISSUED,,Flash Cab Company,71923909,Manual Invoice Entry,100922TAP72928,"$113,847.25 ",WIRE,1,HEADER MATCH,11/26/2022,1,1,"$113,847.25 ",51-58201-0000-508101-500-000000000-000000,Purchased Transportation,Purchased Transportation
9021510,"$222,374.25 ",11/30/2022,ISSUED,,Flash Cab Company,71923909,Manual Invoice Entry,100522TAP72926,"$108,527.00 ",WIRE,1,HEADER MATCH,11/23/2022,1,1,"$108,527.00 ",51-58201-0000-508101-500-000000000-000000,Purchased Transportation,Purchased Transportation
9021509,$342.64 ,11/30/2022,ISSUED,,Charles Taylor TPA LLC fka Underwriters Safety & Claims,PO Box 23790,Manual Invoice Entry,WC11292022,$342.64 ,WIRE,1,MANUAL LINE ENTRY,11/29/2022,1,1,$342.64 ,11-10101-0000-101204-000-000000000-000000,Workers Compensation Claims Account,Claims
9021508,"$52,546.03 ",11/30/2022,ISSUED,,The Standard,300 North Martingale Rd,Manual Invoice Entry,1.44253E+11,"$52,546.03 ",WIRE,1,MANUAL LINE ENTRY,11/28/2022,1,1,"$52,546.03 ",11-10101-0000-205501-000-000000000-000000,Health Insurance Reserve - Current,Health Insurance
9021507,"$139,487.06 ",11/30/2022,ISSUED,,OptumRx Inc,c/o JP Morgan Chase,Manual Invoice Entry,5.14576E+11,"$139,487.06 ",WIRE,1,HEADER MATCH,11/28/2022,1,1,"$139,487.06 ",11-10101-0000-205501-000-000000000-000000,Health Insurance Reserve - Current,Health Insurance
9021506,"$2,772.99 ",11/30/2022,ISSUED,,Fidelity Security Life Insurance Eye,FSL EyeMed Premiums  9633314,Manual Invoice Entry,9.63331E+13,"$2,772.99 ",WIRE,1,MANUAL LINE ENTRY,11/28/2022,1,1,"$2,772.99 ",11-10101-0000-205501-000-000000000-000000,Health Insurance Reserve - Current,Health Insurance
9021505,"$1,793,797.89 ",11/30/2022,ISSUED,,Blue Cross Blue Shield of Illinois,PO Box 1186,Manual Invoice Entry,264413 112022,"$1,793,797.89 ",WIRE,1,HEADER MATCH,11/28/2022,1,1,"$1,793,797.89 ",11-10101-0000-205501-000-000000000-000000,Health Insurance Reserve - Current,Health Insurance
9021504,"$124,691.35 ",11/29/2022,ISSUED,,Flash Cab Company,71923909,Manual Invoice Entry,100222TAP72908,"$124,691.35 ",WIRE,1,HEADER MATCH,11/21/2022,1,1,"$124,691.35 ",51-58201-0000-508101-500-000000000-000000,Purchased Transportation,Purchased Transportation
9021503,$78.00 ,11/29/2022,ISSUED,,Phamatech Inc,Wells Fargo,Manual Invoice Entry,HZ0000163317,$78.00 ,WIRE,1,HEADER MATCH,4/30/2022,1,1,$78.00 ,11-22104-0000-503362-200-000000000-000000,Professional and Technical Services,Services
9021502,"($124,691.35)",11/28/2022,VOID,11/28/2022,Flash Cab Company,71923909,Manual Invoice Entry,100222TAP72908,"$124,691.35 ",WIRE,1,HEADER MATCH,11/21/2022,1,1,"($124,691.35)",51-58201-0000-508101-500-000000000-000000,Purchased Transportation,Purchased Transportation
9021502,"$124,691.35 ",11/28/2022,ISSUED,11/28/2022,Flash Cab Company,71923909,Manual Invoice Entry,100222TAP72908,"$124,691.35 ",WIRE,1,HEADER MATCH,11/21/2022,1,1,"$124,691.35 ",51-58201-0000-508101-500-000000000-000000,Purchased Transportation,Purchased Transportation
9021501,$78.00 ,11/28/2022,ISSUED,11/28/2022,Phamatech Inc,Wells Fargo,Manual Invoice Entry,HZ0000163317,$78.00 ,WIRE,1,HEADER MATCH,4/30/2022,1,1,$78.00 ,11-22104-0000-503362-200-000000000-000000,Professional and Technical Services,Services
9021501,($78.00),11/28/2022,VOID,11/28/2022,Phamatech Inc,Wells Fargo,Manual Invoice Entry,HZ0000163317,$78.00 ,WIRE,1,HEADER MATCH,4/30/2022,1,1,($78.00),11-22104-0000-503362-200-000000000-000000,Professional and Technical Services,Services
9021500,$412.50 ,11/28/2022,ISSUED,,Illinois Auto Central,5/3 Bank,Manual Invoice Entry,117292,$412.50 ,WIRE,1,MANUAL LINE ENTRY,11/17/2022,1,1,$412.50 ,11-22107-0000-504989-300-000000000-000000,Other Materials & Supplies,Materials and Supplies
9021499,"$5,976.54 ",11/28/2022,ISSUED,,Cubic Transportation Systems,Union Bank,Manual Invoice Entry,90128125,"$5,976.54 ",WIRE,1,MANUAL LINE ENTRY,11/10/2022,1,1,"$5,976.54 ",11-10101-7352-503309-501-000000000-000000,Ventra Card Fees,Services
9021498,"$18,324.63 ",11/28/2022,ISSUED,,Cubic Transportation Systems,Union Bank,Manual Invoice Entry,90127624,"$18,324.63 ",WIRE,1,MANUAL LINE ENTRY,11/2/2022,1,1,"$18,324.63 ",11-10101-7352-503304-501-000000000-000000,Ventra Vending Machine Maintenance,Services
9021497,"$7,071.00 ",11/29/2022,ISSUED,,Critical Uptime Services,c/o Vertiv Corp,Manual Invoice Entry,13155995,"$7,071.00 ",WIRE,1,HEADER MATCH,11/1/2022,1,1,"$7,071.00 ",11-10101-7052-503534-400-000000000-000000,Building Maint and Repairs,Services
9021496,"$6,931.00 ",11/28/2022,ISSUED,,Great West Life & Annuity Ins,Empower,Manual Invoice Entry,HQ112522,"$6,931.00 ",WIRE,2,MANUAL LINE ENTRY,11/22/2022,2,1,"$4,044.41 ",11-22106-0000-202106-000-000000000-000000,401K Withheld,401k/Pension EE/ER Contribution
9021496,"$6,931.00 ",11/28/2022,ISSUED,,Great West Life & Annuity Ins,Empower,Manual Invoice Entry,HQ112522,"$6,931.00 ",WIRE,1,MANUAL LINE ENTRY,11/22/2022,1,1,"$2,886.59 ",11-22101-0000-202106-000-000000000-000000,401K Withheld,401k/Pension EE/ER Contribution
9021495,"$2,269.78 ",11/25/2022,ISSUED,,Village Bank and Trust,234 W Northwest Hwy,Manual Invoice Entry,BE112222,"$2,269.78 ",WIRE,1,MANUAL LINE ENTRY,11/22/2022,1,1,"$2,269.78 ",11-10101-0000-202109-000-000000000-000000,Flexible Spending Withheld,Payroll Deductions
9021494,"$55,087.88 ",11/25/2022,ISSUED,,Principal Financial Group,1210002848,Manual Invoice Entry,WE112522,"$55,087.88 ",WIRE,1,MANUAL LINE ENTRY,11/22/2022,1,1,"$55,087.88 ",11-22109-0000-202107-000-000000000-000000,Pension Withheld,401k/Pension EE/ER Contribution
9021493,"$28,806.40 ",11/25/2022,ISSUED,,Principal Financial Group,Butterfield Centre,Manual Invoice Entry,RV112522,"$28,806.40 ",WIRE,1,MANUAL LINE ENTRY,11/22/2022,1,1,"$28,806.40 ",11-22106-0000-202107-000-000000000-000000,Pension Withheld,401k/Pension EE/ER Contribution
9021492,"$14,986.03 ",11/25/2022,ISSUED,,Principal Financial Group,Butterfield Centre,Manual Invoice Entry,FV112522,"$14,986.03 ",WIRE,1,MANUAL LINE ENTRY,11/22/2022,1,1,"$14,986.03 ",11-22101-0000-202107-000-000000000-000000,Pension Withheld,401k/Pension EE/ER Contribution
9021491,"$1,689.50 ",11/25/2022,ISSUED,,Aurora Policeman's Credit Union,1200 E Indian Trail,Manual Invoice Entry,AP112522,"$1,689.50 ",WIRE,1,MANUAL LINE ENTRY,11/22/2022,1,1,"$1,689.50 ",11-22101-0000-202102-000-000000000-000000,Credit Union Withheld,Payroll Deductions
9021490,"$1,689.50 ",11/24/2022,ISSUED,11/24/2022,Aurora Policeman's Credit Union,1200 E Indian Trail,Manual Invoice Entry,AP112522,"$1,689.50 ",WIRE,1,MANUAL LINE ENTRY,11/22/2022,1,1,"$1,689.50 ",11-22101-0000-202102-000-000000000-000000,Credit Union Withheld,Payroll Deductions
9021490,"($1,689.50)",11/24/2022,VOID,11/24/2022,Aurora Policeman's Credit Union,1200 E Indian Trail,Manual Invoice Entry,AP112522,"$1,689.50 ",WIRE,1,MANUAL LINE ENTRY,11/22/2022,1,1,"($1,689.50)",11-22101-0000-202102-000-000000000-000000,Credit Union Withheld,Payroll Deductions
9021489,"$85,738.25 ",11/23/2022,ISSUED,,Yellow Cab Association Inc,*,Manual Invoice Entry,101722TAP20174,"$19,839.50 ",EFT,1,HEADER MATCH,11/21/2022,1,1,"$19,839.50 ",51-58201-0000-508101-500-000000000-000000,Purchased Transportation,Purchased Transportation
9021489,"$85,738.25 ",11/23/2022,ISSUED,,Yellow Cab Association Inc,*,Manual Invoice Entry,101622TAP20173,"$25,549.75 ",EFT,1,HEADER MATCH,11/17/2022,1,1,"$25,549.75 ",51-58201-0000-508101-500-000000000-000000,Purchased Transportation,Purchased Transportation
9021489,"$85,738.25 ",11/23/2022,ISSUED,,Yellow Cab Association Inc,*,Manual Invoice Entry,101822TAP20175,"$21,034.75 ",EFT,1,HEADER MATCH,11/21/2022,1,1,"$21,034.75 ",51-58201-0000-508101-500-000000000-000000,Purchased Transportation,Purchased Transportation
9021489,"$85,738.25 ",11/23/2022,ISSUED,,Yellow Cab Association Inc,*,Manual Invoice Entry,101922TAP20176,"$19,314.25 ",EFT,1,HEADER MATCH,11/21/2022,1,1,"$19,314.25 ",51-58201-0000-508101-500-000000000-000000,Purchased Transportation,Purchased Transportation
9021488,"$233,012.65 ",11/23/2022,ISSUED,,Flash Cab Company,71923909,Manual Invoice Entry,092522TAP72840,"$122,612.40 ",WIRE,1,HEADER MATCH,11/15/2022,1,1,"$122,612.40 ",51-58201-0000-508101-500-000000000-000000,Purchased Transportation,Purchased Transportation
9021488,"$233,012.65 ",11/23/2022,ISSUED,,Flash Cab Company,71923909,Manual Invoice Entry,092822TAP72841,"$110,400.25 ",WIRE,1,HEADER MATCH,11/17/2022,1,1,"$110,400.25 ",51-58201-0000-508101-500-000000000-000000,Purchased Transportation,Purchased Transportation
9021487,"$26,092.93 ",11/23/2022,ISSUED,,Charles Taylor TPA LLC fka Underwriters Safety & Claims,PO Box 23790,Manual Invoice Entry,WC11222022,"$26,092.93 ",WIRE,1,MANUAL LINE ENTRY,11/22/2022,1,1,"$26,092.93 ",11-10101-0000-101204-000-000000000-000000,Workers Compensation Claims Account,Claims
9021486,"$12,475.59 ",11/23/2022,ISSUED,,Canon Solutions America Inc,121000358,Manual Invoice Entry,29541362,"$12,475.59 ",WIRE,1,HEADER MATCH,11/12/2022,1,1,"$9,162.41 ",11-10101-7404-512121-500-000000000-000000,Equipment Rental & Maintenance,Leases and Rentals
9021486,"$12,475.59 ",11/23/2022,ISSUED,,Canon Solutions America Inc,121000358,Manual Invoice Entry,29541362,"$12,475.59 ",WIRE,2,HEADER MATCH,11/12/2022,2,1,"$1,078.08 ",11-10101-7404-512121-500-000000000-000000,Equipment Rental & Maintenance,Leases and Rentals
9021486,"$12,475.59 ",11/23/2022,ISSUED,,Canon Solutions America Inc,121000358,Manual Invoice Entry,29541362,"$12,475.59 ",WIRE,3,HEADER MATCH,11/12/2022,3,1,"$2,235.10 ",11-10101-7404-512121-500-000000000-000000,Equipment Rental & Maintenance,Leases and Rentals
9021485,$370.00 ,11/25/2022,ISSUED,,"Dohm, Nicholas Lawrence",612 Russell Rd.,XpenseXpress,TOOL2022,$370.00 ,CHECK,1,IMPORTED,11/15/2022,1,1,$370.00 ,11-22106-0000-502131-300-000000000-000000,Uniforms,Employee - Expense Reimbursement
9021484,"$89,712.67 ",11/21/2022,ISSUED,,Great West Life & Annuity Ins,Empower,Manual Invoice Entry,HQ111822,"$89,712.67 ",WIRE,7,MANUAL LINE ENTRY,11/17/2022,7,1,"$1,412.44 ",11-22105-0000-202106-000-000000000-000000,401K Withheld,401k/Pension EE/ER Contribution
9021484,"$89,712.67 ",11/21/2022,ISSUED,,Great West Life & Annuity Ins,Empower,Manual Invoice Entry,HQ111822,"$89,712.67 ",WIRE,4,MANUAL LINE ENTRY,11/17/2022,4,1,"$3,335.64 ",11-22102-0000-202106-000-000000000-000000,401K Withheld,401k/Pension EE/ER Contribution
9021484,"$89,712.67 ",11/21/2022,ISSUED,,Great West Life & Annuity Ins,Empower,Manual Invoice Entry,HQ111822,"$89,712.67 ",WIRE,6,MANUAL LINE ENTRY,11/17/2022,6,1,"$7,559.88 ",11-22104-0000-202106-000-000000000-000000,401K Withheld,401k/Pension EE/ER Contribution
9021484,"$89,712.67 ",11/21/2022,ISSUED,,Great West Life & Annuity Ins,Empower,Manual Invoice Entry,HQ111822,"$89,712.67 ",WIRE,1,MANUAL LINE ENTRY,11/17/2022,1,1,"$1,841.93 ",11-22103-0000-202106-000-000000000-000000,401K Withheld,401k/Pension EE/ER Contribution
9021484,"$89,712.67 ",11/21/2022,ISSUED,,Great West Life & Annuity Ins,Empower,Manual Invoice Entry,HQ111822,"$89,712.67 ",WIRE,5,MANUAL LINE ENTRY,11/17/2022,5,1,"$4,107.34 ",11-22109-0000-202106-000-000000000-000000,401K Withheld,401k/Pension EE/ER Contribution
9021484,"$89,712.67 ",11/21/2022,ISSUED,,Great West Life & Annuity Ins,Empower,Manual Invoice Entry,HQ111822,"$89,712.67 ",WIRE,3,MANUAL LINE ENTRY,11/17/2022,3,1,"$3,175.12 ",11-22108-0000-202106-000-000000000-000000,401K Withheld,401k/Pension EE/ER Contribution
9021484,"$89,712.67 ",11/21/2022,ISSUED,,Great West Life & Annuity Ins,Empower,Manual Invoice Entry,HQ111822,"$89,712.67 ",WIRE,2,MANUAL LINE ENTRY,11/17/2022,2,1,"$3,253.89 ",11-22107-0000-202106-000-000000000-000000,401K Withheld,401k/Pension EE/ER Contribution
9021484,"$89,712.67 ",11/21/2022,ISSUED,,Great West Life & Annuity Ins,Empower,Manual Invoice Entry,HQ111822,"$89,712.67 ",WIRE,8,MANUAL LINE ENTRY,11/17/2022,8,1,"$65,026.43 ",11-10101-0000-202106-000-000000000-000000,401K Withheld,401k/Pension EE/ER Contribution
9021483,"$74,643.75 ",11/21/2022,ISSUED,,Yellow Cab Association Inc,*,Manual Invoice Entry,101222TAP20170,"$18,496.75 ",EFT,2,HEADER MATCH,11/17/2022,2,1,"$18,496.75 ",51-58201-0000-508101-500-000000000-000000,Purchased Transportation,Purchased Transportation
9021483,"$74,643.75 ",11/21/2022,ISSUED,,Yellow Cab Association Inc,*,Manual Invoice Entry,101422TAP20172,"$18,417.75 ",EFT,1,HEADER MATCH,11/17/2022,1,1,"$18,417.75 ",51-58201-0000-508101-500-000000000-000000,Purchased Transportation,Purchased Transportation
9021483,"$74,643.75 ",11/21/2022,ISSUED,,Yellow Cab Association Inc,*,Manual Invoice Entry,101322TAP20171,"$18,874.25 ",EFT,1,HEADER MATCH,11/17/2022,1,1,"$18,874.25 ",51-58201-0000-508101-500-000000000-000000,Purchased Transportation,Purchased Transportation
9021483,"$74,643.75 ",11/21/2022,ISSUED,,Yellow Cab Association Inc,*,Manual Invoice Entry,101122TAP20169,"$18,855.00 ",EFT,1,HEADER MATCH,11/15/2022,1,1,"$18,855.00 ",51-58201-0000-508101-500-000000000-000000,Purchased Transportation,Purchased Transportation
9021482,"$84,183.48 ",11/18/2022,ISSUED,,Principal Financial Group,1210002848,Manual Invoice Entry,WE111822,"$84,183.48 ",WIRE,1,MANUAL LINE ENTRY,11/17/2022,1,1,"$84,183.48 ",11-22109-0000-202107-000-000000000-000000,Pension Withheld,401k/Pension EE/ER Contribution
9021481,"$15,438.13 ",11/18/2022,ISSUED,,Principal Financial Group,1210002848,Manual Invoice Entry,NO111822,"$15,438.13 ",WIRE,1,MANUAL LINE ENTRY,11/17/2022,1,1,"$15,438.13 ",11-22103-0000-202107-000-000000000-000000,Pension Withheld,401k/Pension EE/ER Contribution
9021480,"$24,567.52 ",11/18/2022,ISSUED,,Principal Financial Group,Butterfield Centre,Manual Invoice Entry,SW111822,"$24,567.52 ",WIRE,1,MANUAL LINE ENTRY,11/17/2022,1,1,"$24,567.52 ",11-22108-0000-202107-000-000000000-000000,Pension Withheld,401k/Pension EE/ER Contribution
9021479,"$79,095.18 ",11/18/2022,ISSUED,,Principal Financial Group,Butterfield Centre,Manual Invoice Entry,SO111822,"$79,095.18 ",WIRE,1,MANUAL LINE ENTRY,11/17/2022,1,1,"$79,095.18 ",11-22107-0000-202107-000-000000000-000000,Pension Withheld,401k/Pension EE/ER Contribution
9021478,"$81,529.70 ",11/18/2022,ISSUED,,Principal Financial Group,Butterfield Centre,Manual Invoice Entry,NW111822,"$81,529.70 ",WIRE,1,MANUAL LINE ENTRY,11/17/2022,1,1,"$81,529.70 ",11-22104-0000-202107-000-000000000-000000,Pension Withheld,401k/Pension EE/ER Contribution
9021477,"$16,788.63 ",11/18/2022,ISSUED,,Principal Financial Group,Butterfield Centre,Manual Invoice Entry,NS111822,"$16,788.63 ",WIRE,1,MANUAL LINE ENTRY,11/17/2022,1,1,"$16,788.63 ",11-22105-0000-202107-000-000000000-000000,Pension Withheld,401k/Pension EE/ER Contribution
9021476,"$17,620.21 ",11/18/2022,ISSUED,,Principal Financial Group,Butterfield Centre,Manual Invoice Entry,HE111822,"$17,620.21 ",WIRE,1,MANUAL LINE ENTRY,11/17/2022,1,1,"$17,620.21 ",11-22102-0000-202107-000-000000000-000000,Pension Withheld,401k/Pension EE/ER Contribution
9021475,$600.00 ,11/18/2022,ISSUED,,United Credit Union,4444 S Pulaski,Manual Invoice Entry,UC111822,$600.00 ,WIRE,2,MANUAL LINE ENTRY,11/17/2022,2,1,$50.00 ,11-10101-0000-202102-000-000000000-000000,Credit Union Withheld,Payroll Deductions
9021475,$600.00 ,11/18/2022,ISSUED,,United Credit Union,4444 S Pulaski,Manual Invoice Entry,UC111822,$600.00 ,WIRE,1,MANUAL LINE ENTRY,11/17/2022,1,1,$550.00 ,11-22108-0000-202102-000-000000000-000000,Credit Union Withheld,Payroll Deductions
9021474,"$45,656.41 ",11/18/2022,ISSUED,,Northside L Federal C U - West Town,1419 W Roosevelt Rd,Manual Invoice Entry,NL111822,"$45,656.41 ",WIRE,3,MANUAL LINE ENTRY,11/17/2022,3,1,$62.00 ,11-22105-0000-202102-000-000000000-000000,Credit Union Withheld,Payroll Deductions
9021474,"$45,656.41 ",11/18/2022,ISSUED,,Northside L Federal C U - West Town,1419 W Roosevelt Rd,Manual Invoice Entry,NL111822,"$45,656.41 ",WIRE,5,MANUAL LINE ENTRY,11/17/2022,5,1,"$1,575.00 ",11-22108-0000-202102-000-000000000-000000,Credit Union Withheld,Payroll Deductions
9021474,"$45,656.41 ",11/18/2022,ISSUED,,Northside L Federal C U - West Town,1419 W Roosevelt Rd,Manual Invoice Entry,NL111822,"$45,656.41 ",WIRE,1,MANUAL LINE ENTRY,11/17/2022,1,1,$890.00 ,11-10101-0000-202102-000-000000000-000000,Credit Union Withheld,Payroll Deductions
9021474,"$45,656.41 ",11/18/2022,ISSUED,,Northside L Federal C U - West Town,1419 W Roosevelt Rd,Manual Invoice Entry,NL111822,"$45,656.41 ",WIRE,2,MANUAL LINE ENTRY,11/17/2022,2,1,"$11,360.00 ",11-22107-0000-202102-000-000000000-000000,Credit Union Withheld,Payroll Deductions
9021474,"$45,656.41 ",11/18/2022,ISSUED,,Northside L Federal C U - West Town,1419 W Roosevelt Rd,Manual Invoice Entry,NL111822,"$45,656.41 ",WIRE,4,MANUAL LINE ENTRY,11/17/2022,4,1,"$2,651.00 ",11-22104-0000-202102-000-000000000-000000,Credit Union Withheld,Payroll Deductions
9021474,"$45,656.41 ",11/18/2022,ISSUED,,Northside L Federal C U - West Town,1419 W Roosevelt Rd,Manual Invoice Entry,NL111822,"$45,656.41 ",WIRE,6,MANUAL LINE ENTRY,11/17/2022,6,1,"$29,118.41 ",11-22109-0000-202102-000-000000000-000000,Credit Union Withheld,Payroll Deductions
9021473,"$2,014.00 ",11/18/2022,ISSUED,,Amalgamated Transit Union,Division 900,Manual Invoice Entry,AT111822,"$2,014.00 ",WIRE,1,MANUAL LINE ENTRY,11/17/2022,1,1,"$2,014.00 ",11-22103-0000-202111-000-000000000-000000,Union Dues Withheld,Payroll Deductions
9021472,"$1,371.00 ",11/18/2022,ISSUED,,Abri Credit Union,1350 W Renwick Rd,Manual Invoice Entry,PT111822,"$1,371.00 ",WIRE,2,MANUAL LINE ENTRY,11/17/2022,2,1,$525.00 ,11-22102-0000-202102-000-000000000-000000,Credit Union Withheld,Payroll Deductions
9021472,"$1,371.00 ",11/18/2022,ISSUED,,Abri Credit Union,1350 W Renwick Rd,Manual Invoice Entry,PT111822,"$1,371.00 ",WIRE,1,MANUAL LINE ENTRY,11/17/2022,1,1,$846.00 ,11-10101-0000-202102-000-000000000-000000,Credit Union Withheld,Payroll Deductions
9021471,"$6,808.52 ",11/18/2022,ISSUED,,Village Bank and Trust,234 W Northwest Hwy,Manual Invoice Entry,BE111722,"$6,808.52 ",WIRE,1,MANUAL LINE ENTRY,11/17/2022,1,1,"$6,808.52 ",11-10101-0000-202109-000-000000000-000000,Flexible Spending Withheld,Payroll Deductions
9021470,"$97,597.00 ",11/18/2022,ISSUED,,Yellow Cab Association Inc,*,Manual Invoice Entry,100522TAP20164,"$19,876.25 ",EFT,1,HEADER MATCH,11/16/2022,1,1,"$19,876.25 ",51-58201-0000-508101-500-000000000-000000,Purchased Transportation,Purchased Transportation
9021470,"$97,597.00 ",11/18/2022,ISSUED,,Yellow Cab Association Inc,*,Manual Invoice Entry,100622TAP20165,"$19,754.75 ",EFT,1,HEADER MATCH,11/14/2022,1,1,"$19,754.75 ",51-58201-0000-508101-500-000000000-000000,Purchased Transportation,Purchased Transportation
9021470,"$97,597.00 ",11/18/2022,ISSUED,,Yellow Cab Association Inc,*,Manual Invoice Entry,101022TAP20168,"$17,235.75 ",EFT,1,HEADER MATCH,11/15/2022,1,1,"$17,235.75 ",51-58201-0000-508101-500-000000000-000000,Purchased Transportation,Purchased Transportation
9021470,"$97,597.00 ",11/18/2022,ISSUED,,Yellow Cab Association Inc,*,Manual Invoice Entry,100922TAP20167,"$21,929.75 ",EFT,1,HEADER MATCH,11/15/2022,1,1,"$21,929.75 ",51-58201-0000-508101-500-000000000-000000,Purchased Transportation,Purchased Transportation
9021470,"$97,597.00 ",11/18/2022,ISSUED,,Yellow Cab Association Inc,*,Manual Invoice Entry,100722TAP20166,"$18,800.50 ",EFT,1,HEADER MATCH,11/15/2022,1,1,"$18,800.50 ",51-58201-0000-508101-500-000000000-000000,Purchased Transportation,Purchased Transportation
9021469,$205.35 ,11/18/2022,ISSUED,,Flash Cab Company,71923909,Manual Invoice Entry,093022MD72882,$205.35 ,WIRE,1,HEADER MATCH,11/15/2022,1,1,$205.35 ,51-58301-0000-508101-500-000000000-000000,Purchased Transportation,Purchased Transportation
9021468,"$59,287.55 ",11/18/2022,ISSUED,,First Transit Inc,*,Manual Invoice Entry,SEP'2022/FIX,"$59,287.55 ",EFT,1,HEADER MATCH,10/28/2022,1,1,"$59,287.55 ",11-25112-0000-508101-500-000000000-000000,Purchased Transportation,Purchased Transportation
9021468,"$59,287.55 ",11/18/2022,ISSUED,,First Transit Inc,*,Manual Invoice Entry,SEP'2022/FIX,"$59,287.55 ",EFT,4,MANUAL LINE ENTRY,10/28/2022,4,1,($856.00),11-25112-0000-401101-100-000000000-000000,Passenger Fares,Purchased Transportation
9021468,"$59,287.55 ",11/18/2022,ISSUED,,First Transit Inc,*,Manual Invoice Entry,SEP'2022/FIX,"$59,287.55 ",EFT,3,MANUAL LINE ENTRY,10/28/2022,3,1,"$60,143.55 ",11-25112-0000-508101-500-000000000-000000,Purchased Transportation,Purchased Transportation
9021468,"$59,287.55 ",11/18/2022,ISSUED,,First Transit Inc,*,Manual Invoice Entry,SEP'2022/FIX,"$59,287.55 ",EFT,2,MANUAL LINE ENTRY,10/28/2022,2,1,"($59,287.55)",11-25112-0000-508101-500-000000000-000000,Purchased Transportation,Purchased Transportation
9021467,$87.50 ,11/16/2022,ISSUED,,Edenred Commuter Benefit Solutions LLC,Edenred USA,Manual Invoice Entry,717700,$87.50 ,WIRE,1,MANUAL LINE ENTRY,11/15/2022,1,1,$87.50 ,11-10101-0000-202114-000-000000000-000000,Commuter Benefits Withheld,Payroll Deductions
9021466,$336.66 ,11/16/2022,ISSUED,,Charles Taylor TPA LLC fka Underwriters Safety & Claims,PO Box 23790,Manual Invoice Entry,WC11152022,$336.66 ,WIRE,1,MANUAL LINE ENTRY,11/15/2022,1,1,$336.66 ,11-10101-0000-101204-000-000000000-000000,Workers Compensation Claims Account,Claims
9021465,$23.90 ,11/18/2022,ISSUED,,"Ziemer, Melissa",254 North Craig Place,XpenseXpress,EERPR110722,$23.90 ,CHECK,1,IMPORTED,11/7/2022,1,1,$17.50 ,11-10101-7351-509202-500-000000000-000000,Local Travel,Employee - Expense Reimbursement
9021465,$23.90 ,11/18/2022,ISSUED,,"Ziemer, Melissa",254 North Craig Place,XpenseXpress,EERPR110722,$23.90 ,CHECK,2,IMPORTED,11/7/2022,2,1,$6.40 ,11-10101-7351-509202-500-000000000-000000,Local Travel,Employee - Expense Reimbursement
9021464,$118.00 ,11/18/2022,ISSUED,,"Ward, John R",5025 N. Tripp Ave,XpenseXpress,EERPR102722,$118.00 ,CHECK,1,IMPORTED,10/27/2022,1,1,$118.00 ,11-10101-3001-509203-500-000000000-000000,Out of Region Travel,Employee - Expense Reimbursement
9021463,$876.68 ,11/18/2022,ISSUED,,"Sullivan, Douglas",2615 Roslyn Circle,XpenseXpress,EEROR111022,$876.68 ,CHECK,1,IMPORTED,11/10/2022,1,1,$876.68 ,11-10101-4101-509901-500-000000000-000000,Business Expense,Employee - Expense Reimbursement
9021462,$92.49 ,11/18/2022,ISSUED,,"Sandoval, Martin Abel II",233 Trowbridge Rd,XpenseXpress,EERPR110222,$92.49 ,CHECK,1,IMPORTED,11/2/2022,1,1,$80.50 ,11-10101-2501-509202-500-000000000-000000,Local Travel,Employee - Expense Reimbursement
9021462,$92.49 ,11/18/2022,ISSUED,,"Sandoval, Martin Abel II",233 Trowbridge Rd,XpenseXpress,EERPR110222,$92.49 ,CHECK,2,IMPORTED,11/2/2022,2,1,$11.99 ,11-10101-2501-509202-500-000000000-000000,Local Travel,Employee - Expense Reimbursement
9021461,$201.60 ,11/18/2022,ISSUED,,"Salmi, Kevin",594 Turnburry Lane,XpenseXpress,EERPR110822,$201.60 ,CHECK,3,IMPORTED,11/8/2022,3,1,$5.60 ,11-10101-3001-509202-500-000000000-000000,Local Travel,Employee - Expense Reimbursement
9021461,$201.60 ,11/18/2022,ISSUED,,"Salmi, Kevin",594 Turnburry Lane,XpenseXpress,EERPR110822,$201.60 ,CHECK,1,IMPORTED,11/8/2022,1,1,$158.50 ,11-10101-3001-509202-500-000000000-000000,Local Travel,Employee - Expense Reimbursement
9021461,$201.60 ,11/18/2022,ISSUED,,"Salmi, Kevin",594 Turnburry Lane,XpenseXpress,EERPR110822,$201.60 ,CHECK,2,IMPORTED,11/8/2022,2,1,$37.50 ,11-10101-3001-509202-500-000000000-000000,Local Travel,Employee - Expense Reimbursement
9021460,$25.00 ,11/18/2022,ISSUED,,"Rusick, Nancy",1384 Longford Circle,XpenseXpress,EERPR110722,$25.00 ,CHECK,1,IMPORTED,11/7/2022,1,1,$25.00 ,11-10101-7351-509202-500-000000000-000000,Local Travel,Employee - Expense Reimbursement
9021459,$94.99 ,11/18/2022,ISSUED,,"Prieboy, Donald J",312 Pleasant St.,XpenseXpress,GEAR2022,$94.99 ,CHECK,1,IMPORTED,10/31/2022,1,1,$94.99 ,11-22102-0000-502142-300-000000000-000000,Other Fringe Benefits,Employee - Expense Reimbursement
9021458,$118.23 ,11/18/2022,ISSUED,,"McClain, William I",37 Fairway Drive,XpenseXpress,GEAR2022,$118.23 ,CHECK,1,IMPORTED,11/1/2022,1,1,$118.23 ,11-22109-0000-502131-300-000000000-000000,Uniforms,Employee - Expense Reimbursement
9021457,$109.95 ,11/18/2022,ISSUED,,"Marshall, Peter",5 Greenwood Ct. S,XpenseXpress,EERPR110322,$109.95 ,CHECK,2,IMPORTED,11/3/2022,2,1,$15.20 ,11-10101-7401-509202-500-000000000-000000,Local Travel,Employee - Expense Reimbursement
9021457,$109.95 ,11/18/2022,ISSUED,,"Marshall, Peter",5 Greenwood Ct. S,XpenseXpress,EERPR110322,$109.95 ,CHECK,1,IMPORTED,11/3/2022,1,1,$94.75 ,11-10101-7401-509202-500-000000000-000000,Local Travel,Employee - Expense Reimbursement
9021456,$125.00 ,11/18/2022,ISSUED,,"Ladhani, Ayaz",6020 N Winchester,XpenseXpress,GEAR2022,$125.00 ,CHECK,1,IMPORTED,11/1/2022,1,1,$125.00 ,11-22109-0000-502131-300-000000000-000000,Uniforms,Employee - Expense Reimbursement
9021455,$142.58 ,11/18/2022,ISSUED,,"Gawczynski, Lawrence",172 Shabbona,XpenseXpress,TOOL2021,$142.58 ,CHECK,1,IMPORTED,10/31/2022,1,1,$142.58 ,11-22102-0000-502142-300-000000000-000000,Other Fringe Benefits,Employee - Expense Reimbursement
9021454,$370.92 ,11/18/2022,ISSUED,,"Burkhardt, Brett J",109 S. Pine St.,XpenseXpress,EERPR110722,$370.92 ,CHECK,1,IMPORTED,11/7/2022,1,1,$10.00 ,11-22109-0000-509201-500-000000000-000000,Travel & Meeting,Employee - Expense Reimbursement
9021454,$370.92 ,11/18/2022,ISSUED,,"Burkhardt, Brett J",109 S. Pine St.,XpenseXpress,EERPR110722,$370.92 ,CHECK,2,IMPORTED,11/7/2022,2,1,$64.72 ,11-22105-0000-509201-500-000000000-000000,Travel & Meeting,Employee - Expense Reimbursement
9021454,$370.92 ,11/18/2022,ISSUED,,"Burkhardt, Brett J",109 S. Pine St.,XpenseXpress,EERPR110722,$370.92 ,CHECK,4,IMPORTED,11/7/2022,4,1,$276.20 ,11-22106-0000-509201-500-000000000-000000,Travel & Meeting,Employee - Expense Reimbursement
9021454,$370.92 ,11/18/2022,ISSUED,,"Burkhardt, Brett J",109 S. Pine St.,XpenseXpress,EERPR110722,$370.92 ,CHECK,3,IMPORTED,11/7/2022,3,1,$20.00 ,11-22106-0000-509201-500-000000000-000000,Travel & Meeting,Employee - Expense Reimbursement
9021453,$109.99 ,11/18/2022,ISSUED,,"Brown, Deleon",609 Farmview Rd.,XpenseXpress,GEAR2022,$109.99 ,CHECK,1,IMPORTED,11/10/2022,1,1,$109.99 ,11-22107-0000-502142-300-000000000-000000,Other Fringe Benefits,Employee - Expense Reimbursement
9021452,$53.90 ,11/18/2022,ISSUED,,"Aguilar, Karen",4555 Heron Dr,XpenseXpress,EERPR110822,$53.90 ,CHECK,1,IMPORTED,11/8/2022,1,1,$40.00 ,11-10101-5051-509202-500-000000000-000000,Local Travel,Employee - Expense Reimbursement
9021452,$53.90 ,11/18/2022,ISSUED,,"Aguilar, Karen",4555 Heron Dr,XpenseXpress,EERPR110822,$53.90 ,CHECK,2,IMPORTED,11/8/2022,2,1,$13.90 ,11-10101-5051-509202-500-000000000-000000,Local Travel,Employee - Expense Reimbursement
9021451,"$39,043.98 ",11/14/2022,ISSUED,,Illinois Auto Central,5/3 Bank,Manual Invoice Entry,115884,"$2,585.80 ",WIRE,1,HEADER MATCH,10/28/2022,1,1,"$2,585.80 ",11-22107-0000-201202-000-000000000-000000,Liability for Parts,Fuel/Parts Inventory
9021451,"$39,043.98 ",11/14/2022,ISSUED,,Illinois Auto Central,5/3 Bank,Manual Invoice Entry,115881,"$2,920.88 ",WIRE,2,HEADER MATCH,10/28/2022,2,1,$110.64 ,11-22106-0000-201202-000-000000000-000000,Liability for Parts,Fuel/Parts Inventory
9021451,"$39,043.98 ",11/14/2022,ISSUED,,Illinois Auto Central,5/3 Bank,Manual Invoice Entry,115881,"$2,920.88 ",WIRE,1,HEADER MATCH,10/28/2022,1,1,"$2,810.24 ",11-22106-0000-201202-000-000000000-000000,Liability for Parts,Fuel/Parts Inventory
9021451,"$39,043.98 ",11/14/2022,ISSUED,,Illinois Auto Central,5/3 Bank,Manual Invoice Entry,114330,"$2,061.99 ",WIRE,1,HEADER MATCH,10/7/2022,1,1,"$2,061.99 ",11-22104-0000-201202-000-000000000-000000,Liability for Parts,Fuel/Parts Inventory
9021451,"$39,043.98 ",11/14/2022,ISSUED,,Illinois Auto Central,5/3 Bank,Manual Invoice Entry,116022,"$4,905.13 ",WIRE,1,MANUAL LINE ENTRY,10/31/2022,1,1,"$4,905.13 ",11-22108-0000-504989-300-000000000-000000,Other Materials & Supplies,Materials and Supplies
9021451,"$39,043.98 ",11/14/2022,ISSUED,,Illinois Auto Central,5/3 Bank,Manual Invoice Entry,115880,"$15,627.60 ",WIRE,1,HEADER MATCH,10/28/2022,1,1,"$14,921.70 ",11-22104-0000-201202-000-000000000-000000,Liability for Parts,Fuel/Parts Inventory
9021451,"$39,043.98 ",11/14/2022,ISSUED,,Illinois Auto Central,5/3 Bank,Manual Invoice Entry,115885,"$4,973.90 ",WIRE,1,HEADER MATCH,10/28/2022,1,1,"$4,973.90 ",11-22109-0000-201202-000-000000000-000000,Liability for Parts,Fuel/Parts Inventory
9021451,"$39,043.98 ",11/14/2022,ISSUED,,Illinois Auto Central,5/3 Bank,Manual Invoice Entry,115883,"$5,968.68 ",WIRE,1,HEADER MATCH,10/28/2022,1,1,"$5,968.68 ",11-22108-0000-201202-000-000000000-000000,Liability for Parts,Fuel/Parts Inventory
9021451,"$39,043.98 ",11/14/2022,ISSUED,,Illinois Auto Central,5/3 Bank,Manual Invoice Entry,115880,"$15,627.60 ",WIRE,2,HEADER MATCH,10/28/2022,2,1,$705.90 ,11-22104-0000-201202-000-000000000-000000,Liability for Parts,Fuel/Parts Inventory
9021450,"($39,043.98)",11/15/2022,VOID,11/15/2022,Illinois Auto Central,5/3 Bank,Manual Invoice Entry,115884,"$2,585.80 ",WIRE,1,HEADER MATCH,10/28/2022,1,1,"($2,585.80)",11-22107-0000-201202-000-000000000-000000,Liability for Parts,Fuel/Parts Inventory
9021450,"($39,043.98)",11/15/2022,VOID,11/15/2022,Illinois Auto Central,5/3 Bank,Manual Invoice Entry,115881,"$2,920.88 ",WIRE,1,HEADER MATCH,10/28/2022,1,1,"($2,810.24)",11-22106-0000-201202-000-000000000-000000,Liability for Parts,Fuel/Parts Inventory
9021450,"$39,043.98 ",11/15/2022,ISSUED,11/15/2022,Illinois Auto Central,5/3 Bank,Manual Invoice Entry,116022,"$4,905.13 ",WIRE,1,MANUAL LINE ENTRY,10/31/2022,1,1,"$4,905.13 ",11-22108-0000-504989-300-000000000-000000,Other Materials & Supplies,Materials and Supplies
9021450,"$39,043.98 ",11/15/2022,ISSUED,11/15/2022,Illinois Auto Central,5/3 Bank,Manual Invoice Entry,115883,"$5,968.68 ",WIRE,1,HEADER MATCH,10/28/2022,1,1,"$5,968.68 ",11-22108-0000-201202-000-000000000-000000,Liability for Parts,Fuel/Parts Inventory
9021450,"$39,043.98 ",11/15/2022,ISSUED,11/15/2022,Illinois Auto Central,5/3 Bank,Manual Invoice Entry,115885,"$4,973.90 ",WIRE,1,HEADER MATCH,10/28/2022,1,1,"$4,973.90 ",11-22109-0000-201202-000-000000000-000000,Liability for Parts,Fuel/Parts Inventory
9021450,"$39,043.98 ",11/15/2022,ISSUED,11/15/2022,Illinois Auto Central,5/3 Bank,Manual Invoice Entry,114330,"$2,061.99 ",WIRE,1,HEADER MATCH,10/7/2022,1,1,"$2,061.99 ",11-22104-0000-201202-000-000000000-000000,Liability for Parts,Fuel/Parts Inventory
9021450,"$39,043.98 ",11/15/2022,ISSUED,11/15/2022,Illinois Auto Central,5/3 Bank,Manual Invoice Entry,115880,"$15,627.60 ",WIRE,2,HEADER MATCH,10/28/2022,2,1,$705.90 ,11-22104-0000-201202-000-000000000-000000,Liability for Parts,Fuel/Parts Inventory
9021450,"$39,043.98 ",11/15/2022,ISSUED,11/15/2022,Illinois Auto Central,5/3 Bank,Manual Invoice Entry,115880,"$15,627.60 ",WIRE,1,HEADER MATCH,10/28/2022,1,1,"$14,921.70 ",11-22104-0000-201202-000-000000000-000000,Liability for Parts,Fuel/Parts Inventory
9021450,"$39,043.98 ",11/15/2022,ISSUED,11/15/2022,Illinois Auto Central,5/3 Bank,Manual Invoice Entry,115881,"$2,920.88 ",WIRE,2,HEADER MATCH,10/28/2022,2,1,$110.64 ,11-22106-0000-201202-000-000000000-000000,Liability for Parts,Fuel/Parts Inventory
9021450,"$39,043.98 ",11/15/2022,ISSUED,11/15/2022,Illinois Auto Central,5/3 Bank,Manual Invoice Entry,115881,"$2,920.88 ",WIRE,1,HEADER MATCH,10/28/2022,1,1,"$2,810.24 ",11-22106-0000-201202-000-000000000-000000,Liability for Parts,Fuel/Parts Inventory
9021450,"$39,043.98 ",11/15/2022,ISSUED,11/15/2022,Illinois Auto Central,5/3 Bank,Manual Invoice Entry,115884,"$2,585.80 ",WIRE,1,HEADER MATCH,10/28/2022,1,1,"$2,585.80 ",11-22107-0000-201202-000-000000000-000000,Liability for Parts,Fuel/Parts Inventory
9021450,"($39,043.98)",11/15/2022,VOID,11/15/2022,Illinois Auto Central,5/3 Bank,Manual Invoice Entry,115883,"$5,968.68 ",WIRE,1,HEADER MATCH,10/28/2022,1,1,"($5,968.68)",11-22108-0000-201202-000-000000000-000000,Liability for Parts,Fuel/Parts Inventory
9021450,"($39,043.98)",11/15/2022,VOID,11/15/2022,Illinois Auto Central,5/3 Bank,Manual Invoice Entry,115885,"$4,973.90 ",WIRE,1,HEADER MATCH,10/28/2022,1,1,"($4,973.90)",11-22109-0000-201202-000-000000000-000000,Liability for Parts,Fuel/Parts Inventory
9021450,"($39,043.98)",11/15/2022,VOID,11/15/2022,Illinois Auto Central,5/3 Bank,Manual Invoice Entry,114330,"$2,061.99 ",WIRE,1,HEADER MATCH,10/7/2022,1,1,"($2,061.99)",11-22104-0000-201202-000-000000000-000000,Liability for Parts,Fuel/Parts Inventory
9021450,"($39,043.98)",11/15/2022,VOID,11/15/2022,Illinois Auto Central,5/3 Bank,Manual Invoice Entry,115880,"$15,627.60 ",WIRE,2,HEADER MATCH,10/28/2022,2,1,($705.90),11-22104-0000-201202-000-000000000-000000,Liability for Parts,Fuel/Parts Inventory
9021450,"($39,043.98)",11/15/2022,VOID,11/15/2022,Illinois Auto Central,5/3 Bank,Manual Invoice Entry,115880,"$15,627.60 ",WIRE,1,HEADER MATCH,10/28/2022,1,1,"($14,921.70)",11-22104-0000-201202-000-000000000-000000,Liability for Parts,Fuel/Parts Inventory
9021450,"($39,043.98)",11/15/2022,VOID,11/15/2022,Illinois Auto Central,5/3 Bank,Manual Invoice Entry,115881,"$2,920.88 ",WIRE,2,HEADER MATCH,10/28/2022,2,1,($110.64),11-22106-0000-201202-000-000000000-000000,Liability for Parts,Fuel/Parts Inventory
9021450,"($39,043.98)",11/15/2022,VOID,11/15/2022,Illinois Auto Central,5/3 Bank,Manual Invoice Entry,116022,"$4,905.13 ",WIRE,1,MANUAL LINE ENTRY,10/31/2022,1,1,"($4,905.13)",11-22108-0000-504989-300-000000000-000000,Other Materials & Supplies,Materials and Supplies
9021449,"$120,687.25 ",11/15/2022,ISSUED,,Yellow Cab Association Inc,*,Manual Invoice Entry,100422TAP20163,"$20,476.25 ",EFT,1,HEADER MATCH,11/11/2022,1,1,"$20,476.25 ",51-58201-0000-508101-500-000000000-000000,Purchased Transportation,Purchased Transportation
9021449,"$120,687.25 ",11/15/2022,ISSUED,,Yellow Cab Association Inc,*,Manual Invoice Entry,092822TAP20158,"$18,770.50 ",EFT,1,HEADER MATCH,11/11/2022,1,1,"$18,770.50 ",51-58201-0000-508101-500-000000000-000000,Purchased Transportation,Purchased Transportation
9021449,"$120,687.25 ",11/15/2022,ISSUED,,Yellow Cab Association Inc,*,Manual Invoice Entry,100322TAP20162,"$18,787.25 ",EFT,1,HEADER MATCH,11/11/2022,1,1,"$18,787.25 ",51-58201-0000-508101-500-000000000-000000,Purchased Transportation,Purchased Transportation
9021449,"$120,687.25 ",11/15/2022,ISSUED,,Yellow Cab Association Inc,*,Manual Invoice Entry,093022TAP20160,"$18,045.75 ",EFT,1,HEADER MATCH,11/11/2022,1,1,"$18,045.75 ",51-58201-0000-508101-500-000000000-000000,Purchased Transportation,Purchased Transportation
9021449,"$120,687.25 ",11/15/2022,ISSUED,,Yellow Cab Association Inc,*,Manual Invoice Entry,100222TAP20161,"$25,157.75 ",EFT,1,HEADER MATCH,11/11/2022,1,1,"$25,157.75 ",51-58201-0000-508101-500-000000000-000000,Purchased Transportation,Purchased Transportation
9021449,"$120,687.25 ",11/15/2022,ISSUED,,Yellow Cab Association Inc,*,Manual Invoice Entry,092922TAP20159,"$19,449.75 ",EFT,1,HEADER MATCH,11/11/2022,1,1,"$19,449.75 ",51-58201-0000-508101-500-000000000-000000,Purchased Transportation,Purchased Transportation
9021448,"$6,931.00 ",11/14/2022,ISSUED,,Great West Life & Annuity Ins,Empower,Manual Invoice Entry,HQ111022,"$6,931.00 ",WIRE,2,MANUAL LINE ENTRY,11/9/2022,2,1,"$4,044.41 ",11-22106-0000-202106-000-000000000-000000,401K Withheld,401k/Pension EE/ER Contribution
9021448,"$6,931.00 ",11/14/2022,ISSUED,,Great West Life & Annuity Ins,Empower,Manual Invoice Entry,HQ111022,"$6,931.00 ",WIRE,1,MANUAL LINE ENTRY,11/9/2022,1,1,"$2,886.59 ",11-22101-0000-202106-000-000000000-000000,401K Withheld,401k/Pension EE/ER Contribution
9021447,"$8,387.22 ",11/10/2022,ISSUED,,Village Bank and Trust,234 W Northwest Hwy,Manual Invoice Entry,BE110922,"$8,387.22 ",WIRE,1,MANUAL LINE ENTRY,11/9/2022,1,1,"$8,387.22 ",11-10101-0000-202109-000-000000000-000000,Flexible Spending Withheld,Payroll Deductions
9021446,"$26,292.50 ",11/10/2022,ISSUED,,Principal Financial Group,Butterfield Centre,Manual Invoice Entry,RV111022,"$26,292.50 ",WIRE,1,MANUAL LINE ENTRY,11/9/2022,1,1,"$26,292.50 ",11-22106-0000-202107-000-000000000-000000,Pension Withheld,401k/Pension EE/ER Contribution
9021445,"$14,800.65 ",11/10/2022,ISSUED,,Principal Financial Group,Butterfield Centre,Manual Invoice Entry,FV111022,"$14,800.65 ",WIRE,1,MANUAL LINE ENTRY,11/9/2022,1,1,"$14,800.65 ",11-22101-0000-202107-000-000000000-000000,Pension Withheld,401k/Pension EE/ER Contribution
9021444,"$1,412.79 ",11/10/2022,ISSUED,,Aurora Policeman's Credit Union,1200 E Indian Trail,Manual Invoice Entry,AP111022,"$1,412.79 ",WIRE,1,MANUAL LINE ENTRY,11/9/2022,1,1,"$1,412.79 ",11-22101-0000-202102-000-000000000-000000,Credit Union Withheld,Payroll Deductions
9021443,"$10,504.21 ",11/10/2022,ISSUED,,Uber Technologies Inc,031100209  A/C 0002,Manual Invoice Entry,SEP'2022CALL/58167,"$10,504.21 ",WIRE,1,HEADER MATCH,10/31/2022,1,1,"$4,502.50 ",51-57303-0000-508102-500-000000000-000000,Call Center Expansion Costs,Purchased Transportation
9021443,"$10,504.21 ",11/10/2022,ISSUED,,Uber Technologies Inc,031100209  A/C 0002,Manual Invoice Entry,SEP'2022CALL/58167,"$10,504.21 ",WIRE,1,HEADER MATCH,10/31/2022,1,2,"$6,001.71 ",51-57303-0000-508101-500-000000000-000000,Purchased Transportation,Purchased Transportation
9021442,"$101,981.63 ",11/10/2022,ISSUED,,Freedom 1st Transportation LLC,200 Poplar Pl,Manual Invoice Entry,SEP'2022KANE,"$16,380.46 ",WIRE,3,MANUAL LINE ENTRY,10/31/2022,3,23,"$1,359.70 ",11-54505-0000-508101-500-000000000-000000,Purchased Transportation,Purchased Transportation
9021442,"$101,981.63 ",11/10/2022,ISSUED,,Freedom 1st Transportation LLC,200 Poplar Pl,Manual Invoice Entry,SEP'2022KANE,"$16,380.46 ",WIRE,3,MANUAL LINE ENTRY,10/31/2022,3,31,($5.35),11-54505-0000-508101-500-000000000-000000,Purchased Transportation,Purchased Transportation
9021442,"$101,981.63 ",11/10/2022,ISSUED,,Freedom 1st Transportation LLC,200 Poplar Pl,Manual Invoice Entry,SEP'2022SC,"$30,233.68 ",WIRE,3,MANUAL LINE ENTRY,10/31/2022,3,6,$355.20 ,11-53153-0000-508101-500-000000000-000000,Purchased Transportation,Purchased Transportation
9021442,"$101,981.63 ",11/10/2022,ISSUED,,Freedom 1st Transportation LLC,200 Poplar Pl,Manual Invoice Entry,SEP'2022WILL,"$12,414.90 ",WIRE,14,MANUAL LINE ENTRY,10/31/2022,14,1,($54.04),11-53153-0000-508101-500-000000000-000000,Purchased Transportation,Purchased Transportation
9021442,"$101,981.63 ",11/10/2022,ISSUED,,Freedom 1st Transportation LLC,200 Poplar Pl,Manual Invoice Entry,SEP'2022WILL,"$12,414.90 ",WIRE,2,MANUAL LINE ENTRY,10/31/2022,2,1,"($12,414.90)",11-53153-0000-508101-500-000000000-000000,Purchased Transportation,Purchased Transportation
9021442,"$101,981.63 ",11/10/2022,ISSUED,,Freedom 1st Transportation LLC,200 Poplar Pl,Manual Invoice Entry,SEP'2022SC,"$30,233.68 ",WIRE,3,MANUAL LINE ENTRY,10/31/2022,3,22,($9.00),11-53153-0000-508101-500-000000000-000000,Purchased Transportation,Purchased Transportation
9021442,"$101,981.63 ",11/10/2022,ISSUED,,Freedom 1st Transportation LLC,200 Poplar Pl,Manual Invoice Entry,SEP'2022WILL,"$12,414.90 ",WIRE,5,MANUAL LINE ENTRY,10/31/2022,5,1,"$6,648.54 ",11-53153-0000-508101-500-000000000-000000,Purchased Transportation,Purchased Transportation
9021442,"$101,981.63 ",11/10/2022,ISSUED,,Freedom 1st Transportation LLC,200 Poplar Pl,Manual Invoice Entry,SEP'2022WILL,"$12,414.90 ",WIRE,1,HEADER MATCH,10/31/2022,1,1,"$12,414.90 ",11-53153-0000-508101-500-000000000-000000,Purchased Transportation,Purchased Transportation
9021442,"$101,981.63 ",11/10/2022,ISSUED,,Freedom 1st Transportation LLC,200 Poplar Pl,Manual Invoice Entry,SEP'2022WILL,"$12,414.90 ",WIRE,12,MANUAL LINE ENTRY,10/31/2022,12,1,($516.00),11-53153-0000-401101-100-000000000-000000,Passenger Fares,Purchased Transportation
9021442,"$101,981.63 ",11/10/2022,ISSUED,,Freedom 1st Transportation LLC,200 Poplar Pl,Manual Invoice Entry,SEP'2022SC,"$30,233.68 ",WIRE,3,MANUAL LINE ENTRY,10/31/2022,3,18,($18.00),11-53153-0000-401101-100-000000000-000000,Passenger Fares,Purchased Transportation
9021442,"$101,981.63 ",11/10/2022,ISSUED,,Freedom 1st Transportation LLC,200 Poplar Pl,Manual Invoice Entry,SEP'2022SC,"$30,233.68 ",WIRE,3,MANUAL LINE ENTRY,10/31/2022,3,15,$0.00 ,11-54202-0000-508102-500-000000000-000000,Call Center Expansion Costs,Purchased Transportation
9021442,"$101,981.63 ",11/10/2022,ISSUED,,Freedom 1st Transportation LLC,200 Poplar Pl,Manual Invoice Entry,SEP'2022WILL,"$12,414.90 ",WIRE,11,MANUAL LINE ENTRY,10/31/2022,11,1,($8.00),11-54202-0000-508102-500-000000000-000000,Call Center Expansion Costs,Purchased Transportation
9021442,"$101,981.63 ",11/10/2022,ISSUED,,Freedom 1st Transportation LLC,200 Poplar Pl,Manual Invoice Entry,SEP'2022WILL,"$12,414.90 ",WIRE,4,MANUAL LINE ENTRY,10/31/2022,4,1,$58.56 ,11-54202-0000-508102-500-000000000-000000,Call Center Expansion Costs,Purchased Transportation
9021442,"$101,981.63 ",11/10/2022,ISSUED,,Freedom 1st Transportation LLC,200 Poplar Pl,Manual Invoice Entry,SEP'2022SC,"$30,233.68 ",WIRE,3,MANUAL LINE ENTRY,10/31/2022,3,3,$0.00 ,11-54202-0000-508102-500-000000000-000000,Call Center Expansion Costs,Purchased Transportation
9021442,"$101,981.63 ",11/10/2022,ISSUED,,Freedom 1st Transportation LLC,200 Poplar Pl,Manual Invoice Entry,SEP'2022KANE,"$16,380.46 ",WIRE,3,MANUAL LINE ENTRY,10/31/2022,3,14,($793.75),11-54504-0000-401101-100-000000000-000000,Passenger Fares,Purchased Transportation
9021442,"$101,981.63 ",11/10/2022,ISSUED,,Freedom 1st Transportation LLC,200 Poplar Pl,Manual Invoice Entry,SEP'2022KANE,"$16,380.46 ",WIRE,3,MANUAL LINE ENTRY,10/31/2022,3,4,"$3,758.52 ",11-54504-0000-508101-500-000000000-000000,Purchased Transportation,Purchased Transportation
9021442,"$101,981.63 ",11/10/2022,ISSUED,,Freedom 1st Transportation LLC,200 Poplar Pl,Manual Invoice Entry,SEP'2022KANE,"$16,380.46 ",WIRE,3,MANUAL LINE ENTRY,10/31/2022,3,20,($11.04),11-54504-0000-508101-500-000000000-000000,Purchased Transportation,Purchased Transportation
9021442,"$101,981.63 ",11/10/2022,ISSUED,,Freedom 1st Transportation LLC,200 Poplar Pl,Manual Invoice Entry,SEP'2022KANE,"$16,380.46 ",WIRE,3,MANUAL LINE ENTRY,10/31/2022,3,18,($18.02),11-54502-0000-508101-500-000000000-000000,Purchased Transportation,Purchased Transportation
9021442,"$101,981.63 ",11/10/2022,ISSUED,,Freedom 1st Transportation LLC,200 Poplar Pl,Manual Invoice Entry,SEP'2022KANE,"$16,380.46 ",WIRE,3,MANUAL LINE ENTRY,10/31/2022,3,13,($161.00),11-54503-0000-401101-100-000000000-000000,Passenger Fares,Purchased Transportation
9021442,"$101,981.63 ",11/10/2022,ISSUED,,Freedom 1st Transportation LLC,200 Poplar Pl,Manual Invoice Entry,SEP'2022KANE,"$16,380.46 ",WIRE,3,MANUAL LINE ENTRY,10/31/2022,3,19,($3.25),11-54503-0000-508101-500-000000000-000000,Purchased Transportation,Purchased Transportation
9021442,"$101,981.63 ",11/10/2022,ISSUED,,Freedom 1st Transportation LLC,200 Poplar Pl,Manual Invoice Entry,SEP'2022KANE,"$16,380.46 ",WIRE,3,MANUAL LINE ENTRY,10/31/2022,3,3,$884.65 ,11-54503-0000-508101-500-000000000-000000,Purchased Transportation,Purchased Transportation
9021442,"$101,981.63 ",11/10/2022,ISSUED,,Freedom 1st Transportation LLC,200 Poplar Pl,Manual Invoice Entry,SEP'2022KANE,"$16,380.46 ",WIRE,3,MANUAL LINE ENTRY,10/31/2022,3,12,($882.25),11-54502-0000-401101-100-000000000-000000,Passenger Fares,Purchased Transportation
9021442,"$101,981.63 ",11/10/2022,ISSUED,,Freedom 1st Transportation LLC,200 Poplar Pl,Manual Invoice Entry,SEP'2022KANE,"$16,380.46 ",WIRE,3,MANUAL LINE ENTRY,10/31/2022,3,15,($155.25),11-54506-0000-401101-100-000000000-000000,Passenger Fares,Purchased Transportation
9021442,"$101,981.63 ",11/10/2022,ISSUED,,Freedom 1st Transportation LLC,200 Poplar Pl,Manual Invoice Entry,SEP'2022KANE,"$16,380.46 ",WIRE,3,MANUAL LINE ENTRY,10/31/2022,3,21,($3.49),11-54506-0000-508101-500-000000000-000000,Purchased Transportation,Purchased Transportation
9021442,"$101,981.63 ",11/10/2022,ISSUED,,Freedom 1st Transportation LLC,200 Poplar Pl,Manual Invoice Entry,SEP'2022KANE,"$16,380.46 ",WIRE,3,MANUAL LINE ENTRY,10/31/2022,3,5,$960.73 ,11-54506-0000-508101-500-000000000-000000,Purchased Transportation,Purchased Transportation
9021442,"$101,981.63 ",11/10/2022,ISSUED,,Freedom 1st Transportation LLC,200 Poplar Pl,Manual Invoice Entry,SEP'2022KANE,"$16,380.46 ",WIRE,3,MANUAL LINE ENTRY,10/31/2022,3,6,$938.68 ,11-54501-0000-508101-500-000000000-000000,Purchased Transportation,Purchased Transportation
9021442,"$101,981.63 ",11/10/2022,ISSUED,,Freedom 1st Transportation LLC,200 Poplar Pl,Manual Invoice Entry,SEP'2022KANE,"$16,380.46 ",WIRE,3,MANUAL LINE ENTRY,10/31/2022,3,32,($0.23),11-54501-0000-508101-500-000000000-000000,Purchased Transportation,Purchased Transportation
9021442,"$101,981.63 ",11/10/2022,ISSUED,,Freedom 1st Transportation LLC,200 Poplar Pl,Manual Invoice Entry,SEP'2022KANE,"$16,380.46 ",WIRE,3,MANUAL LINE ENTRY,10/31/2022,3,34,($0.23),11-54501-0000-508101-500-000000000-000000,Purchased Transportation,Purchased Transportation
9021442,"$101,981.63 ",11/10/2022,ISSUED,,Freedom 1st Transportation LLC,200 Poplar Pl,Manual Invoice Entry,SEP'2022KANE,"$16,380.46 ",WIRE,3,MANUAL LINE ENTRY,10/31/2022,3,24,$45.98 ,11-54501-0000-508101-500-000000000-000000,Purchased Transportation,Purchased Transportation
9021442,"$101,981.63 ",11/10/2022,ISSUED,,Freedom 1st Transportation LLC,200 Poplar Pl,Manual Invoice Entry,SEP'2022KANE,"$16,380.46 ",WIRE,3,MANUAL LINE ENTRY,10/31/2022,3,22,($3.60),11-54501-0000-508101-500-000000000-000000,Purchased Transportation,Purchased Transportation
9021442,"$101,981.63 ",11/10/2022,ISSUED,,Freedom 1st Transportation LLC,200 Poplar Pl,Manual Invoice Entry,SEP'2022KANE,"$16,380.46 ",WIRE,3,MANUAL LINE ENTRY,10/31/2022,3,26,$61.76 ,11-54501-0000-508101-500-000000000-000000,Purchased Transportation,Purchased Transportation
9021442,"$101,981.63 ",11/10/2022,ISSUED,,Freedom 1st Transportation LLC,200 Poplar Pl,Manual Invoice Entry,SEP'2022KANE,"$16,380.46 ",WIRE,3,MANUAL LINE ENTRY,10/31/2022,3,30,($10.00),11-54501-0000-401101-100-000000000-000000,Passenger Fares,Purchased Transportation
9021442,"$101,981.63 ",11/10/2022,ISSUED,,Freedom 1st Transportation LLC,200 Poplar Pl,Manual Invoice Entry,SEP'2022KANE,"$16,380.46 ",WIRE,3,MANUAL LINE ENTRY,10/31/2022,3,16,($176.75),11-54501-0000-401101-100-000000000-000000,Passenger Fares,Purchased Transportation
9021442,"$101,981.63 ",11/10/2022,ISSUED,,Freedom 1st Transportation LLC,200 Poplar Pl,Manual Invoice Entry,SEP'2022KANE,"$16,380.46 ",WIRE,3,MANUAL LINE ENTRY,10/31/2022,3,29,($5.00),11-54508-0000-401101-100-000000000-000000,Passenger Fares,Purchased Transportation
9021442,"$101,981.63 ",11/10/2022,ISSUED,,Freedom 1st Transportation LLC,200 Poplar Pl,Manual Invoice Entry,SEP'2022KANE,"$16,380.46 ",WIRE,3,MANUAL LINE ENTRY,10/31/2022,3,33,($0.93),11-54508-0000-508101-500-000000000-000000,Purchased Transportation,Purchased Transportation
9021442,"$101,981.63 ",11/10/2022,ISSUED,,Freedom 1st Transportation LLC,200 Poplar Pl,Manual Invoice Entry,SEP'2022KANE,"$16,380.46 ",WIRE,3,MANUAL LINE ENTRY,10/31/2022,3,25,$309.85 ,11-54508-0000-508101-500-000000000-000000,Purchased Transportation,Purchased Transportation
9021442,"$101,981.63 ",11/10/2022,ISSUED,,Freedom 1st Transportation LLC,200 Poplar Pl,Manual Invoice Entry,SEP'2022SC,"$30,233.68 ",WIRE,3,MANUAL LINE ENTRY,10/31/2022,3,2,$0.00 ,51-57201-0000-508102-500-000000000-000000,Call Center Expansion Costs,Purchased Transportation
9021442,"$101,981.63 ",11/10/2022,ISSUED,,Freedom 1st Transportation LLC,200 Poplar Pl,Manual Invoice Entry,SEP'2022SC,"$30,233.68 ",WIRE,3,MANUAL LINE ENTRY,10/31/2022,3,13,$0.00 ,51-57201-0000-508102-500-000000000-000000,Call Center Expansion Costs,Purchased Transportation
9021442,"$101,981.63 ",11/10/2022,ISSUED,,Freedom 1st Transportation LLC,200 Poplar Pl,Manual Invoice Entry,SEP'2022SC,"$30,233.68 ",WIRE,3,MANUAL LINE ENTRY,10/31/2022,3,14,$0.00 ,51-57201-0000-508102-500-000000000-000000,Call Center Expansion Costs,Purchased Transportation
9021442,"$101,981.63 ",11/10/2022,ISSUED,,Freedom 1st Transportation LLC,200 Poplar Pl,Manual Invoice Entry,SEP'2022WILL,"$12,414.90 ",WIRE,6,MANUAL LINE ENTRY,10/31/2022,6,1,$61.75 ,51-59101-0000-205116-000-000000000-000000,Deferred ADA Ventra Revenue,Purchased Transportation
9021442,"$101,981.63 ",11/10/2022,ISSUED,,Freedom 1st Transportation LLC,200 Poplar Pl,Manual Invoice Entry,SEP'2022SC,"$30,233.68 ",WIRE,3,MANUAL LINE ENTRY,10/31/2022,3,8,$71.50 ,51-59101-0000-205116-000-000000000-000000,Deferred ADA Ventra Revenue,Purchased Transportation
9021442,"$101,981.63 ",11/10/2022,ISSUED,,Freedom 1st Transportation LLC,200 Poplar Pl,Manual Invoice Entry,SEP'2022KANE,"$16,380.46 ",WIRE,3,MANUAL LINE ENTRY,10/31/2022,3,7,$240.50 ,51-59101-0000-205116-000-000000000-000000,Deferred ADA Ventra Revenue,Purchased Transportation
9021442,"$101,981.63 ",11/10/2022,ISSUED,,Freedom 1st Transportation LLC,200 Poplar Pl,Manual Invoice Entry,SEP'2022,"$42,952.59 ",WIRE,3,MANUAL LINE ENTRY,10/31/2022,3,10,$325.00 ,51-59101-0000-205116-000-000000000-000000,Deferred ADA Ventra Revenue,Purchased Transportation
9021442,"$101,981.63 ",11/10/2022,ISSUED,,Freedom 1st Transportation LLC,200 Poplar Pl,Manual Invoice Entry,SEP'2022KANE,"$16,380.46 ",WIRE,3,MANUAL LINE ENTRY,10/31/2022,3,2,"$5,395.89 ",11-54202-0000-508101-500-000000000-000000,Purchased Transportation,Purchased Transportation
9021442,"$101,981.63 ",11/10/2022,ISSUED,,Freedom 1st Transportation LLC,200 Poplar Pl,Manual Invoice Entry,SEP'2022SC,"$30,233.68 ",WIRE,3,MANUAL LINE ENTRY,10/31/2022,3,7,$0.00 ,11-10101-5311-509913-501-000000000-000000,General Expense,Miscellaneous
9021442,"$101,981.63 ",11/10/2022,ISSUED,,Freedom 1st Transportation LLC,200 Poplar Pl,Manual Invoice Entry,SEP'2022,"$42,952.59 ",WIRE,3,MANUAL LINE ENTRY,10/31/2022,3,26,($2.15),11-53121-0000-508101-500-000000000-000000,Purchased Transportation,Purchased Transportation
9021442,"$101,981.63 ",11/10/2022,ISSUED,,Freedom 1st Transportation LLC,200 Poplar Pl,Manual Invoice Entry,SEP'2022,"$42,952.59 ",WIRE,3,MANUAL LINE ENTRY,10/31/2022,3,18,($266.00),11-53121-0000-401101-100-000000000-000000,Passenger Fares,Purchased Transportation
9021442,"$101,981.63 ",11/10/2022,ISSUED,,Freedom 1st Transportation LLC,200 Poplar Pl,Manual Invoice Entry,SEP'2022,"$42,952.59 ",WIRE,3,MANUAL LINE ENTRY,10/31/2022,3,19,$0.00 ,11-53121-0000-401101-100-000000000-000000,Passenger Fares,Purchased Transportation
9021442,"$101,981.63 ",11/10/2022,ISSUED,,Freedom 1st Transportation LLC,200 Poplar Pl,Manual Invoice Entry,SEP'2022SC,"$30,233.68 ",WIRE,3,MANUAL LINE ENTRY,10/31/2022,3,17,$0.00 ,11-53112-0000-508101-500-000000000-000000,Purchased Transportation,Purchased Transportation
9021442,"$101,981.63 ",11/10/2022,ISSUED,,Freedom 1st Transportation LLC,200 Poplar Pl,Manual Invoice Entry,SEP'2022,"$42,952.59 ",WIRE,3,MANUAL LINE ENTRY,10/31/2022,3,28,($17.46),11-53107-0000-508101-500-000000000-000000,Purchased Transportation,Purchased Transportation
9021442,"$101,981.63 ",11/10/2022,ISSUED,,Freedom 1st Transportation LLC,200 Poplar Pl,Manual Invoice Entry,SEP'2022,"$42,952.59 ",WIRE,3,MANUAL LINE ENTRY,10/31/2022,3,8,"$5,255.89 ",11-53107-0000-508101-500-000000000-000000,Purchased Transportation,Purchased Transportation
9021442,"$101,981.63 ",11/10/2022,ISSUED,,Freedom 1st Transportation LLC,200 Poplar Pl,Manual Invoice Entry,SEP'2022,"$42,952.59 ",WIRE,3,MANUAL LINE ENTRY,10/31/2022,3,7,"$6,994.81 ",11-53107-0000-508101-500-000000000-000000,Purchased Transportation,Purchased Transportation
9021442,"$101,981.63 ",11/10/2022,ISSUED,,Freedom 1st Transportation LLC,200 Poplar Pl,Manual Invoice Entry,SEP'2022,"$42,952.59 ",WIRE,3,MANUAL LINE ENTRY,10/31/2022,3,29,($20.06),11-53107-0000-508101-500-000000000-000000,Purchased Transportation,Purchased Transportation
9021442,"$101,981.63 ",11/10/2022,ISSUED,,Freedom 1st Transportation LLC,200 Poplar Pl,Manual Invoice Entry,SEP'2022SC,"$30,233.68 ",WIRE,3,MANUAL LINE ENTRY,10/31/2022,3,21,$0.00 ,11-53112-0000-401101-100-000000000-000000,Passenger Fares,Purchased Transportation
9021442,"$101,981.63 ",11/10/2022,ISSUED,,Freedom 1st Transportation LLC,200 Poplar Pl,Manual Invoice Entry,SEP'2022SC,"$30,233.68 ",WIRE,3,MANUAL LINE ENTRY,10/31/2022,3,5,$0.00 ,11-53112-0000-401101-100-000000000-000000,Passenger Fares,Purchased Transportation
9021442,"$101,981.63 ",11/10/2022,ISSUED,,Freedom 1st Transportation LLC,200 Poplar Pl,Manual Invoice Entry,SEP'2022,"$42,952.59 ",WIRE,3,MANUAL LINE ENTRY,10/31/2022,3,20,"($2,123.00)",11-53107-0000-401101-100-000000000-000000,Passenger Fares,Purchased Transportation
9021442,"$101,981.63 ",11/10/2022,ISSUED,,Freedom 1st Transportation LLC,200 Poplar Pl,Manual Invoice Entry,SEP'2022,"$42,952.59 ",WIRE,3,MANUAL LINE ENTRY,10/31/2022,3,21,"($1,106.50)",11-53107-0000-401101-100-000000000-000000,Passenger Fares,Purchased Transportation
9021442,"$101,981.63 ",11/10/2022,ISSUED,,Freedom 1st Transportation LLC,200 Poplar Pl,Manual Invoice Entry,SEP'2022,"$42,952.59 ",WIRE,3,MANUAL LINE ENTRY,10/31/2022,3,1,"$26,019.39 ",51-57208-0000-508101-500-000000000-000000,Purchased Transportation,Purchased Transportation
9021442,"$101,981.63 ",11/10/2022,ISSUED,,Freedom 1st Transportation LLC,200 Poplar Pl,Manual Invoice Entry,SEP'2022,"$42,952.59 ",WIRE,3,MANUAL LINE ENTRY,10/31/2022,3,2,$0.00 ,11-54101-0000-508102-500-000000000-000000,Call Center Expansion Costs,Purchased Transportation
9021442,"$101,981.63 ",11/10/2022,ISSUED,,Freedom 1st Transportation LLC,200 Poplar Pl,Manual Invoice Entry,SEP'2022,"$42,952.59 ",WIRE,3,MANUAL LINE ENTRY,10/31/2022,3,15,$0.00 ,11-54101-0000-508102-500-000000000-000000,Call Center Expansion Costs,Purchased Transportation
9021442,"$101,981.63 ",11/10/2022,ISSUED,,Freedom 1st Transportation LLC,200 Poplar Pl,Manual Invoice Entry,SEP'2022,"$42,952.59 ",WIRE,3,MANUAL LINE ENTRY,10/31/2022,3,9,"$10,277.18 ",11-54101-0000-508101-500-000000000-000000,Purchased Transportation,Purchased Transportation
9021442,"$101,981.63 ",11/10/2022,ISSUED,,Freedom 1st Transportation LLC,200 Poplar Pl,Manual Invoice Entry,SEP'2022,"$42,952.59 ",WIRE,3,MANUAL LINE ENTRY,10/31/2022,3,30,($32.87),11-54101-0000-508101-500-000000000-000000,Purchased Transportation,Purchased Transportation
9021442,"$101,981.63 ",11/10/2022,ISSUED,,Freedom 1st Transportation LLC,200 Poplar Pl,Manual Invoice Entry,SEP'2022,"$42,952.59 ",WIRE,3,MANUAL LINE ENTRY,10/31/2022,3,3,$432.89 ,11-54101-0000-508101-500-000000000-000000,Purchased Transportation,Purchased Transportation
9021442,"$101,981.63 ",11/10/2022,ISSUED,,Freedom 1st Transportation LLC,200 Poplar Pl,Manual Invoice Entry,SEP'2022,"$42,952.59 ",WIRE,3,MANUAL LINE ENTRY,10/31/2022,3,25,($0.23),11-54101-0000-508101-500-000000000-000000,Purchased Transportation,Purchased Transportation
9021442,"$101,981.63 ",11/10/2022,ISSUED,,Freedom 1st Transportation LLC,200 Poplar Pl,Manual Invoice Entry,SEP'2022,"$42,952.59 ",WIRE,3,MANUAL LINE ENTRY,10/31/2022,3,24,($1.13),11-54101-0000-508101-500-000000000-000000,Purchased Transportation,Purchased Transportation
9021442,"$101,981.63 ",11/10/2022,ISSUED,,Freedom 1st Transportation LLC,200 Poplar Pl,Manual Invoice Entry,SEP'2022,"$42,952.59 ",WIRE,3,MANUAL LINE ENTRY,10/31/2022,3,4,$93.38 ,11-54101-0000-508101-500-000000000-000000,Purchased Transportation,Purchased Transportation
9021442,"$101,981.63 ",11/10/2022,ISSUED,,Freedom 1st Transportation LLC,200 Poplar Pl,Manual Invoice Entry,SEP'2022,"$42,952.59 ",WIRE,3,MANUAL LINE ENTRY,10/31/2022,3,22,"($2,878.00)",11-54101-0000-401101-100-000000000-000000,Passenger Fares,Purchased Transportation
9021442,"$101,981.63 ",11/10/2022,ISSUED,,Freedom 1st Transportation LLC,200 Poplar Pl,Manual Invoice Entry,SEP'2022,"$42,952.59 ",WIRE,3,MANUAL LINE ENTRY,10/31/2022,3,17,($25.00),11-54101-0000-401101-100-000000000-000000,Passenger Fares,Purchased Transportation
9021442,"$101,981.63 ",11/10/2022,ISSUED,,Freedom 1st Transportation LLC,200 Poplar Pl,Manual Invoice Entry,SEP'2022,"$42,952.59 ",WIRE,3,MANUAL LINE ENTRY,10/31/2022,3,16,($115.50),11-54101-0000-401101-100-000000000-000000,Passenger Fares,Purchased Transportation
9021442,"$101,981.63 ",11/10/2022,ISSUED,,Freedom 1st Transportation LLC,200 Poplar Pl,Manual Invoice Entry,SEP'2022,"$42,952.59 ",WIRE,3,MANUAL LINE ENTRY,10/31/2022,3,27,$0.00 ,11-53121-0000-508101-500-000000000-000000,Purchased Transportation,Purchased Transportation
9021442,"$101,981.63 ",11/10/2022,ISSUED,,Freedom 1st Transportation LLC,200 Poplar Pl,Manual Invoice Entry,SEP'2022,"$42,952.59 ",WIRE,3,MANUAL LINE ENTRY,10/31/2022,3,5,$853.80 ,11-53121-0000-508101-500-000000000-000000,Purchased Transportation,Purchased Transportation
9021442,"$101,981.63 ",11/10/2022,ISSUED,,Freedom 1st Transportation LLC,200 Poplar Pl,Manual Invoice Entry,SEP'2022,"$42,952.59 ",WIRE,3,MANUAL LINE ENTRY,10/31/2022,3,6,$0.00 ,11-53121-0000-508101-500-000000000-000000,Purchased Transportation,Purchased Transportation
9021442,"$101,981.63 ",11/10/2022,ISSUED,,Freedom 1st Transportation LLC,200 Poplar Pl,Manual Invoice Entry,SEP'2022SC,"$30,233.68 ",WIRE,3,MANUAL LINE ENTRY,10/31/2022,3,16,$0.00 ,51-57201-0000-401101-100-000000000-000000,Passenger Fares,Purchased Transportation
9021442,"$101,981.63 ",11/10/2022,ISSUED,,Freedom 1st Transportation LLC,200 Poplar Pl,Manual Invoice Entry,SEP'2022SC,"$30,233.68 ",WIRE,3,MANUAL LINE ENTRY,10/31/2022,3,12,($978.25),51-57201-0000-401101-100-000000000-000000,Passenger Fares,Purchased Transportation
9021442,"$101,981.63 ",11/10/2022,ISSUED,,Freedom 1st Transportation LLC,200 Poplar Pl,Manual Invoice Entry,SEP'2022SC,"$30,233.68 ",WIRE,3,MANUAL LINE ENTRY,10/31/2022,3,9,($71.50),51-57201-0000-401101-100-000000000-000000,Passenger Fares,Purchased Transportation
9021442,"$101,981.63 ",11/10/2022,ISSUED,,Freedom 1st Transportation LLC,200 Poplar Pl,Manual Invoice Entry,SEP'2022SC,"$30,233.68 ",WIRE,3,MANUAL LINE ENTRY,10/31/2022,3,11,($526.50),51-57201-0000-401101-100-000000000-000000,Passenger Fares,Purchased Transportation
9021442,"$101,981.63 ",11/10/2022,ISSUED,,Freedom 1st Transportation LLC,200 Poplar Pl,Manual Invoice Entry,SEP'2022SC,"$30,233.68 ",WIRE,2,MANUAL LINE ENTRY,10/31/2022,2,1,"($30,233.68)",51-57201-0000-508101-500-000000000-000000,Purchased Transportation,Purchased Transportation
9021442,"$101,981.63 ",11/10/2022,ISSUED,,Freedom 1st Transportation LLC,200 Poplar Pl,Manual Invoice Entry,SEP'2022SC,"$30,233.68 ",WIRE,1,HEADER MATCH,10/31/2022,1,1,"$30,233.68 ",51-57201-0000-508101-500-000000000-000000,Purchased Transportation,Purchased Transportation
9021442,"$101,981.63 ",11/10/2022,ISSUED,,Freedom 1st Transportation LLC,200 Poplar Pl,Manual Invoice Entry,SEP'2022SC,"$30,233.68 ",WIRE,3,MANUAL LINE ENTRY,10/31/2022,3,20,$0.00 ,51-57201-0000-508101-500-000000000-000000,Purchased Transportation,Purchased Transportation
9021442,"$101,981.63 ",11/10/2022,ISSUED,,Freedom 1st Transportation LLC,200 Poplar Pl,Manual Invoice Entry,SEP'2022SC,"$30,233.68 ",WIRE,3,MANUAL LINE ENTRY,10/31/2022,3,19,($922.90),51-57201-0000-508101-500-000000000-000000,Purchased Transportation,Purchased Transportation
9021442,"$101,981.63 ",11/10/2022,ISSUED,,Freedom 1st Transportation LLC,200 Poplar Pl,Manual Invoice Entry,SEP'2022SC,"$30,233.68 ",WIRE,3,MANUAL LINE ENTRY,10/31/2022,3,1,"$31,806.63 ",51-57201-0000-508101-500-000000000-000000,Purchased Transportation,Purchased Transportation
9021442,"$101,981.63 ",11/10/2022,ISSUED,,Freedom 1st Transportation LLC,200 Poplar Pl,Manual Invoice Entry,SEP'2022SC,"$30,233.68 ",WIRE,3,MANUAL LINE ENTRY,10/31/2022,3,4,$0.00 ,51-57201-0000-508101-500-000000000-000000,Purchased Transportation,Purchased Transportation
9021442,"$101,981.63 ",11/10/2022,ISSUED,,Freedom 1st Transportation LLC,200 Poplar Pl,Manual Invoice Entry,SEP'2022,"$42,952.59 ",WIRE,3,MANUAL LINE ENTRY,10/31/2022,3,23,($58.60),51-57208-0000-508101-500-000000000-000000,Purchased Transportation,Purchased Transportation
9021442,"$101,981.63 ",11/10/2022,ISSUED,,Freedom 1st Transportation LLC,200 Poplar Pl,Manual Invoice Entry,SEP'2022,"$42,952.59 ",WIRE,1,HEADER MATCH,10/31/2022,1,1,"$42,952.59 ",51-57208-0000-508101-500-000000000-000000,Purchased Transportation,Purchased Transportation
9021442,"$101,981.63 ",11/10/2022,ISSUED,,Freedom 1st Transportation LLC,200 Poplar Pl,Manual Invoice Entry,SEP'2022,"$42,952.59 ",WIRE,2,MANUAL LINE ENTRY,10/31/2022,2,1,"($42,952.59)",51-57208-0000-508101-500-000000000-000000,Purchased Transportation,Purchased Transportation
9021442,"$101,981.63 ",11/10/2022,ISSUED,,Freedom 1st Transportation LLC,200 Poplar Pl,Manual Invoice Entry,SEP'2022,"$42,952.59 ",WIRE,3,MANUAL LINE ENTRY,10/31/2022,3,11,($325.00),51-57208-0000-401101-100-000000000-000000,Passenger Fares,Purchased Transportation
9021442,"$101,981.63 ",11/10/2022,ISSUED,,Freedom 1st Transportation LLC,200 Poplar Pl,Manual Invoice Entry,SEP'2022,"$42,952.59 ",WIRE,3,MANUAL LINE ENTRY,10/31/2022,3,31,$276.25 ,51-57208-0000-401101-100-000000000-000000,Passenger Fares,Purchased Transportation
9021442,"$101,981.63 ",11/10/2022,ISSUED,,Freedom 1st Transportation LLC,200 Poplar Pl,Manual Invoice Entry,SEP'2022,"$42,952.59 ",WIRE,3,MANUAL LINE ENTRY,10/31/2022,3,14,($802.75),51-57208-0000-401101-100-000000000-000000,Passenger Fares,Purchased Transportation
9021442,"$101,981.63 ",11/10/2022,ISSUED,,Freedom 1st Transportation LLC,200 Poplar Pl,Manual Invoice Entry,SEP'2022,"$42,952.59 ",WIRE,3,MANUAL LINE ENTRY,10/31/2022,3,13,($289.25),51-57208-0000-401101-100-000000000-000000,Passenger Fares,Purchased Transportation
9021442,"$101,981.63 ",11/10/2022,ISSUED,,Freedom 1st Transportation LLC,200 Poplar Pl,Manual Invoice Entry,SEP'2022,"$42,952.59 ",WIRE,3,MANUAL LINE ENTRY,10/31/2022,3,32,$198.25 ,51-57208-0000-401101-100-000000000-000000,Passenger Fares,Purchased Transportation
9021442,"$101,981.63 ",11/10/2022,ISSUED,,Freedom 1st Transportation LLC,200 Poplar Pl,Manual Invoice Entry,SEP'2022SC,"$30,233.68 ",WIRE,3,MANUAL LINE ENTRY,10/31/2022,3,10,$526.50 ,51-59101-0000-205104-000-000000000-000000,Unredeemed Paratransit Fares,Purchased Transportation
9021442,"$101,981.63 ",11/10/2022,ISSUED,,Freedom 1st Transportation LLC,200 Poplar Pl,Manual Invoice Entry,SEP'2022,"$42,952.59 ",WIRE,3,MANUAL LINE ENTRY,10/31/2022,3,12,$289.25 ,51-59101-0000-205104-000-000000000-000000,Unredeemed Paratransit Fares,Purchased Transportation
9021442,"$101,981.63 ",11/10/2022,ISSUED,,Freedom 1st Transportation LLC,200 Poplar Pl,Manual Invoice Entry,SEP'2022KANE,"$16,380.46 ",WIRE,3,MANUAL LINE ENTRY,10/31/2022,3,9,$156.00 ,51-59101-0000-205104-000-000000000-000000,Unredeemed Paratransit Fares,Purchased Transportation
9021442,"$101,981.63 ",11/10/2022,ISSUED,,Freedom 1st Transportation LLC,200 Poplar Pl,Manual Invoice Entry,SEP'2022WILL,"$12,414.90 ",WIRE,8,MANUAL LINE ENTRY,10/31/2022,8,1,$55.25 ,51-59101-0000-205104-000-000000000-000000,Unredeemed Paratransit Fares,Purchased Transportation
9021442,"$101,981.63 ",11/10/2022,ISSUED,,Freedom 1st Transportation LLC,200 Poplar Pl,Manual Invoice Entry,SEP'2022WILL,"$12,414.90 ",WIRE,3,MANUAL LINE ENTRY,10/31/2022,3,1,"$6,668.80 ",51-57207-0000-508101-500-000000000-000000,Purchased Transportation,Purchased Transportation
9021442,"$101,981.63 ",11/10/2022,ISSUED,,Freedom 1st Transportation LLC,200 Poplar Pl,Manual Invoice Entry,SEP'2022WILL,"$12,414.90 ",WIRE,13,MANUAL LINE ENTRY,10/31/2022,13,1,($57.96),51-57207-0000-508101-500-000000000-000000,Purchased Transportation,Purchased Transportation
9021442,"$101,981.63 ",11/10/2022,ISSUED,,Freedom 1st Transportation LLC,200 Poplar Pl,Manual Invoice Entry,SEP'2022WILL,"$12,414.90 ",WIRE,7,MANUAL LINE ENTRY,10/31/2022,7,1,($61.75),51-57207-0000-401101-100-000000000-000000,Passenger Fares,Purchased Transportation
9021442,"$101,981.63 ",11/10/2022,ISSUED,,Freedom 1st Transportation LLC,200 Poplar Pl,Manual Invoice Entry,SEP'2022WILL,"$12,414.90 ",WIRE,9,MANUAL LINE ENTRY,10/31/2022,9,1,($55.25),51-57207-0000-401101-100-000000000-000000,Passenger Fares,Purchased Transportation
9021442,"$101,981.63 ",11/10/2022,ISSUED,,Freedom 1st Transportation LLC,200 Poplar Pl,Manual Invoice Entry,SEP'2022WILL,"$12,414.90 ",WIRE,10,MANUAL LINE ENTRY,10/31/2022,10,1,($325.00),51-57207-0000-401101-100-000000000-000000,Passenger Fares,Purchased Transportation
9021442,"$101,981.63 ",11/10/2022,ISSUED,,Freedom 1st Transportation LLC,200 Poplar Pl,Manual Invoice Entry,SEP'2022KANE,"$16,380.46 ",WIRE,3,MANUAL LINE ENTRY,10/31/2022,3,8,($240.50),51-57205-0000-401101-100-000000000-000000,Passenger Fares,Purchased Transportation
9021442,"$101,981.63 ",11/10/2022,ISSUED,,Freedom 1st Transportation LLC,200 Poplar Pl,Manual Invoice Entry,SEP'2022KANE,"$16,380.46 ",WIRE,3,MANUAL LINE ENTRY,10/31/2022,3,10,($156.00),51-57205-0000-401101-100-000000000-000000,Passenger Fares,Purchased Transportation
9021442,"$101,981.63 ",11/10/2022,ISSUED,,Freedom 1st Transportation LLC,200 Poplar Pl,Manual Invoice Entry,SEP'2022KANE,"$16,380.46 ",WIRE,3,MANUAL LINE ENTRY,10/31/2022,3,11,($81.25),51-57205-0000-401101-100-000000000-000000,Passenger Fares,Purchased Transportation
9021442,"$101,981.63 ",11/10/2022,ISSUED,,Freedom 1st Transportation LLC,200 Poplar Pl,Manual Invoice Entry,SEP'2022KANE,"$16,380.46 ",WIRE,3,MANUAL LINE ENTRY,10/31/2022,3,1,"$5,281.45 ",51-57205-0000-508101-500-000000000-000000,Purchased Transportation,Purchased Transportation
9021442,"$101,981.63 ",11/10/2022,ISSUED,,Freedom 1st Transportation LLC,200 Poplar Pl,Manual Invoice Entry,SEP'2022KANE,"$16,380.46 ",WIRE,3,MANUAL LINE ENTRY,10/31/2022,3,17,($21.86),51-57205-0000-508101-500-000000000-000000,Purchased Transportation,Purchased Transportation
9021442,"$101,981.63 ",11/10/2022,ISSUED,,Freedom 1st Transportation LLC,200 Poplar Pl,Manual Invoice Entry,SEP'2022KANE,"$16,380.46 ",WIRE,1,HEADER MATCH,10/31/2022,1,1,"$16,380.46 ",51-57205-0000-508101-500-000000000-000000,Purchased Transportation,Purchased Transportation
9021442,"$101,981.63 ",11/10/2022,ISSUED,,Freedom 1st Transportation LLC,200 Poplar Pl,Manual Invoice Entry,SEP'2022KANE,"$16,380.46 ",WIRE,2,MANUAL LINE ENTRY,10/31/2022,2,1,"($16,380.46)",51-57205-0000-508101-500-000000000-000000,Purchased Transportation,Purchased Transportation
9021442,"$101,981.63 ",11/10/2022,ISSUED,,Freedom 1st Transportation LLC,200 Poplar Pl,Manual Invoice Entry,SEP'2022KANE,"$16,380.46 ",WIRE,3,MANUAL LINE ENTRY,10/31/2022,3,28,($10.00),11-54501-0000-401101-100-000000000-000000,Passenger Fares,Purchased Transportation
9021442,"$101,981.63 ",11/10/2022,ISSUED,,Freedom 1st Transportation LLC,200 Poplar Pl,Manual Invoice Entry,SEP'2022KANE,"$16,380.46 ",WIRE,3,MANUAL LINE ENTRY,10/31/2022,3,27,($273.50),11-54505-0000-401101-100-000000000-000000,Passenger Fares,Purchased Transportation
9021441,"$509,060.80 ",11/10/2022,ISSUED,,First Transit Inc,JP Morgan Chase Bank,Manual Invoice Entry,SEP'2022WC,"$262,045.81 ",WIRE,3,MANUAL LINE ENTRY,10/31/2022,3,4,($935.94),11-10101-5311-509913-501-000000000-000000,General Expense,Miscellaneous
9021441,"$509,060.80 ",11/10/2022,ISSUED,,First Transit Inc,JP Morgan Chase Bank,Manual Invoice Entry,SEP'2022/55446-092022,"$139,125.77 ",WIRE,3,MANUAL LINE ENTRY,10/27/2022,3,31,($115.00),11-53124-0000-401101-100-000000000-000000,Passenger Fares,Purchased Transportation
